Department,Entity,Date of Payment,Expense type,Expense Area,Supplier,Transaction Number,Amount
United Kingdom Atomic Energy Authority,United Kingdom Atomic Energy Authority,16/11/2015,MATERIALS & SPARES,FUSION,600 UK,5100329106,84.00
United Kingdom Atomic Energy Authority,United Kingdom Atomic Energy Authority,16/11/2015,MATERIALS & SPARES,FUSION,600 UK,5100329343,84.00
United Kingdom Atomic Energy Authority,United Kingdom Atomic Energy Authority,16/11/2015,PLANT SPARES,FUSION,A D INSTALLATION LTD,5100329195,670.00
United Kingdom Atomic Energy Authority,United Kingdom Atomic Energy Authority,02/11/2015,PLANT SPARES,FUSION,A D INSTALLATION LTD,5100328504,670.50
United Kingdom Atomic Energy Authority,United Kingdom Atomic Energy Authority,16/11/2015,PLANT SPARES,FUSION,A D INSTALLATION LTD,5100329171,"3,250.00"
United Kingdom Atomic Energy Authority,United Kingdom Atomic Energy Authority,11/11/2015,PLANT SPARES,FUSION,A W CLARKE,5100329054,"-1,008.00"
United Kingdom Atomic Energy Authority,United Kingdom Atomic Energy Authority,28/10/2015,PLANT SPARES,FUSION,A W CLARKE,5100328162,146.00
United Kingdom Atomic Energy Authority,United Kingdom Atomic Energy Authority,26/10/2015,PLANT SPARES,FUSION,A W CLARKE,5100328163,146.00
United Kingdom Atomic Energy Authority,United Kingdom Atomic Energy Authority,16/11/2015,PLANT SPARES,FUSION,A W CLARKE,5100329235,230.00
United Kingdom Atomic Energy Authority,United Kingdom Atomic Energy Authority,09/11/2015,PLANT SPARES,FUSION,A W CLARKE,5100328845,393.10
United Kingdom Atomic Energy Authority,United Kingdom Atomic Energy Authority,09/11/2015,PLANT SPARES,FUSION,A W CLARKE,5100328847,"1,409.80"
United Kingdom Atomic Energy Authority,United Kingdom Atomic Energy Authority,26/10/2015,PLANT SPARES,FUSION,A W CLARKE,5100328160,"1,865.00"
United Kingdom Atomic Energy Authority,United Kingdom Atomic Energy Authority,26/10/2015,PLANT SPARES,FUSION,A W CLARKE,5100328161,"2,911.57"
United Kingdom Atomic Energy Authority,United Kingdom Atomic Energy Authority,11/11/2015,PLANT SPARES,FUSION,A W CLARKE,5100325070,"3,243.60"
United Kingdom Atomic Energy Authority,United Kingdom Atomic Energy Authority,16/11/2015,PLANT & EQUIPMENT,FUSION,AALCO LIMITED,5100329323,-119.40
United Kingdom Atomic Energy Authority,United Kingdom Atomic Energy Authority,11/11/2015,PLANT & EQUIPMENT,FUSION,AALCO LIMITED,5100328580,54.00
United Kingdom Atomic Energy Authority,United Kingdom Atomic Energy Authority,09/11/2015,PLANT & EQUIPMENT,FUSION,AALCO LIMITED,5100327997,109.00
United Kingdom Atomic Energy Authority,United Kingdom Atomic Energy Authority,16/11/2015,PLANT & EQUIPMENT,FUSION,AALCO LIMITED,5100329163,119.40
United Kingdom Atomic Energy Authority,United Kingdom Atomic Energy Authority,16/11/2015,PLANT & EQUIPMENT,FUSION,AALCO LIMITED,5100329217,119.40
United Kingdom Atomic Energy Authority,United Kingdom Atomic Energy Authority,16/11/2015,PLANT & EQUIPMENT,FUSION,AALCO LIMITED,5100329215,202.30
United Kingdom Atomic Energy Authority,United Kingdom Atomic Energy Authority,16/11/2015,PLANT & EQUIPMENT,FUSION,AALCO LIMITED,5100329358,239.00
United Kingdom Atomic Energy Authority,United Kingdom Atomic Energy Authority,09/11/2015,MATERIALS & SPARES,FUSION,ABB Limited,5100328661,"2,666.00"
United Kingdom Atomic Energy Authority,United Kingdom Atomic Energy Authority,28/10/2015,MATERIALS & SPARES,FUSION,ABB Limited,5100327393,"32,916.75"
United Kingdom Atomic Energy Authority,United Kingdom Atomic Energy Authority,28/10/2015,MATERIALS & SPARES,FUSION,ABB Limited,5100327473,"43,889.00"
United Kingdom Atomic Energy Authority,United Kingdom Atomic Energy Authority,18/11/2015,TRAINING COURSE FEES,SUPPORT SERVICES,ABINGDON & WITNEY COLLEGE,5100329460,"2,199.00"
United Kingdom Atomic Energy Authority,United Kingdom Atomic Energy Authority,02/11/2015,CONSUMABLES,FUSION,ABLOY SECURITY,5100328237,94.86
United Kingdom Atomic Energy Authority,United Kingdom Atomic Energy Authority,02/11/2015,CONSUMABLES,FUSION,ABLOY SECURITY,5100328304,101.20
United Kingdom Atomic Energy Authority,United Kingdom Atomic Energy Authority,09/11/2015,MATERIALS & SPARES,FUSION,ACRONA ENGINEERING LTD,5100328831,963.00
United Kingdom Atomic Energy Authority,United Kingdom Atomic Energy Authority,02/11/2015,MATERIALS & SPARES,FUSION,ACRONA ENGINEERING LTD,5100328712,"1,150.98"
United Kingdom Atomic Energy Authority,United Kingdom Atomic Energy Authority,02/11/2015,MATERIALS & SPARES,FUSION,ACRONA ENGINEERING LTD,5100328711,"1,464.86"
United Kingdom Atomic Energy Authority,United Kingdom Atomic Energy Authority,04/11/2015,MATERIALS & SPARES,FUSION,ACRONA ENGINEERING LTD,5100328708,"6,640.24"
United Kingdom Atomic Energy Authority,United Kingdom Atomic Energy Authority,26/10/2015,MATERIALS & SPARES,FUSION,ADHECTIC LIMITED,5100328293,289.34
United Kingdom Atomic Energy Authority,United Kingdom Atomic Energy Authority,09/11/2015,SECURITY AND EMERGENCY,PROPERTY,ADT FIRE & SECURITY PLC,5100328670,355.02
United Kingdom Atomic Energy Authority,United Kingdom Atomic Energy Authority,02/11/2015,SECURITY AND EMERGENCY,PROPERTY,ADT FIRE & SECURITY PLC,5100328616,633.75
United Kingdom Atomic Energy Authority,United Kingdom Atomic Energy Authority,11/11/2015,REPAIRS & MAINTENANCE,FUSION,ADVATEK,5100328840,329.10
United Kingdom Atomic Energy Authority,United Kingdom Atomic Energy Authority,26/10/2015,CONSUMABLES,FUSION,AGATE PRODUCTS LTD,5100328112,"1,139.00"
United Kingdom Atomic Energy Authority,United Kingdom Atomic Energy Authority,09/11/2015,MATERIALS & SPARES,FUSION,AGILENT TECHNOLOGIES LDA UL LTD,5100328825,287.00
United Kingdom Atomic Energy Authority,United Kingdom Atomic Energy Authority,11/11/2015,PLANT & EQUIPMENT,FUSION,ALGAR ELECTRIC MOTORS LTD,5100328732,530.00
United Kingdom Atomic Energy Authority,United Kingdom Atomic Energy Authority,26/10/2015,PLANT & EQUIPMENT,FUSION,ALPHA LABORATORIES,5100328232,185.40
United Kingdom Atomic Energy Authority,United Kingdom Atomic Energy Authority,16/11/2015,MATERIALS & SPARES,SUPPORT SERVICES,ALPHA PACKAGING,5100329026,190.16
United Kingdom Atomic Energy Authority,United Kingdom Atomic Energy Authority,16/11/2015,MATERIALS & SPARES,FUSION,ALPHA PACKAGING,5100329025,"1,077.71"
United Kingdom Atomic Energy Authority,United Kingdom Atomic Energy Authority,02/11/2015,MATERIALS & SPARES,FUSION,Alrad Instruments Ltd,5100328389,165.50
United Kingdom Atomic Energy Authority,United Kingdom Atomic Energy Authority,26/10/2015,PLANT & EQUIPMENT,FUSION,Ambrell Ltd,5100328105,"16,000.00"
United Kingdom Atomic Energy Authority,United Kingdom Atomic Energy Authority,04/11/2015,HEALTH PHYSICS,SUPPORT SERVICES,American Institute of Physics,5100328275,"6,332.56"
United Kingdom Atomic Energy Authority,United Kingdom Atomic Energy Authority,09/11/2015,PLANT SPARES,FUSION,AMETEK ADVANCE MEASUREMENT,5100328844,"4,642.00"
United Kingdom Atomic Energy Authority,United Kingdom Atomic Energy Authority,09/11/2015,MATERIALS & SPARES,FUSION,ANIXTER (UK) LTD,5100329029,-137.50
United Kingdom Atomic Energy Authority,United Kingdom Atomic Energy Authority,16/11/2015,MATERIALS & SPARES,FUSION,ANIXTER (UK) LTD,5100329260,50.00
United Kingdom Atomic Energy Authority,United Kingdom Atomic Energy Authority,16/11/2015,MATERIALS & SPARES,FUSION,ANIXTER (UK) LTD,5100329221,74.00
United Kingdom Atomic Energy Authority,United Kingdom Atomic Energy Authority,09/11/2015,MATERIALS & SPARES,FUSION,ANIXTER (UK) LTD,5100328969,137.50
United Kingdom Atomic Energy Authority,United Kingdom Atomic Energy Authority,09/11/2015,MATERIALS & SPARES,FUSION,ANIXTER (UK) LTD,5100329031,137.50
United Kingdom Atomic Energy Authority,United Kingdom Atomic Energy Authority,16/11/2015,MATERIALS & SPARES,FUSION,ANIXTER (UK) LTD,5100329357,214.00
United Kingdom Atomic Energy Authority,United Kingdom Atomic Energy Authority,26/10/2015,MATERIALS & SPARES,FUSION,ANIXTER (UK) LTD,5100328062,836.22
United Kingdom Atomic Energy Authority,United Kingdom Atomic Energy Authority,11/11/2015,MATERIALS & SPARES,FUSION,ANIXTER (UK) LTD,5100328497,"1,155.00"
United Kingdom Atomic Energy Authority,United Kingdom Atomic Energy Authority,11/11/2015,MATERIALS & SPARES,FUSION,ANIXTER (UK) LTD,5100328506,"1,548.50"
United Kingdom Atomic Energy Authority,United Kingdom Atomic Energy Authority,26/10/2015,SOFTWARE,FUSION,ANSYS UK LTD,5100328239,"1,275.00"
United Kingdom Atomic Energy Authority,United Kingdom Atomic Energy Authority,16/11/2015,PROFESSIONAL SERVICES,SUPPORT SERVICES,AON HEWITT LTD,5100329138,"150,082.66"
United Kingdom Atomic Energy Authority,United Kingdom Atomic Energy Authority,09/11/2015,PERSONAL PROTECTIVE EQUIPMENT,FUSION,ARCO LTD,5100328958,5.58
United Kingdom Atomic Energy Authority,United Kingdom Atomic Energy Authority,16/11/2015,PERSONAL PROTECTIVE EQUIPMENT,FUSION,ARCO LTD,5100329338,7.54
United Kingdom Atomic Energy Authority,United Kingdom Atomic Energy Authority,02/11/2015,PERSONAL PROTECTIVE EQUIPMENT,FUSION,ARCO LTD,5100328585,12.60
United Kingdom Atomic Energy Authority,United Kingdom Atomic Energy Authority,16/11/2015,PERSONAL PROTECTIVE EQUIPMENT,FUSION,ARCO LTD,5100329231,14.39
United Kingdom Atomic Energy Authority,United Kingdom Atomic Energy Authority,11/11/2015,PERSONAL PROTECTIVE EQUIPMENT,FUSION,ARCO LTD,5100328987,15.99
United Kingdom Atomic Energy Authority,United Kingdom Atomic Energy Authority,02/11/2015,PERSONAL PROTECTIVE EQUIPMENT,FUSION,ARCO LTD,5100328493,16.79
United Kingdom Atomic Energy Authority,United Kingdom Atomic Energy Authority,02/11/2015,PERSONAL PROTECTIVE EQUIPMENT,SUPPORT SERVICES,ARCO LTD,5100328652,19.19
United Kingdom Atomic Energy Authority,United Kingdom Atomic Energy Authority,02/11/2015,PERSONAL PROTECTIVE EQUIPMENT,FUSION,ARCO LTD,5100328278,31.99
United Kingdom Atomic Energy Authority,United Kingdom Atomic Energy Authority,26/10/2015,PERSONAL PROTECTIVE EQUIPMENT,FUSION,ARCO LTD,5100327988,33.14
United Kingdom Atomic Energy Authority,United Kingdom Atomic Energy Authority,26/10/2015,PERSONAL PROTECTIVE EQUIPMENT,SUPPORT SERVICES,ARCO LTD,5100328399,34.11
United Kingdom Atomic Energy Authority,United Kingdom Atomic Energy Authority,02/11/2015,PERSONAL PROTECTIVE EQUIPMENT,PROPERTY,ARCO LTD,5100328727,35.18
United Kingdom Atomic Energy Authority,United Kingdom Atomic Energy Authority,09/11/2015,PERSONAL PROTECTIVE EQUIPMENT,FUSION,ARCO LTD,5100328837,35.76
United Kingdom Atomic Energy Authority,United Kingdom Atomic Energy Authority,28/10/2015,PERSONAL PROTECTIVE EQUIPMENT,FUSION,ARCO LTD,5100328075,41.69
United Kingdom Atomic Energy Authority,United Kingdom Atomic Energy Authority,02/11/2015,PERSONAL PROTECTIVE EQUIPMENT,FUSION,ARCO LTD,5100328728,44.00
United Kingdom Atomic Energy Authority,United Kingdom Atomic Energy Authority,16/11/2015,PERSONAL PROTECTIVE EQUIPMENT,FUSION,ARCO LTD,5100329336,44.79
United Kingdom Atomic Energy Authority,United Kingdom Atomic Energy Authority,02/11/2015,PERSONAL PROTECTIVE EQUIPMENT,PROPERTY,ARCO LTD,5100328596,47.98
United Kingdom Atomic Energy Authority,United Kingdom Atomic Energy Authority,16/11/2015,PERSONAL PROTECTIVE EQUIPMENT,FUSION,ARCO LTD,5100329229,54.99
United Kingdom Atomic Energy Authority,United Kingdom Atomic Energy Authority,28/10/2015,PERSONAL PROTECTIVE EQUIPMENT,SUPPORT SERVICES,ARCO LTD,5100328276,55.99
United Kingdom Atomic Energy Authority,United Kingdom Atomic Energy Authority,16/11/2015,PERSONAL PROTECTIVE EQUIPMENT,FUSION,ARCO LTD,5100329227,57.59
United Kingdom Atomic Energy Authority,United Kingdom Atomic Energy Authority,09/11/2015,PERSONAL PROTECTIVE EQUIPMENT,FUSION,ARCO LTD,5100328829,62.16
United Kingdom Atomic Energy Authority,United Kingdom Atomic Energy Authority,26/10/2015,PERSONAL PROTECTIVE EQUIPMENT,PROPERTY,ARCO LTD,5100328073,67.02
United Kingdom Atomic Energy Authority,United Kingdom Atomic Energy Authority,26/10/2015,PERSONAL PROTECTIVE EQUIPMENT,FUSION,ARCO LTD,5100327959,73.33
United Kingdom Atomic Energy Authority,United Kingdom Atomic Energy Authority,18/11/2015,PERSONAL PROTECTIVE EQUIPMENT,FUSION,ARCO LTD,5100329269,84.44
United Kingdom Atomic Energy Authority,United Kingdom Atomic Energy Authority,09/11/2015,PERSONAL PROTECTIVE EQUIPMENT,FUSION,ARCO LTD,5100328725,90.13
United Kingdom Atomic Energy Authority,United Kingdom Atomic Energy Authority,26/10/2015,PERSONAL PROTECTIVE EQUIPMENT,PROPERTY,ARCO LTD,5100328402,100.78
United Kingdom Atomic Energy Authority,United Kingdom Atomic Energy Authority,09/11/2015,PERSONAL PROTECTIVE EQUIPMENT,FUSION,ARCO LTD,5100328839,110.35
United Kingdom Atomic Energy Authority,United Kingdom Atomic Energy Authority,16/11/2015,PERSONAL PROTECTIVE EQUIPMENT,FUSION,ARCO LTD,5100329232,115.69
United Kingdom Atomic Energy Authority,United Kingdom Atomic Energy Authority,09/11/2015,PERSONAL PROTECTIVE EQUIPMENT,FUSION,ARCO LTD,5100328989,115.73
United Kingdom Atomic Energy Authority,United Kingdom Atomic Energy Authority,11/11/2015,PERSONAL PROTECTIVE EQUIPMENT,FUSION,ARCO LTD,5100329010,119.20
United Kingdom Atomic Energy Authority,United Kingdom Atomic Energy Authority,26/10/2015,PERSONAL PROTECTIVE EQUIPMENT,FUSION,ARCO LTD,5100328277,119.98
United Kingdom Atomic Energy Authority,United Kingdom Atomic Energy Authority,18/11/2015,PERSONAL PROTECTIVE EQUIPMENT,FUSION,ARCO LTD,5100329268,131.15
United Kingdom Atomic Energy Authority,United Kingdom Atomic Energy Authority,18/11/2015,PERSONAL PROTECTIVE EQUIPMENT,FUSION,ARCO LTD,5100329267,136.99
United Kingdom Atomic Energy Authority,United Kingdom Atomic Energy Authority,11/11/2015,PERSONAL PROTECTIVE EQUIPMENT,FUSION,ARCO LTD,5100328957,203.30
United Kingdom Atomic Energy Authority,United Kingdom Atomic Energy Authority,26/10/2015,PERSONAL PROTECTIVE EQUIPMENT,FUSION,ARCO LTD,5100328401,228.63
United Kingdom Atomic Energy Authority,United Kingdom Atomic Energy Authority,02/11/2015,PERSONAL PROTECTIVE EQUIPMENT,FUSION,ARCO LTD,5100328590,250.32
United Kingdom Atomic Energy Authority,United Kingdom Atomic Energy Authority,09/11/2015,PERSONAL PROTECTIVE EQUIPMENT,FUSION,ARCO LTD,5100328834,255.17
United Kingdom Atomic Energy Authority,United Kingdom Atomic Energy Authority,09/11/2015,PERSONAL PROTECTIVE EQUIPMENT,FUSION,ARCO LTD,5100328983,299.70
United Kingdom Atomic Energy Authority,United Kingdom Atomic Energy Authority,18/11/2015,PERSONAL PROTECTIVE EQUIPMENT,FUSION,ARCO LTD,5100329270,383.84
United Kingdom Atomic Energy Authority,United Kingdom Atomic Energy Authority,02/11/2015,PERSONAL PROTECTIVE EQUIPMENT,SUPPORT SERVICES,ARCO LTD,5100328603,496.52
United Kingdom Atomic Energy Authority,United Kingdom Atomic Energy Authority,11/11/2015,PERSONAL PROTECTIVE EQUIPMENT,FUSION,ARCO LTD,5100328991,548.64
United Kingdom Atomic Energy Authority,United Kingdom Atomic Energy Authority,16/11/2015,PERSONAL PROTECTIVE EQUIPMENT,FUSION,ARCO LTD,5100329164,586.00
United Kingdom Atomic Energy Authority,United Kingdom Atomic Energy Authority,11/11/2015,PERSONAL PROTECTIVE EQUIPMENT,FUSION,ARCO LTD,5100328988,722.16
United Kingdom Atomic Energy Authority,United Kingdom Atomic Energy Authority,02/11/2015,PERSONAL PROTECTIVE EQUIPMENT,FUSION,ARCO LTD,5100328582,"1,501.92"
United Kingdom Atomic Energy Authority,United Kingdom Atomic Energy Authority,02/11/2015,PERSONAL PROTECTIVE EQUIPMENT,FUSION,ARCO LTD,5100328601,"2,142.80"
United Kingdom Atomic Energy Authority,United Kingdom Atomic Energy Authority,28/10/2015,STATIONERY,FUSION,ARTISAN LITHO PRINT  DESIGN,5100328067,398.00
United Kingdom Atomic Energy Authority,United Kingdom Atomic Energy Authority,09/11/2015,INSPECTION SERVICES,SUPPORT SERVICES,ASHDALE ENGINEERING,5100328828,300.00
United Kingdom Atomic Energy Authority,United Kingdom Atomic Energy Authority,09/11/2015,REPAIRS & MAINTENANCE,FUSION,ASTEC IT SOLUTIONS LTD,5100328851,"1,385.00"
United Kingdom Atomic Energy Authority,United Kingdom Atomic Energy Authority,02/11/2015,CATERING,PROPERTY,AVENANCE PLC,5100328669,"-2,717.66"
United Kingdom Atomic Energy Authority,United Kingdom Atomic Energy Authority,02/11/2015,CATERING,PROPERTY,AVENANCE PLC,5100328662,461.79
United Kingdom Atomic Energy Authority,United Kingdom Atomic Energy Authority,02/11/2015,CATERING,FUSION,AVENANCE PLC,5100328660,655.80
United Kingdom Atomic Energy Authority,United Kingdom Atomic Energy Authority,02/11/2015,CATERING,FUSION,AVENANCE PLC,5100328664,"1,324.96"
United Kingdom Atomic Energy Authority,United Kingdom Atomic Energy Authority,02/11/2015,CATERING,PROPERTY,AVENANCE PLC,5100328666,"4,136.55"
United Kingdom Atomic Energy Authority,United Kingdom Atomic Energy Authority,09/11/2015,MATERIALS & SPARES,FUSION,B&M Engineering Ltd,5100328918,30.00
United Kingdom Atomic Energy Authority,United Kingdom Atomic Energy Authority,09/11/2015,MATERIALS & SPARES,FUSION,B&M Engineering Ltd,5100328920,100.00
United Kingdom Atomic Energy Authority,United Kingdom Atomic Energy Authority,09/11/2015,MATERIALS & SPARES,FUSION,B&M Engineering Ltd,5100328917,110.00
United Kingdom Atomic Energy Authority,United Kingdom Atomic Energy Authority,09/11/2015,MATERIALS & SPARES,FUSION,B&M Engineering Ltd,5100328914,160.00
United Kingdom Atomic Energy Authority,United Kingdom Atomic Energy Authority,09/11/2015,MATERIALS & SPARES,FUSION,B&M Engineering Ltd,5100328919,170.00
United Kingdom Atomic Energy Authority,United Kingdom Atomic Energy Authority,09/11/2015,MATERIALS & SPARES,FUSION,B&M Engineering Ltd,5100328913,200.00
United Kingdom Atomic Energy Authority,United Kingdom Atomic Energy Authority,09/11/2015,MATERIALS & SPARES,FUSION,B&M Engineering Ltd,5100328915,920.00
United Kingdom Atomic Energy Authority,United Kingdom Atomic Energy Authority,09/11/2015,MATERIALS & SPARES,FUSION,B&M Engineering Ltd,5100328921,"2,130.00"
United Kingdom Atomic Energy Authority,United Kingdom Atomic Energy Authority,26/10/2015,PLANT SPARES,FUSION,BATT CABLES PLC,5100328286,255.00
United Kingdom Atomic Energy Authority,United Kingdom Atomic Energy Authority,09/11/2015,PLANT SPARES,FUSION,BATT CABLES PLC,5100328908,255.00
United Kingdom Atomic Energy Authority,United Kingdom Atomic Energy Authority,11/11/2015,COMPUTER REPAIRS,FUSION,BCAS LTD,5100329084,92.20
United Kingdom Atomic Energy Authority,United Kingdom Atomic Energy Authority,26/10/2015,PLANT SPARES,FUSION,Beacon Group International Ltd,5100328091,20.09
United Kingdom Atomic Energy Authority,United Kingdom Atomic Energy Authority,16/11/2015,REPAIRS & MAINTENANCE,FUSION,BEAVER 84 LIMITED,5100329249,-797.08
United Kingdom Atomic Energy Authority,United Kingdom Atomic Energy Authority,16/11/2015,REPAIRS & MAINTENANCE,FUSION,BEAVER 84 LIMITED,5100328805,797.08
United Kingdom Atomic Energy Authority,United Kingdom Atomic Energy Authority,16/11/2015,REPAIRS & MAINTENANCE,FUSION,BEAVER 84 LIMITED,5100329245,"4,839.45"
United Kingdom Atomic Energy Authority,United Kingdom Atomic Energy Authority,16/11/2015,PLANT SPARES,FUSION,BECKHOFF AUTOMATION LTD,5100329253,972.40
United Kingdom Atomic Energy Authority,United Kingdom Atomic Energy Authority,09/11/2015,PLANT SPARES,FUSION,BECKHOFF AUTOMATION LTD,5100328927,"1,679.69"
United Kingdom Atomic Energy Authority,United Kingdom Atomic Energy Authority,04/11/2015,PLANT & EQUIPMENT,FUSION,BELLEVILLE SPRINGS LTD,5100325057,682.34
United Kingdom Atomic Energy Authority,United Kingdom Atomic Energy Authority,18/11/2015,MATERIALS & SPARES,FUSION,Belzona Polymerics Ltd,1900061207, 228.80
United Kingdom Atomic Energy Authority,United Kingdom Atomic Energy Authority,04/11/2015,LEGAL FEES,SUPPORT SERVICES,BIGGART BAILLIE,5100328773,682.92
United Kingdom Atomic Energy Authority,United Kingdom Atomic Energy Authority,16/11/2015,HIRED STAFF,FUSION,BLACK DIAMOND UMBRELLA LTD,5100329074,30.56
United Kingdom Atomic Energy Authority,United Kingdom Atomic Energy Authority,16/11/2015,HIRED STAFF,FUSION,BLACK DIAMOND UMBRELLA LTD,5100329076,789.17
United Kingdom Atomic Energy Authority,United Kingdom Atomic Energy Authority,16/11/2015,HIRED STAFF,FUSION,BLACK DIAMOND UMBRELLA LTD,5100329075,851.63
United Kingdom Atomic Energy Authority,United Kingdom Atomic Energy Authority,16/11/2015,HIRED STAFF,FUSION,BLACK DIAMOND UMBRELLA LTD,5100329077,851.63
United Kingdom Atomic Energy Authority,United Kingdom Atomic Energy Authority,16/11/2015,HIRED STAFF,FUSION,BLACK DIAMOND UMBRELLA LTD,5100329078,851.63
United Kingdom Atomic Energy Authority,United Kingdom Atomic Energy Authority,16/11/2015,HIRED STAFF,FUSION,BLACK DIAMOND UMBRELLA LTD,5100329083,851.63
United Kingdom Atomic Energy Authority,United Kingdom Atomic Energy Authority,16/11/2015,HIRED STAFF,FUSION,BLACK DIAMOND UMBRELLA LTD,5100329073,"4,684.94"
United Kingdom Atomic Energy Authority,United Kingdom Atomic Energy Authority,04/11/2015,LEGAL FEES,PROPERTY,Blake Morgan LLP,1900061183, 20.00
United Kingdom Atomic Energy Authority,United Kingdom Atomic Energy Authority,09/11/2015,IT EQUIPMENT NON CAPITAL,FUSION,BLUEFORT SECURITY,5100328801,"6,972.00"
United Kingdom Atomic Energy Authority,United Kingdom Atomic Energy Authority,26/10/2015,PROFESSIONAL SERVICES,FUSION,BNS NUCLEAR SERVICES,5100328125,"35,225.12"
United Kingdom Atomic Energy Authority,United Kingdom Atomic Energy Authority,09/11/2015,PROFESSIONAL SERVICES,FUSION,BNS NUCLEAR SERVICES,5100328794,"66,834.78"
United Kingdom Atomic Energy Authority,United Kingdom Atomic Energy Authority,20/11/2015,GASES,FUSION,BOC LTD,5100329541,-50.05
United Kingdom Atomic Energy Authority,United Kingdom Atomic Energy Authority,02/11/2015,GASES,FUSION,BOC LTD,5100328479,9.98
United Kingdom Atomic Energy Authority,United Kingdom Atomic Energy Authority,16/11/2015,GASES,FUSION,BOC LTD,5100328688,19.53
United Kingdom Atomic Energy Authority,United Kingdom Atomic Energy Authority,09/11/2015,GASES,FUSION,BOC LTD,5100328937,38.48
United Kingdom Atomic Energy Authority,United Kingdom Atomic Energy Authority,02/11/2015,GASES,FUSION,BOC LTD,5100328476,41.10
United Kingdom Atomic Energy Authority,United Kingdom Atomic Energy Authority,09/11/2015,GASES,FUSION,BOC LTD,5100328941,46.89
United Kingdom Atomic Energy Authority,United Kingdom Atomic Energy Authority,02/11/2015,GASES,FUSION,BOC LTD,5100328441,50.05
United Kingdom Atomic Energy Authority,United Kingdom Atomic Energy Authority,20/11/2015,GASES,FUSION,BOC LTD,5100329543,50.05
United Kingdom Atomic Energy Authority,United Kingdom Atomic Energy Authority,09/11/2015,GASES,FUSION,BOC LTD,5100328942,57.72
United Kingdom Atomic Energy Authority,United Kingdom Atomic Energy Authority,02/11/2015,GASES,FUSION,BOC LTD,5100328467,86.11
United Kingdom Atomic Energy Authority,United Kingdom Atomic Energy Authority,02/11/2015,GASES,FUSION,BOC LTD,5100328687,101.40
United Kingdom Atomic Energy Authority,United Kingdom Atomic Energy Authority,26/10/2015,GASES,FUSION,BOC LTD,5100327899,130.91
United Kingdom Atomic Energy Authority,United Kingdom Atomic Energy Authority,09/11/2015,GASES,FUSION,BOC LTD,5100328931,134.54
United Kingdom Atomic Energy Authority,United Kingdom Atomic Energy Authority,28/10/2015,GASES,FUSION,BOC LTD,5100327507,155.07
United Kingdom Atomic Energy Authority,United Kingdom Atomic Energy Authority,16/11/2015,GASES,FUSION,BOC LTD,5100328936,169.50
United Kingdom Atomic Energy Authority,United Kingdom Atomic Energy Authority,09/11/2015,GASES,FUSION,BOC LTD,5100328935,195.97
United Kingdom Atomic Energy Authority,United Kingdom Atomic Energy Authority,09/11/2015,GASES,FUSION,BOC LTD,5100328966,204.34
United Kingdom Atomic Energy Authority,United Kingdom Atomic Energy Authority,09/11/2015,GASES,FUSION,BOC LTD,5100328938,230.87
United Kingdom Atomic Energy Authority,United Kingdom Atomic Energy Authority,16/11/2015,GASES,FUSION,BOC LTD,5100328939,270.47
United Kingdom Atomic Energy Authority,United Kingdom Atomic Energy Authority,09/11/2015,GASES,FUSION,BOC LTD,5100328934,271.42
United Kingdom Atomic Energy Authority,United Kingdom Atomic Energy Authority,09/11/2015,GASES,FUSION,BOC LTD,5100328932,301.71
United Kingdom Atomic Energy Authority,United Kingdom Atomic Energy Authority,26/10/2015,GASES,FUSION,BOC LTD,5100328374,340.88
United Kingdom Atomic Energy Authority,United Kingdom Atomic Energy Authority,09/11/2015,GASES,FUSION,BOC LTD,5100328940,352.19
United Kingdom Atomic Energy Authority,United Kingdom Atomic Energy Authority,26/10/2015,GASES,FUSION,BOC LTD,5100327504,419.10
United Kingdom Atomic Energy Authority,United Kingdom Atomic Energy Authority,02/11/2015,GASES,FUSION,BOC LTD,5100328470,"1,119.60"
United Kingdom Atomic Energy Authority,United Kingdom Atomic Energy Authority,02/11/2015,GASES,FUSION,BOC LTD,5100328474,"1,635.15"
United Kingdom Atomic Energy Authority,United Kingdom Atomic Energy Authority,26/10/2015,GASES,FUSION,BOC LTD,5100328184,"6,367.64"
United Kingdom Atomic Energy Authority,United Kingdom Atomic Energy Authority,26/10/2015,GASES,FUSION,BOC LTD,5100328188,"9,551.46"
United Kingdom Atomic Energy Authority,United Kingdom Atomic Energy Authority,28/10/2015,GASES,FUSION,BOC LTD,5100327426,"11,905.03"
United Kingdom Atomic Energy Authority,United Kingdom Atomic Energy Authority,04/11/2015,ARCHIVING & RECORDS,SUPPORT SERVICES,BOX-IT UK LTD,5100328465,"1,978.78"
United Kingdom Atomic Energy Authority,United Kingdom Atomic Energy Authority,09/11/2015,PLANT SPARES,FUSION,BRITE PRECISION,5100329006,"-1,378.00"
United Kingdom Atomic Energy Authority,United Kingdom Atomic Energy Authority,26/10/2015,PLANT SPARES,FUSION,BRITE PRECISION,5100328110,340.00
United Kingdom Atomic Energy Authority,United Kingdom Atomic Energy Authority,11/11/2015,PLANT SPARES,FUSION,BRITE PRECISION,5100329004,"1,360.00"
United Kingdom Atomic Energy Authority,United Kingdom Atomic Energy Authority,09/11/2015,PLANT SPARES,FUSION,BRITE PRECISION,5100328963,"1,378.00"
United Kingdom Atomic Energy Authority,United Kingdom Atomic Energy Authority,16/11/2015,CONSUMABLES,FUSION,BRITISH SALT LTD,5100329349,"2,793.15"
United Kingdom Atomic Energy Authority,United Kingdom Atomic Energy Authority,02/11/2015,F&F,SUPPORT SERVICES,Broadstock Office Furniture Ltd,5100328454,14.00
United Kingdom Atomic Energy Authority,United Kingdom Atomic Energy Authority,02/11/2015,F&F,SUPPORT SERVICES,Broadstock Office Furniture Ltd,5100328456,14.00
United Kingdom Atomic Energy Authority,United Kingdom Atomic Energy Authority,02/11/2015,F&F,SUPPORT SERVICES,Broadstock Office Furniture Ltd,5100328447,86.00
United Kingdom Atomic Energy Authority,United Kingdom Atomic Energy Authority,16/11/2015,F&F,SUPPORT SERVICES,Broadstock Office Furniture Ltd,5100329277,105.00
United Kingdom Atomic Energy Authority,United Kingdom Atomic Energy Authority,02/11/2015,F&F,SUPPORT SERVICES,Broadstock Office Furniture Ltd,5100328443,212.00
United Kingdom Atomic Energy Authority,United Kingdom Atomic Energy Authority,02/11/2015,F&F,SUPPORT SERVICES,Broadstock Office Furniture Ltd,5100328451,344.00
United Kingdom Atomic Energy Authority,United Kingdom Atomic Energy Authority,02/11/2015,F&F,SUPPORT SERVICES,Broadstock Office Furniture Ltd,5100328453,344.00
United Kingdom Atomic Energy Authority,United Kingdom Atomic Energy Authority,02/11/2015,F&F,SUPPORT SERVICES,Broadstock Office Furniture Ltd,5100328716,576.00
United Kingdom Atomic Energy Authority,United Kingdom Atomic Energy Authority,02/11/2015,MATERIALS & SPARES,FUSION,BRUNEL & KJAER UK LTD,5100328686,"6,585.10"
United Kingdom Atomic Energy Authority,United Kingdom Atomic Energy Authority,18/11/2015,PROFESSIONAL SERVICES,PROPERTY,BSP CONSULTING,5100328964,845.00
United Kingdom Atomic Energy Authority,United Kingdom Atomic Energy Authority,26/10/2015,MATERIALS & SPARES,FUSION,BSS OXFORD,5100328367,62.48
United Kingdom Atomic Energy Authority,United Kingdom Atomic Energy Authority,09/11/2015,PERSONAL PROTECTIVE EQUIPMENT,FUSION,BUCK & HICKMAN LTD,5100328911,4.95
United Kingdom Atomic Energy Authority,United Kingdom Atomic Energy Authority,09/11/2015,PERSONAL PROTECTIVE EQUIPMENT,FUSION,BUCK & HICKMAN LTD,5100328912,9.16
United Kingdom Atomic Energy Authority,United Kingdom Atomic Energy Authority,16/11/2015,PERSONAL PROTECTIVE EQUIPMENT,FUSION,BUCK & HICKMAN LTD,5100329345,117.40
United Kingdom Atomic Energy Authority,United Kingdom Atomic Energy Authority,02/11/2015,PERSONAL PROTECTIVE EQUIPMENT,FUSION,BUCK & HICKMAN LTD,5100328699,158.09
United Kingdom Atomic Energy Authority,United Kingdom Atomic Energy Authority,02/11/2015,MATERIALS & SPARES,FUSION,BUDGET FORKTRUCKS LTD,5100328562,312.00
United Kingdom Atomic Energy Authority,United Kingdom Atomic Energy Authority,02/11/2015,MATERIALS & SPARES,FUSION,BUDGET FORKTRUCKS LTD,5100328561,342.33
United Kingdom Atomic Energy Authority,United Kingdom Atomic Energy Authority,02/11/2015,MATERIALS & SPARES,FUSION,BUDGET FORKTRUCKS LTD,5100328563,390.00
United Kingdom Atomic Energy Authority,United Kingdom Atomic Energy Authority,02/11/2015,MATERIALS & SPARES,FUSION,BUDGET FORKTRUCKS LTD,5100328564,390.00
United Kingdom Atomic Energy Authority,United Kingdom Atomic Energy Authority,02/11/2015,MATERIALS & SPARES,FUSION,BUDGET FORKTRUCKS LTD,5100328557,390.00
United Kingdom Atomic Energy Authority,United Kingdom Atomic Energy Authority,02/11/2015,MATERIALS & SPARES,FUSION,BUDGET FORKTRUCKS LTD,5100328558,793.00
United Kingdom Atomic Energy Authority,United Kingdom Atomic Energy Authority,16/11/2015,CATERING SUPPLIES,SUPPORT SERVICES,BWT UK LTD,5100329105,367.20
United Kingdom Atomic Energy Authority,United Kingdom Atomic Energy Authority,16/11/2015,CATERING SUPPLIES,SUPPORT SERVICES,BWT UK LTD,5100329104,"1,158.81"
United Kingdom Atomic Energy Authority,United Kingdom Atomic Energy Authority,09/11/2015,MATERIALS & SPARES,FUSION,Cablecraft Ltd,5100328676,31.78
United Kingdom Atomic Energy Authority,United Kingdom Atomic Energy Authority,16/11/2015,TELECOMMUNICATIONS,FUSION,CABLEWISE,5100329237,265.00
United Kingdom Atomic Energy Authority,United Kingdom Atomic Energy Authority,11/11/2015,MATERIALS & SPARES,FUSION,CANBERRA UK LTD,5100328910,"28,350.00"
United Kingdom Atomic Energy Authority,United Kingdom Atomic Energy Authority,18/11/2015,HEALTH PHYSICS,SUPPORT SERVICES,Capital business Services Ltd,5100329454,"2,286.59"
United Kingdom Atomic Energy Authority,United Kingdom Atomic Energy Authority,09/11/2015,HEALTH PHYSICS,SUPPORT SERVICES,Capital business Services Ltd,5100328734,"3,929.28"
United Kingdom Atomic Energy Authority,United Kingdom Atomic Energy Authority,09/11/2015,CONSUMABLES,FUSION,CARILLON INDUSTRIAL SERVICES LTD,5100328998,57.31
United Kingdom Atomic Energy Authority,United Kingdom Atomic Energy Authority,09/11/2015,CONSUMABLES,FUSION,CARILLON INDUSTRIAL SERVICES LTD,5100328751,317.98
United Kingdom Atomic Energy Authority,United Kingdom Atomic Energy Authority,09/11/2015,CONSUMABLES,FUSION,CARILLON INDUSTRIAL SERVICES LTD,5100328753,396.04
United Kingdom Atomic Energy Authority,United Kingdom Atomic Energy Authority,16/11/2015,MATERIALS & SPARES,FUSION,CHANNEL SAFETY SERVICES LTD,5100329329,-177.36
United Kingdom Atomic Energy Authority,United Kingdom Atomic Energy Authority,16/11/2015,MATERIALS & SPARES,FUSION,CHANNEL SAFETY SERVICES LTD,5100327715,"1,006.50"
United Kingdom Atomic Energy Authority,United Kingdom Atomic Energy Authority,03/11/2015,REPAIRS & MAINTENANCE,FUSION,CHUBB ELECTRONIC SECURITY LTD,5100328792,-144.50
United Kingdom Atomic Energy Authority,United Kingdom Atomic Energy Authority,03/11/2015,REPAIRS & MAINTENANCE,FUSION,CHUBB ELECTRONIC SECURITY LTD,5100328793,144.50
United Kingdom Atomic Energy Authority,United Kingdom Atomic Energy Authority,02/11/2015,REPAIRS & MAINTENANCE,FUSION,CHUBB ELECTRONIC SECURITY LTD,5100328373,144.50
United Kingdom Atomic Energy Authority,United Kingdom Atomic Energy Authority,18/11/2015,PROFESSIONAL SERVICES,SUPPORT SERVICES,CIPFA Business Limited ,1900061205, 825.00
United Kingdom Atomic Energy Authority,United Kingdom Atomic Energy Authority,09/11/2015,MATERIALS & SPARES,FUSION,CITY ENGINEERING LTD,5100328994,412.52
United Kingdom Atomic Energy Authority,United Kingdom Atomic Energy Authority,09/11/2015,LAUNDRY,FUSION,CLEAN LINEN SERVICES LTD,5100328748,63.08
United Kingdom Atomic Energy Authority,United Kingdom Atomic Energy Authority,02/11/2015,UTILITIES/GAS,PROPERTY,COFELY LTD,5100328602,357.63
United Kingdom Atomic Energy Authority,United Kingdom Atomic Energy Authority,02/11/2015,UTILITIES/GAS,PROPERTY,COFELY LTD,5100328605,"9,794.29"
United Kingdom Atomic Energy Authority,United Kingdom Atomic Energy Authority,26/10/2015,MATERIALS & SPARES,FUSION,COMPLETE PCB SERVICES LTD,5100328261,"1,015.80"
United Kingdom Atomic Energy Authority,United Kingdom Atomic Energy Authority,09/11/2015,PLANT SPARES,FUSION,CONDEC INDUSTRIAL MAINTENANCE,5100328867,520.00
United Kingdom Atomic Energy Authority,United Kingdom Atomic Energy Authority,26/10/2015,MATERIALS & SPARES,FUSION,CPC PLC,5100328388,42.73
United Kingdom Atomic Energy Authority,United Kingdom Atomic Energy Authority,16/11/2015,PLANT & EQUIPMENT,FUSION,Creative Instrumentation Ltd,1900061204," 2,126.47"
United Kingdom Atomic Energy Authority,United Kingdom Atomic Energy Authority,02/11/2015,MATERIALS & SPARES,FUSION,CROMWELL LTD,5100328704,3.00
United Kingdom Atomic Energy Authority,United Kingdom Atomic Energy Authority,26/10/2015,MATERIALS & SPARES,FUSION,CROMWELL LTD,5100328281,8.59
United Kingdom Atomic Energy Authority,United Kingdom Atomic Energy Authority,02/11/2015,MATERIALS & SPARES,FUSION,CROMWELL LTD,5100328701,10.38
United Kingdom Atomic Energy Authority,United Kingdom Atomic Energy Authority,11/11/2015,MATERIALS & SPARES,FUSION,CROMWELL LTD,5100328068,13.48
United Kingdom Atomic Energy Authority,United Kingdom Atomic Energy Authority,16/11/2015,MATERIALS & SPARES,FUSION,CROMWELL LTD,5100329071,14.66
United Kingdom Atomic Energy Authority,United Kingdom Atomic Energy Authority,02/11/2015,MATERIALS & SPARES,FUSION,CROMWELL LTD,5100328703,17.80
United Kingdom Atomic Energy Authority,United Kingdom Atomic Energy Authority,16/11/2015,MATERIALS & SPARES,FUSION,CROMWELL LTD,5100329064,22.88
United Kingdom Atomic Energy Authority,United Kingdom Atomic Energy Authority,16/11/2015,MATERIALS & SPARES,FUSION,CROMWELL LTD,5100329067,31.45
United Kingdom Atomic Energy Authority,United Kingdom Atomic Energy Authority,16/11/2015,MATERIALS & SPARES,FUSION,CROMWELL LTD,5100329068,34.35
United Kingdom Atomic Energy Authority,United Kingdom Atomic Energy Authority,26/10/2015,MATERIALS & SPARES,FUSION,CROMWELL LTD,5100328282,40.44
United Kingdom Atomic Energy Authority,United Kingdom Atomic Energy Authority,02/11/2015,MATERIALS & SPARES,FUSION,CROMWELL LTD,5100328705,57.29
United Kingdom Atomic Energy Authority,United Kingdom Atomic Energy Authority,02/11/2015,MATERIALS & SPARES,FUSION,CROMWELL LTD,5100328706,68.08
United Kingdom Atomic Energy Authority,United Kingdom Atomic Energy Authority,16/11/2015,MATERIALS & SPARES,FUSION,CROMWELL LTD,5100329069,91.38
United Kingdom Atomic Energy Authority,United Kingdom Atomic Energy Authority,16/11/2015,MATERIALS & SPARES,FUSION,CROMWELL LTD,5100329065,95.70
United Kingdom Atomic Energy Authority,United Kingdom Atomic Energy Authority,16/11/2015,MATERIALS & SPARES,FUSION,CROMWELL LTD,5100329066,136.85
United Kingdom Atomic Energy Authority,United Kingdom Atomic Energy Authority,16/11/2015,MATERIALS & SPARES,FUSION,CROMWELL LTD,5100329070,143.84
United Kingdom Atomic Energy Authority,United Kingdom Atomic Energy Authority,26/10/2015,MATERIALS & SPARES,FUSION,CROMWELL LTD,5100328283,184.95
United Kingdom Atomic Energy Authority,United Kingdom Atomic Energy Authority,26/10/2015,MATERIALS & SPARES,FUSION,CROMWELL LTD,5100328285,189.36
United Kingdom Atomic Energy Authority,United Kingdom Atomic Energy Authority,26/10/2015,MATERIALS & SPARES,FUSION,CROMWELL LTD,5100328279,435.48
United Kingdom Atomic Energy Authority,United Kingdom Atomic Energy Authority,26/10/2015,MATERIALS & SPARES,FUSION,CROMWELL LTD,5100328284,638.40
United Kingdom Atomic Energy Authority,United Kingdom Atomic Energy Authority,28/10/2015,PROFESSIONAL SERVICES,SUPPORT SERVICES,CSC COMPUTER SERVICES,5100328364,"4,318.01"
United Kingdom Atomic Energy Authority,United Kingdom Atomic Energy Authority,09/11/2015,PLANT SPARES,FUSION,CUTWEL LTD,5100328677,123.51
United Kingdom Atomic Energy Authority,United Kingdom Atomic Energy Authority,02/11/2015,PLANT SPARES,FUSION,CUTWEL LTD,5100328619,141.75
United Kingdom Atomic Energy Authority,United Kingdom Atomic Energy Authority,26/10/2015,PLANT SPARES,FUSION,CUTWEL LTD,5100328207,342.00
United Kingdom Atomic Energy Authority,United Kingdom Atomic Energy Authority,28/10/2015,BUILDING REPAIRS,FUSION,D CLOUGH LTD,5100328528,"15,000.00"
United Kingdom Atomic Energy Authority,United Kingdom Atomic Energy Authority,09/11/2015,DELIVERY & CARRIAGE,FUSION,D Furnell Plant Services Ltd,1900061197," 1,270.00"
United Kingdom Atomic Energy Authority,United Kingdom Atomic Energy Authority,04/11/2015,MATERIALS & SPARES,FUSION,DHL International (UK) Ltd,1900061185, 15.33
United Kingdom Atomic Energy Authority,United Kingdom Atomic Energy Authority,04/11/2015,PLANT & EQUIPMENT,FUSION,DIGIKEY CORPORATION,5100328366,58.84
United Kingdom Atomic Energy Authority,United Kingdom Atomic Energy Authority,16/11/2015,MATERIALS & SPARES,FUSION,DURBIN METAL INDUSTRIES LTD,5100329024,15.00
United Kingdom Atomic Energy Authority,United Kingdom Atomic Energy Authority,11/11/2015,MATERIALS & SPARES,FUSION,DURBIN METAL INDUSTRIES LTD,5100329049,15.00
United Kingdom Atomic Energy Authority,United Kingdom Atomic Energy Authority,16/11/2015,MATERIALS & SPARES,FUSION,DURBIN METAL INDUSTRIES LTD,5100329194,91.00
United Kingdom Atomic Energy Authority,United Kingdom Atomic Energy Authority,26/10/2015,ELECTRICITY,FUSION,E.ON (UK) Ltd,5100328323,"10,115.74"
United Kingdom Atomic Energy Authority,United Kingdom Atomic Energy Authority,16/11/2015,ELECTRICITY,FUSION,E.ON (UK) Ltd,5100329094,"325,345.37"
United Kingdom Atomic Energy Authority,United Kingdom Atomic Energy Authority,16/11/2015,UTILITIES/ELECTRICITY,PROPERTY,EDF ENERGY,5100329126,57.01
United Kingdom Atomic Energy Authority,United Kingdom Atomic Energy Authority,16/11/2015,UTILITIES/ELECTRICITY,PROPERTY,EDF ENERGY,5100329131,260.17
United Kingdom Atomic Energy Authority,United Kingdom Atomic Energy Authority,16/11/2015,UTILITIES/ELECTRICITY,PROPERTY,EDF ENERGY,5100329133,902.56
United Kingdom Atomic Energy Authority,United Kingdom Atomic Energy Authority,16/11/2015,UTILITIES/ELECTRICITY,PROPERTY,EDF ENERGY,5100329129,"2,021.24"
United Kingdom Atomic Energy Authority,United Kingdom Atomic Energy Authority,16/11/2015,UTILITIES/ELECTRICITY,PROPERTY,EDF ENERGY,5100329121,"3,203.98"
United Kingdom Atomic Energy Authority,United Kingdom Atomic Energy Authority,16/11/2015,UTILITIES/ELECTRICITY,PROPERTY,EDF ENERGY,5100329132,"3,234.39"
United Kingdom Atomic Energy Authority,United Kingdom Atomic Energy Authority,16/11/2015,UTILITIES/ELECTRICITY,PROPERTY,EDF ENERGY,5100329124,"8,696.36"
United Kingdom Atomic Energy Authority,United Kingdom Atomic Energy Authority,16/11/2015,UTILITIES/ELECTRICITY,PROPERTY,EDF ENERGY,5100329130,"20,229.80"
United Kingdom Atomic Energy Authority,United Kingdom Atomic Energy Authority,16/11/2015,UTILITIES/ELECTRICITY,PROPERTY,EDF ENERGY,5100329119,"29,122.94"
United Kingdom Atomic Energy Authority,United Kingdom Atomic Energy Authority,28/10/2015,PLANT & EQUIPMENT,FUSION,EDMUNDSON ELECTRICALS LTD,5100328329,17.73
United Kingdom Atomic Energy Authority,United Kingdom Atomic Energy Authority,02/11/2015,PLANT & EQUIPMENT,FUSION,EDMUNDSON ELECTRICALS LTD,5100328592,17.76
United Kingdom Atomic Energy Authority,United Kingdom Atomic Energy Authority,09/11/2015,PLANT & EQUIPMENT,FUSION,EDMUNDSON ELECTRICALS LTD,5100328871,65.37
United Kingdom Atomic Energy Authority,United Kingdom Atomic Energy Authority,16/11/2015,PLANT & EQUIPMENT,FUSION,EDMUNDSON ELECTRICALS LTD,5100329093,82.82
United Kingdom Atomic Energy Authority,United Kingdom Atomic Energy Authority,09/11/2015,PLANT & EQUIPMENT,FUSION,EDMUNDSON ELECTRICALS LTD,5100328756,89.52
United Kingdom Atomic Energy Authority,United Kingdom Atomic Energy Authority,09/11/2015,PLANT & EQUIPMENT,FUSION,EDMUNDSON ELECTRICALS LTD,5100328589,96.53
United Kingdom Atomic Energy Authority,United Kingdom Atomic Energy Authority,02/11/2015,PLANT & EQUIPMENT,FUSION,EDMUNDSON ELECTRICALS LTD,5100328459,96.72
United Kingdom Atomic Energy Authority,United Kingdom Atomic Energy Authority,09/11/2015,PLANT & EQUIPMENT,FUSION,EDMUNDSON ELECTRICALS LTD,5100328328,100.74
United Kingdom Atomic Energy Authority,United Kingdom Atomic Energy Authority,18/11/2015,PLANT & EQUIPMENT,FUSION,EDMUNDSON ELECTRICALS LTD,5100329363,106.44
United Kingdom Atomic Energy Authority,United Kingdom Atomic Energy Authority,09/11/2015,PLANT & EQUIPMENT,FUSION,EDMUNDSON ELECTRICALS LTD,5100328869,127.74
United Kingdom Atomic Energy Authority,United Kingdom Atomic Energy Authority,09/11/2015,PLANT & EQUIPMENT,FUSION,EDMUNDSON ELECTRICALS LTD,5100328461,156.92
United Kingdom Atomic Energy Authority,United Kingdom Atomic Energy Authority,16/11/2015,PLANT & EQUIPMENT,FUSION,EDMUNDSON ELECTRICALS LTD,5100329238,218.55
United Kingdom Atomic Energy Authority,United Kingdom Atomic Energy Authority,16/11/2015,PLANT & EQUIPMENT,FUSION,EDMUNDSON ELECTRICALS LTD,5100329092,219.28
United Kingdom Atomic Energy Authority,United Kingdom Atomic Energy Authority,09/11/2015,PLANT & EQUIPMENT,FUSION,EDMUNDSON ELECTRICALS LTD,5100328761,238.59
United Kingdom Atomic Energy Authority,United Kingdom Atomic Energy Authority,26/10/2015,PLANT & EQUIPMENT,FUSION,EDMUNDSON ELECTRICALS LTD,5100328132,243.50
United Kingdom Atomic Energy Authority,United Kingdom Atomic Energy Authority,09/11/2015,PLANT & EQUIPMENT,FUSION,EDMUNDSON ELECTRICALS LTD,5100328766,243.81
United Kingdom Atomic Energy Authority,United Kingdom Atomic Energy Authority,09/11/2015,PLANT & EQUIPMENT,FUSION,EDMUNDSON ELECTRICALS LTD,5100328928,292.44
United Kingdom Atomic Energy Authority,United Kingdom Atomic Energy Authority,09/11/2015,PLANT & EQUIPMENT,FUSION,EDMUNDSON ELECTRICALS LTD,5100328870,296.20
United Kingdom Atomic Energy Authority,United Kingdom Atomic Energy Authority,09/11/2015,PLANT & EQUIPMENT,FUSION,EDMUNDSON ELECTRICALS LTD,5100328768,304.00
United Kingdom Atomic Energy Authority,United Kingdom Atomic Energy Authority,09/11/2015,PLANT & EQUIPMENT,FUSION,EDMUNDSON ELECTRICALS LTD,5100328327,309.46
United Kingdom Atomic Energy Authority,United Kingdom Atomic Energy Authority,09/11/2015,PLANT & EQUIPMENT,FUSION,EDMUNDSON ELECTRICALS LTD,5100328754,320.73
United Kingdom Atomic Energy Authority,United Kingdom Atomic Energy Authority,02/11/2015,PLANT & EQUIPMENT,FUSION,EDMUNDSON ELECTRICALS LTD,5100328584,400.57
United Kingdom Atomic Energy Authority,United Kingdom Atomic Energy Authority,09/11/2015,PLANT & EQUIPMENT,FUSION,EDMUNDSON ELECTRICALS LTD,5100328765,471.68
United Kingdom Atomic Energy Authority,United Kingdom Atomic Energy Authority,28/10/2015,PLANT & EQUIPMENT,FUSION,EDMUNDSON ELECTRICALS LTD,5100328391,902.86
United Kingdom Atomic Energy Authority,United Kingdom Atomic Energy Authority,11/11/2015,PLANT & EQUIPMENT,FUSION,EDMUNDSON ELECTRICALS LTD,5100327887,"1,006.70"
United Kingdom Atomic Energy Authority,United Kingdom Atomic Energy Authority,09/11/2015,PLANT & EQUIPMENT,FUSION,EDWARDS LIMITED,5100328865,"-3,295.00"
United Kingdom Atomic Energy Authority,United Kingdom Atomic Energy Authority,09/11/2015,PLANT & EQUIPMENT,FUSION,EDWARDS LIMITED,5100328863,"-1,960.00"
United Kingdom Atomic Energy Authority,United Kingdom Atomic Energy Authority,09/11/2015,PLANT & EQUIPMENT,FUSION,EDWARDS LIMITED,5100328884,-865.00
United Kingdom Atomic Energy Authority,United Kingdom Atomic Energy Authority,09/11/2015,PLANT & EQUIPMENT,FUSION,EDWARDS LIMITED,5100328864,-495.00
United Kingdom Atomic Energy Authority,United Kingdom Atomic Energy Authority,09/11/2015,PLANT & EQUIPMENT,FUSION,EDWARDS LIMITED,5100328862,-85.00
United Kingdom Atomic Energy Authority,United Kingdom Atomic Energy Authority,09/11/2015,PLANT & EQUIPMENT,FUSION,EDWARDS LIMITED,5100328886,-35.00
United Kingdom Atomic Energy Authority,United Kingdom Atomic Energy Authority,09/11/2015,PLANT & EQUIPMENT,FUSION,EDWARDS LIMITED,5100324893,"6,735.00"
United Kingdom Atomic Energy Authority,United Kingdom Atomic Energy Authority,06/11/2015,CONFERENCES/MEETINGS,FUSION,EFPW 2015 Nuclear Society of Slovenia,1900061194, 214.70
United Kingdom Atomic Energy Authority,United Kingdom Atomic Energy Authority,06/11/2015,CONFERENCES/MEETINGS,FUSION,EFPW 2015 Nuclear Society of Slovenia,1900061192, 236.17
United Kingdom Atomic Energy Authority,United Kingdom Atomic Energy Authority,06/11/2015,CONFERENCES/MEETINGS,FUSION,EFPW 2015 Nuclear Society of Slovenia,1900061193," 1,331.14"
United Kingdom Atomic Energy Authority,United Kingdom Atomic Energy Authority,26/10/2015,MATERIALS & SPARES,FUSION,ELECTRICAL OIL SERVICES LTD,5100328375,695.71
United Kingdom Atomic Energy Authority,United Kingdom Atomic Energy Authority,04/11/2015,MATERIALS & SPARES,FUSION,ELECTRICAL OIL SERVICES LTD,5100328698,784.00
United Kingdom Atomic Energy Authority,United Kingdom Atomic Energy Authority,04/11/2015,PUBLICATIONS,SUPPORT SERVICES,ELSEVIER SCIENCE B.V,5100327999,"20,024.14"
United Kingdom Atomic Energy Authority,United Kingdom Atomic Energy Authority,30/10/2015,CONFERENCES/MEETINGS,FUSION,Visitor Expenses,1900061179, 77.60
United Kingdom Atomic Energy Authority,United Kingdom Atomic Energy Authority,07/11/2015,ROAD TRAVEL,FUSION,EMPLOYEE EXPENSES,100786071,1.40
United Kingdom Atomic Energy Authority,United Kingdom Atomic Energy Authority,07/11/2015,RAIL TRAVEL,FUSION,EMPLOYEE EXPENSES,100786053,1.50
United Kingdom Atomic Energy Authority,United Kingdom Atomic Energy Authority,12/11/2015,SUBSISTENCE,FUSION,EMPLOYEE EXPENSES,100786214,1.50
United Kingdom Atomic Energy Authority,United Kingdom Atomic Energy Authority,21/11/2015,SUBSISTENCE,FUSION,EMPLOYEE EXPENSES,100789043,1.75
United Kingdom Atomic Energy Authority,United Kingdom Atomic Energy Authority,07/11/2015,SUBSISTENCE,FUSION,EMPLOYEE EXPENSES,100786050,1.78
United Kingdom Atomic Energy Authority,United Kingdom Atomic Energy Authority,07/11/2015,SUBSISTENCE,FUSION,EMPLOYEE EXPENSES,100786058,1.83
United Kingdom Atomic Energy Authority,United Kingdom Atomic Energy Authority,21/11/2015,SUBSISTENCE,FUSION,EMPLOYEE EXPENSES,100789021,1.83
United Kingdom Atomic Energy Authority,United Kingdom Atomic Energy Authority,21/11/2015,SUBSISTENCE,FUSION,EMPLOYEE EXPENSES,100789038,1.83
United Kingdom Atomic Energy Authority,United Kingdom Atomic Energy Authority,21/11/2015,RAIL TRAVEL,FUSION,EMPLOYEE EXPENSES,100789011,1.92
United Kingdom Atomic Energy Authority,United Kingdom Atomic Energy Authority,07/11/2015,SUBSISTENCE,FUSION,EMPLOYEE EXPENSES,100786055,1.96
United Kingdom Atomic Energy Authority,United Kingdom Atomic Energy Authority,07/11/2015,ROAD TRAVEL,SUPPORT SERVICES,EMPLOYEE EXPENSES,100786074,2.00
United Kingdom Atomic Energy Authority,United Kingdom Atomic Energy Authority,21/11/2015,RAIL TRAVEL,FUSION,EMPLOYEE EXPENSES,100788985,2.06
United Kingdom Atomic Energy Authority,United Kingdom Atomic Energy Authority,12/11/2015,ROAD TRAVEL,FUSION,EMPLOYEE EXPENSES,100786205,2.26
United Kingdom Atomic Energy Authority,United Kingdom Atomic Energy Authority,07/11/2015,ROAD TRAVEL,FUSION,EMPLOYEE EXPENSES,100786066,2.29
United Kingdom Atomic Energy Authority,United Kingdom Atomic Energy Authority,07/11/2015,SUBSISTENCE,FUSION,EMPLOYEE EXPENSES,100786067,2.46
United Kingdom Atomic Energy Authority,United Kingdom Atomic Energy Authority,07/11/2015,SUBSISTENCE,FUSION,EMPLOYEE EXPENSES,100786050,2.50
United Kingdom Atomic Energy Authority,United Kingdom Atomic Energy Authority,07/11/2015,ROAD TRAVEL,SUPPORT SERVICES,EMPLOYEE EXPENSES,100786051,2.92
United Kingdom Atomic Energy Authority,United Kingdom Atomic Energy Authority,07/11/2015,OTHER EMPLOYEE EXPENSES,FUSION,EMPLOYEE EXPENSES,100786049,3.00
United Kingdom Atomic Energy Authority,United Kingdom Atomic Energy Authority,30/10/2015,ROAD TRAVEL,SUPPORT SERVICES,EMPLOYEE EXPENSES,100785960,3.00
United Kingdom Atomic Energy Authority,United Kingdom Atomic Energy Authority,12/11/2015,ROAD TRAVEL,FUSION,EMPLOYEE EXPENSES,100786218,3.10
United Kingdom Atomic Energy Authority,United Kingdom Atomic Energy Authority,07/11/2015,ROAD TRAVEL,FUSION,EMPLOYEE EXPENSES,100786055,3.11
United Kingdom Atomic Energy Authority,United Kingdom Atomic Energy Authority,21/11/2015,SUBSISTENCE,FUSION,EMPLOYEE EXPENSES,100789041,3.16
United Kingdom Atomic Energy Authority,United Kingdom Atomic Energy Authority,21/11/2015,RAIL TRAVEL,FUSION,EMPLOYEE EXPENSES,100789012,3.19
United Kingdom Atomic Energy Authority,United Kingdom Atomic Energy Authority,12/11/2015,SUBSISTENCE,FUSION,EMPLOYEE EXPENSES,100786204,3.29
United Kingdom Atomic Energy Authority,United Kingdom Atomic Energy Authority,21/11/2015,SUBSISTENCE,FUSION,EMPLOYEE EXPENSES,100788994,3.33
United Kingdom Atomic Energy Authority,United Kingdom Atomic Energy Authority,07/11/2015,ROAD TRAVEL,FUSION,EMPLOYEE EXPENSES,100786044,3.50
United Kingdom Atomic Energy Authority,United Kingdom Atomic Energy Authority,21/11/2015,RAIL TRAVEL,FUSION,EMPLOYEE EXPENSES,100789045,3.53
United Kingdom Atomic Energy Authority,United Kingdom Atomic Energy Authority,21/11/2015,OTHER EMPLOYEE EXPENSES,FUSION,EMPLOYEE EXPENSES,100789012,3.55
United Kingdom Atomic Energy Authority,United Kingdom Atomic Energy Authority,07/11/2015,SUBSISTENCE,FUSION,EMPLOYEE EXPENSES,100786069,3.57
United Kingdom Atomic Energy Authority,United Kingdom Atomic Energy Authority,07/11/2015,SUBSISTENCE,FUSION,EMPLOYEE EXPENSES,100786045,3.62
United Kingdom Atomic Energy Authority,United Kingdom Atomic Energy Authority,30/10/2015,SUBSISTENCE,FUSION,EMPLOYEE EXPENSES,100785981,3.64
United Kingdom Atomic Energy Authority,United Kingdom Atomic Energy Authority,21/11/2015,SUBSISTENCE,FUSION,EMPLOYEE EXPENSES,100788988,3.66
United Kingdom Atomic Energy Authority,United Kingdom Atomic Energy Authority,07/11/2015,SUBSISTENCE,FUSION,EMPLOYEE EXPENSES,100786068,3.71
United Kingdom Atomic Energy Authority,United Kingdom Atomic Energy Authority,07/11/2015,SUBSISTENCE,FUSION,EMPLOYEE EXPENSES,100786044,3.92
United Kingdom Atomic Energy Authority,United Kingdom Atomic Energy Authority,21/11/2015,ROAD TRAVEL,FUSION,EMPLOYEE EXPENSES,100789024,4.00
United Kingdom Atomic Energy Authority,United Kingdom Atomic Energy Authority,21/11/2015,RAIL TRAVEL,FUSION,EMPLOYEE EXPENSES,100789041,4.41
United Kingdom Atomic Energy Authority,United Kingdom Atomic Energy Authority,07/11/2015,ROAD TRAVEL,FUSION,EMPLOYEE EXPENSES,100786058,4.58
United Kingdom Atomic Energy Authority,United Kingdom Atomic Energy Authority,12/11/2015,RAIL TRAVEL,FUSION,EMPLOYEE EXPENSES,100786212,4.60
United Kingdom Atomic Energy Authority,United Kingdom Atomic Energy Authority,07/11/2015,SUBSISTENCE,FUSION,EMPLOYEE EXPENSES,100786070,4.67
United Kingdom Atomic Energy Authority,United Kingdom Atomic Energy Authority,21/11/2015,SUBSISTENCE,SUPPORT SERVICES,EMPLOYEE EXPENSES,100789033,4.71
United Kingdom Atomic Energy Authority,United Kingdom Atomic Energy Authority,12/11/2015,ROAD TRAVEL,FUSION,EMPLOYEE EXPENSES,100786200,4.75
United Kingdom Atomic Energy Authority,United Kingdom Atomic Energy Authority,21/11/2015,SUBSISTENCE,FUSION,EMPLOYEE EXPENSES,100789040,4.91
United Kingdom Atomic Energy Authority,United Kingdom Atomic Energy Authority,07/11/2015,ROAD TRAVEL,FUSION,EMPLOYEE EXPENSES,100786071,4.92
United Kingdom Atomic Energy Authority,United Kingdom Atomic Energy Authority,12/11/2015,OTHER EMPLOYEE EXPENSES,FUSION,EMPLOYEE EXPENSES,100786206,4.94
United Kingdom Atomic Energy Authority,United Kingdom Atomic Energy Authority,21/11/2015,ROAD TRAVEL,FUSION,EMPLOYEE EXPENSES,100788989,4.95
United Kingdom Atomic Energy Authority,United Kingdom Atomic Energy Authority,30/10/2015,ROAD TRAVEL,FUSION,EMPLOYEE EXPENSES,100785972,5.00
United Kingdom Atomic Energy Authority,United Kingdom Atomic Energy Authority,07/11/2015,ROAD TRAVEL,FUSION,EMPLOYEE EXPENSES,100786064,5.00
United Kingdom Atomic Energy Authority,United Kingdom Atomic Energy Authority,21/11/2015,ROAD TRAVEL,FUSION,EMPLOYEE EXPENSES,100789019,5.00
United Kingdom Atomic Energy Authority,United Kingdom Atomic Energy Authority,30/10/2015,SUBSISTENCE,FUSION,EMPLOYEE EXPENSES,100785961,5.00
United Kingdom Atomic Energy Authority,United Kingdom Atomic Energy Authority,21/11/2015,SUBSISTENCE,FUSION,EMPLOYEE EXPENSES,100788986,5.00
United Kingdom Atomic Energy Authority,United Kingdom Atomic Energy Authority,07/11/2015,TAXIS,FUSION,EMPLOYEE EXPENSES,100786083,5.00
United Kingdom Atomic Energy Authority,United Kingdom Atomic Energy Authority,30/10/2015,TAXIS,FUSION,EMPLOYEE EXPENSES,100785961,5.00
United Kingdom Atomic Energy Authority,United Kingdom Atomic Energy Authority,07/11/2015,TAXIS,FUSION,EMPLOYEE EXPENSES,100786070,5.00
United Kingdom Atomic Energy Authority,United Kingdom Atomic Energy Authority,30/10/2015,ROAD TRAVEL,FUSION,EMPLOYEE EXPENSES,100785968,5.21
United Kingdom Atomic Energy Authority,United Kingdom Atomic Energy Authority,30/10/2015,ROAD TRAVEL,FUSION,EMPLOYEE EXPENSES,100785970,5.21
United Kingdom Atomic Energy Authority,United Kingdom Atomic Energy Authority,30/10/2015,ROAD TRAVEL,FUSION,EMPLOYEE EXPENSES,100785971,5.21
United Kingdom Atomic Energy Authority,United Kingdom Atomic Energy Authority,12/11/2015,MILEAGE ALLOWANCE,SUPPORT SERVICES,EMPLOYEE EXPENSES,100786202,5.40
United Kingdom Atomic Energy Authority,United Kingdom Atomic Energy Authority,07/11/2015,MILEAGE ALLOWANCE,SUPPORT SERVICES,EMPLOYEE EXPENSES,100786048,5.40
United Kingdom Atomic Energy Authority,United Kingdom Atomic Energy Authority,12/11/2015,ROAD TRAVEL,SUPPORT SERVICES,EMPLOYEE EXPENSES,100786202,5.42
United Kingdom Atomic Energy Authority,United Kingdom Atomic Energy Authority,07/11/2015,ROAD TRAVEL,SUPPORT SERVICES,EMPLOYEE EXPENSES,100786048,5.42
United Kingdom Atomic Energy Authority,United Kingdom Atomic Energy Authority,07/11/2015,SUBSISTENCE,FUSION,EMPLOYEE EXPENSES,100786052,5.67
United Kingdom Atomic Energy Authority,United Kingdom Atomic Energy Authority,21/11/2015,OTHER EMPLOYEE EXPENSES,SUPPORT SERVICES,EMPLOYEE EXPENSES,100789029,5.86
United Kingdom Atomic Energy Authority,United Kingdom Atomic Energy Authority,21/11/2015,ROAD TRAVEL,FUSION,EMPLOYEE EXPENSES,100788997,5.88
United Kingdom Atomic Energy Authority,United Kingdom Atomic Energy Authority,21/11/2015,OTHER EMPLOYEE EXPENSES,FUSION,EMPLOYEE EXPENSES,100789011,5.90
United Kingdom Atomic Energy Authority,United Kingdom Atomic Energy Authority,30/10/2015,SUBSISTENCE,FUSION,EMPLOYEE EXPENSES,100785975,6.00
United Kingdom Atomic Energy Authority,United Kingdom Atomic Energy Authority,07/11/2015,TAXIS,FUSION,EMPLOYEE EXPENSES,100786076,6.00
United Kingdom Atomic Energy Authority,United Kingdom Atomic Energy Authority,07/11/2015,SUBSISTENCE,FUSION,EMPLOYEE EXPENSES,100786065,6.15
United Kingdom Atomic Energy Authority,United Kingdom Atomic Energy Authority,21/11/2015,ROAD TRAVEL,FUSION,EMPLOYEE EXPENSES,100789022,6.18
United Kingdom Atomic Energy Authority,United Kingdom Atomic Energy Authority,30/10/2015,SUBSISTENCE,FUSION,EMPLOYEE EXPENSES,100785976,6.21
United Kingdom Atomic Energy Authority,United Kingdom Atomic Energy Authority,12/11/2015,ROAD TRAVEL,FUSION,EMPLOYEE EXPENSES,100786214,6.25
United Kingdom Atomic Energy Authority,United Kingdom Atomic Energy Authority,30/10/2015,ROAD TRAVEL,FUSION,EMPLOYEE EXPENSES,100785969,6.25
United Kingdom Atomic Energy Authority,United Kingdom Atomic Energy Authority,30/10/2015,SUBSISTENCE,FUSION,EMPLOYEE EXPENSES,100785979,6.40
United Kingdom Atomic Energy Authority,United Kingdom Atomic Energy Authority,21/11/2015,SUBSISTENCE,FUSION,EMPLOYEE EXPENSES,100789012,6.58
United Kingdom Atomic Energy Authority,United Kingdom Atomic Energy Authority,21/11/2015,ROAD TRAVEL,SUPPORT SERVICES,EMPLOYEE EXPENSES,100789017,6.60
United Kingdom Atomic Energy Authority,United Kingdom Atomic Energy Authority,07/11/2015,ROAD TRAVEL,FUSION,EMPLOYEE EXPENSES,100786052,7.00
United Kingdom Atomic Energy Authority,United Kingdom Atomic Energy Authority,12/11/2015,OTHER EMPLOYEE EXPENSES,FUSION,EMPLOYEE EXPENSES,100786205,7.14
United Kingdom Atomic Energy Authority,United Kingdom Atomic Energy Authority,30/10/2015,MILEAGE ALLOWANCE,FUSION,EMPLOYEE EXPENSES,100785956,7.20
United Kingdom Atomic Energy Authority,United Kingdom Atomic Energy Authority,07/11/2015,MILEAGE ALLOWANCE,FUSION,EMPLOYEE EXPENSES,100786041,7.20
United Kingdom Atomic Energy Authority,United Kingdom Atomic Energy Authority,21/11/2015,OTHER EMPLOYEE EXPENSES,FUSION,EMPLOYEE EXPENSES,100789034,7.41
United Kingdom Atomic Energy Authority,United Kingdom Atomic Energy Authority,30/10/2015,SUBSISTENCE,FUSION,EMPLOYEE EXPENSES,100785959,7.50
United Kingdom Atomic Energy Authority,United Kingdom Atomic Energy Authority,21/11/2015,ROAD TRAVEL,FUSION,EMPLOYEE EXPENSES,100789043,7.51
United Kingdom Atomic Energy Authority,United Kingdom Atomic Energy Authority,30/10/2015,ROAD TRAVEL,FUSION,EMPLOYEE EXPENSES,100785975,7.61
United Kingdom Atomic Energy Authority,United Kingdom Atomic Energy Authority,30/10/2015,TAXIS,FUSION,EMPLOYEE EXPENSES,100785964,7.65
United Kingdom Atomic Energy Authority,United Kingdom Atomic Energy Authority,21/11/2015,TAXIS,FUSION,EMPLOYEE EXPENSES,100788996,7.65
United Kingdom Atomic Energy Authority,United Kingdom Atomic Energy Authority,21/11/2015,SUBSISTENCE,FUSION,EMPLOYEE EXPENSES,100789011,7.78
United Kingdom Atomic Energy Authority,United Kingdom Atomic Energy Authority,07/11/2015,OTHER EMPLOYEE EXPENSES,FUSION,EMPLOYEE EXPENSES,100786053,7.91
United Kingdom Atomic Energy Authority,United Kingdom Atomic Energy Authority,30/10/2015,OTHER EMPLOYEE EXPENSES,SUPPORT SERVICES,EMPLOYEE EXPENSES,100785957,7.99
United Kingdom Atomic Energy Authority,United Kingdom Atomic Energy Authority,07/11/2015,MILEAGE ALLOWANCE,SUPPORT SERVICES,EMPLOYEE EXPENSES,100786051,8.10
United Kingdom Atomic Energy Authority,United Kingdom Atomic Energy Authority,21/11/2015,ROAD TRAVEL,FUSION,EMPLOYEE EXPENSES,100789011,8.32
United Kingdom Atomic Energy Authority,United Kingdom Atomic Energy Authority,12/11/2015,ROAD TRAVEL,SUPPORT SERVICES,EMPLOYEE EXPENSES,100786203,8.46
United Kingdom Atomic Energy Authority,United Kingdom Atomic Energy Authority,21/11/2015,OTHER EMPLOYEE EXPENSES,FUSION,EMPLOYEE EXPENSES,100788989,8.76
United Kingdom Atomic Energy Authority,United Kingdom Atomic Energy Authority,07/11/2015,OTHER EMPLOYEE EXPENSES,FUSION,EMPLOYEE EXPENSES,100786054,8.81
United Kingdom Atomic Energy Authority,United Kingdom Atomic Energy Authority,21/11/2015,MILEAGE ALLOWANCE,FUSION,EMPLOYEE EXPENSES,100789026,9.00
United Kingdom Atomic Energy Authority,United Kingdom Atomic Energy Authority,21/11/2015,OTHER EMPLOYEE EXPENSES,FUSION,EMPLOYEE EXPENSES,100789050,9.09
United Kingdom Atomic Energy Authority,United Kingdom Atomic Energy Authority,30/10/2015,OTHER EMPLOYEE EXPENSES,FUSION,EMPLOYEE EXPENSES,100785981,9.25
United Kingdom Atomic Energy Authority,United Kingdom Atomic Energy Authority,21/11/2015,ROAD TRAVEL,FUSION,EMPLOYEE EXPENSES,100789007,9.27
United Kingdom Atomic Energy Authority,United Kingdom Atomic Energy Authority,21/11/2015,SUBSISTENCE,FUSION,EMPLOYEE EXPENSES,100789048,9.30
United Kingdom Atomic Energy Authority,United Kingdom Atomic Energy Authority,21/11/2015,SUBSISTENCE,FUSION,EMPLOYEE EXPENSES,100789024,9.41
United Kingdom Atomic Energy Authority,United Kingdom Atomic Energy Authority,07/11/2015,TAXIS,FUSION,EMPLOYEE EXPENSES,100786058,9.45
United Kingdom Atomic Energy Authority,United Kingdom Atomic Energy Authority,12/11/2015,ROAD TRAVEL,SUPPORT SERVICES,EMPLOYEE EXPENSES,100786201,9.50
United Kingdom Atomic Energy Authority,United Kingdom Atomic Energy Authority,12/11/2015,MILEAGE ALLOWANCE,FUSION,EMPLOYEE EXPENSES,100786200,9.60
United Kingdom Atomic Energy Authority,United Kingdom Atomic Energy Authority,21/11/2015,RAIL TRAVEL,FUSION,EMPLOYEE EXPENSES,100789042,9.60
United Kingdom Atomic Energy Authority,United Kingdom Atomic Energy Authority,07/11/2015,RAIL TRAVEL,FUSION,EMPLOYEE EXPENSES,100786055,9.75
United Kingdom Atomic Energy Authority,United Kingdom Atomic Energy Authority,21/11/2015,SUBSISTENCE,FUSION,EMPLOYEE EXPENSES,100789022,9.75
United Kingdom Atomic Energy Authority,United Kingdom Atomic Energy Authority,07/11/2015,ROAD TRAVEL,FUSION,EMPLOYEE EXPENSES,100786065,10.00
United Kingdom Atomic Energy Authority,United Kingdom Atomic Energy Authority,07/11/2015,ROAD TRAVEL,FUSION,EMPLOYEE EXPENSES,100786067,10.00
United Kingdom Atomic Energy Authority,United Kingdom Atomic Energy Authority,30/10/2015,SUBSISTENCE,FUSION,EMPLOYEE EXPENSES,100785968,10.00
United Kingdom Atomic Energy Authority,United Kingdom Atomic Energy Authority,30/10/2015,SUBSISTENCE,FUSION,EMPLOYEE EXPENSES,100785969,10.00
United Kingdom Atomic Energy Authority,United Kingdom Atomic Energy Authority,30/10/2015,SUBSISTENCE,FUSION,EMPLOYEE EXPENSES,100785970,10.00
United Kingdom Atomic Energy Authority,United Kingdom Atomic Energy Authority,30/10/2015,SUBSISTENCE,FUSION,EMPLOYEE EXPENSES,100785971,10.00
United Kingdom Atomic Energy Authority,United Kingdom Atomic Energy Authority,12/11/2015,SUBSISTENCE,FUSION,EMPLOYEE EXPENSES,100786208,10.00
United Kingdom Atomic Energy Authority,United Kingdom Atomic Energy Authority,21/11/2015,SUBSISTENCE,FUSION,EMPLOYEE EXPENSES,100789046,10.00
United Kingdom Atomic Energy Authority,United Kingdom Atomic Energy Authority,12/11/2015,TAXIS,SUPPORT SERVICES,EMPLOYEE EXPENSES,100786199,10.00
United Kingdom Atomic Energy Authority,United Kingdom Atomic Energy Authority,12/11/2015,SUBSISTENCE,FUSION,EMPLOYEE EXPENSES,100786209,10.21
United Kingdom Atomic Energy Authority,United Kingdom Atomic Energy Authority,21/11/2015,SUBSISTENCE,FUSION,EMPLOYEE EXPENSES,100789027,10.22
United Kingdom Atomic Energy Authority,United Kingdom Atomic Energy Authority,21/11/2015,OTHER EMPLOYEE EXPENSES,FUSION,EMPLOYEE EXPENSES,100788991,10.31
United Kingdom Atomic Energy Authority,United Kingdom Atomic Energy Authority,12/11/2015,ROAD TRAVEL,FUSION,EMPLOYEE EXPENSES,100786217,10.60
United Kingdom Atomic Energy Authority,United Kingdom Atomic Energy Authority,21/11/2015,ROAD TRAVEL,FUSION,EMPLOYEE EXPENSES,100789034,10.96
United Kingdom Atomic Energy Authority,United Kingdom Atomic Energy Authority,30/10/2015,TAXIS,FUSION,EMPLOYEE EXPENSES,100785979,10.98
United Kingdom Atomic Energy Authority,United Kingdom Atomic Energy Authority,07/11/2015,ROAD TRAVEL,SUPPORT SERVICES,EMPLOYEE EXPENSES,100786074,11.00
United Kingdom Atomic Energy Authority,United Kingdom Atomic Energy Authority,12/11/2015,TAXIS,FUSION,EMPLOYEE EXPENSES,100786212,11.00
United Kingdom Atomic Energy Authority,United Kingdom Atomic Energy Authority,21/11/2015,SUBSISTENCE,FUSION,EMPLOYEE EXPENSES,100789013,11.21
United Kingdom Atomic Energy Authority,United Kingdom Atomic Energy Authority,12/11/2015,TAXIS,FUSION,EMPLOYEE EXPENSES,100786211,11.30
United Kingdom Atomic Energy Authority,United Kingdom Atomic Energy Authority,30/10/2015,ROAD TRAVEL,FUSION,EMPLOYEE EXPENSES,100785979,11.57
United Kingdom Atomic Energy Authority,United Kingdom Atomic Energy Authority,21/11/2015,OTHER EMPLOYEE EXPENSES,FUSION,EMPLOYEE EXPENSES,100789018,11.62
United Kingdom Atomic Energy Authority,United Kingdom Atomic Energy Authority,07/11/2015,SUBSISTENCE,FUSION,EMPLOYEE EXPENSES,100786057,11.69
United Kingdom Atomic Energy Authority,United Kingdom Atomic Energy Authority,07/11/2015,RAIL TRAVEL,FUSION,EMPLOYEE EXPENSES,100786077,12.00
United Kingdom Atomic Energy Authority,United Kingdom Atomic Energy Authority,30/10/2015,RAIL TRAVEL,FUSION,EMPLOYEE EXPENSES,100785976,12.00
United Kingdom Atomic Energy Authority,United Kingdom Atomic Energy Authority,12/11/2015,TAXIS,SUPPORT SERVICES,EMPLOYEE EXPENSES,100786221,12.00
United Kingdom Atomic Energy Authority,United Kingdom Atomic Energy Authority,12/11/2015,SUBSISTENCE,SUPPORT SERVICES,EMPLOYEE EXPENSES,100786202,12.66
United Kingdom Atomic Energy Authority,United Kingdom Atomic Energy Authority,21/11/2015,SUBSISTENCE,FUSION,EMPLOYEE EXPENSES,100789025,12.70
United Kingdom Atomic Energy Authority,United Kingdom Atomic Energy Authority,21/11/2015,SUBSISTENCE,FUSION,EMPLOYEE EXPENSES,100789015,12.75
United Kingdom Atomic Energy Authority,United Kingdom Atomic Energy Authority,07/11/2015,SUBSISTENCE,FUSION,EMPLOYEE EXPENSES,100786067,12.92
United Kingdom Atomic Energy Authority,United Kingdom Atomic Energy Authority,21/11/2015,ROAD TRAVEL,FUSION,EMPLOYEE EXPENSES,100789012,13.11
United Kingdom Atomic Energy Authority,United Kingdom Atomic Energy Authority,07/11/2015,SUBSISTENCE,FUSION,EMPLOYEE EXPENSES,100786046,13.38
United Kingdom Atomic Energy Authority,United Kingdom Atomic Energy Authority,21/11/2015,OTHER EMPLOYEE EXPENSES,FUSION,EMPLOYEE EXPENSES,100788995,13.43
United Kingdom Atomic Energy Authority,United Kingdom Atomic Energy Authority,12/11/2015,MILEAGE ALLOWANCE,FUSION,EMPLOYEE EXPENSES,100786214,13.50
United Kingdom Atomic Energy Authority,United Kingdom Atomic Energy Authority,21/11/2015,SUBSISTENCE,FUSION,EMPLOYEE EXPENSES,100788997,13.92
United Kingdom Atomic Energy Authority,United Kingdom Atomic Energy Authority,12/11/2015,ROAD TRAVEL,SUPPORT SERVICES,EMPLOYEE EXPENSES,100786220,14.50
United Kingdom Atomic Energy Authority,United Kingdom Atomic Energy Authority,21/11/2015,ROAD TRAVEL,SUPPORT SERVICES,EMPLOYEE EXPENSES,100789029,14.50
United Kingdom Atomic Energy Authority,United Kingdom Atomic Energy Authority,07/11/2015,BOOKS & PUBLICATIONS,FUSION,EMPLOYEE EXPENSES,100786046,14.99
United Kingdom Atomic Energy Authority,United Kingdom Atomic Energy Authority,07/11/2015,TAXIS,FUSION,EMPLOYEE EXPENSES,100786053,15.00
United Kingdom Atomic Energy Authority,United Kingdom Atomic Energy Authority,21/11/2015,TAXIS,FUSION,EMPLOYEE EXPENSES,100788998,15.00
United Kingdom Atomic Energy Authority,United Kingdom Atomic Energy Authority,12/11/2015,TAXIS,FUSION,EMPLOYEE EXPENSES,100786215,15.00
United Kingdom Atomic Energy Authority,United Kingdom Atomic Energy Authority,21/11/2015,OTHER EMPLOYEE EXPENSES,FUSION,EMPLOYEE EXPENSES,100789013,15.53
United Kingdom Atomic Energy Authority,United Kingdom Atomic Energy Authority,07/11/2015,ROAD TRAVEL,FUSION,EMPLOYEE EXPENSES,100786080,15.93
United Kingdom Atomic Energy Authority,United Kingdom Atomic Energy Authority,12/11/2015,RAIL TRAVEL,SUPPORT SERVICES,EMPLOYEE EXPENSES,100786221,16.35
United Kingdom Atomic Energy Authority,United Kingdom Atomic Energy Authority,30/10/2015,SUBSISTENCE,FUSION,EMPLOYEE EXPENSES,100785964,16.67
United Kingdom Atomic Energy Authority,United Kingdom Atomic Energy Authority,21/11/2015,SUBSISTENCE,FUSION,EMPLOYEE EXPENSES,100788996,16.67
United Kingdom Atomic Energy Authority,United Kingdom Atomic Energy Authority,07/11/2015,ROAD TRAVEL,FUSION,EMPLOYEE EXPENSES,100786053,16.72
United Kingdom Atomic Energy Authority,United Kingdom Atomic Energy Authority,21/11/2015,ROAD TRAVEL,FUSION,EMPLOYEE EXPENSES,100788998,16.87
United Kingdom Atomic Energy Authority,United Kingdom Atomic Energy Authority,21/11/2015,TAXIS,FUSION,EMPLOYEE EXPENSES,100789013,16.90
United Kingdom Atomic Energy Authority,United Kingdom Atomic Energy Authority,30/10/2015,SUBSISTENCE,SUPPORT SERVICES,EMPLOYEE EXPENSES,100785957,17.17
United Kingdom Atomic Energy Authority,United Kingdom Atomic Energy Authority,21/11/2015,ROAD TRAVEL,SUPPORT SERVICES,EMPLOYEE EXPENSES,100788999,17.23
United Kingdom Atomic Energy Authority,United Kingdom Atomic Energy Authority,12/11/2015,OTHER EMPLOYEE EXPENSES,FUSION,EMPLOYEE EXPENSES,100786215,17.35
United Kingdom Atomic Energy Authority,United Kingdom Atomic Energy Authority,21/11/2015,SUBSISTENCE,FUSION,EMPLOYEE EXPENSES,100789022,17.35
United Kingdom Atomic Energy Authority,United Kingdom Atomic Energy Authority,07/11/2015,ROAD TRAVEL,FUSION,EMPLOYEE EXPENSES,100786075,17.42
United Kingdom Atomic Energy Authority,United Kingdom Atomic Energy Authority,07/11/2015,MILEAGE ALLOWANCE,FUSION,EMPLOYEE EXPENSES,100786045,18.00
United Kingdom Atomic Energy Authority,United Kingdom Atomic Energy Authority,12/11/2015,RAIL TRAVEL,FUSION,EMPLOYEE EXPENSES,100786206,18.00
United Kingdom Atomic Energy Authority,United Kingdom Atomic Energy Authority,07/11/2015,ROAD TRAVEL,FUSION,EMPLOYEE EXPENSES,100786077,18.00
United Kingdom Atomic Energy Authority,United Kingdom Atomic Energy Authority,21/11/2015,ROAD TRAVEL,FUSION,EMPLOYEE EXPENSES,100788994,18.00
United Kingdom Atomic Energy Authority,United Kingdom Atomic Energy Authority,21/11/2015,TAXIS,FUSION,EMPLOYEE EXPENSES,100788991,18.00
United Kingdom Atomic Energy Authority,United Kingdom Atomic Energy Authority,21/11/2015,TAXIS,SUPPORT SERVICES,EMPLOYEE EXPENSES,100789030,18.00
United Kingdom Atomic Energy Authority,United Kingdom Atomic Energy Authority,07/11/2015,ROAD TRAVEL,SUPPORT SERVICES,EMPLOYEE EXPENSES,100786079,18.37
United Kingdom Atomic Energy Authority,United Kingdom Atomic Energy Authority,12/11/2015,ROAD TRAVEL,FUSION,EMPLOYEE EXPENSES,100786216,18.74
United Kingdom Atomic Energy Authority,United Kingdom Atomic Energy Authority,12/11/2015,SUBSISTENCE,FUSION,EMPLOYEE EXPENSES,100786214,19.04
United Kingdom Atomic Energy Authority,United Kingdom Atomic Energy Authority,07/11/2015,RAIL TRAVEL,FUSION,EMPLOYEE EXPENSES,100786070,19.10
United Kingdom Atomic Energy Authority,United Kingdom Atomic Energy Authority,21/11/2015,RAIL TRAVEL,FUSION,EMPLOYEE EXPENSES,100789044,19.40
United Kingdom Atomic Energy Authority,United Kingdom Atomic Energy Authority,21/11/2015,ROAD TRAVEL,FUSION,EMPLOYEE EXPENSES,100789015,20.10
United Kingdom Atomic Energy Authority,United Kingdom Atomic Energy Authority,21/11/2015,CAR HIRE,FUSION,EMPLOYEE EXPENSES,100789038,20.91
United Kingdom Atomic Energy Authority,United Kingdom Atomic Energy Authority,07/11/2015,ROAD TRAVEL,FUSION,EMPLOYEE EXPENSES,100786050,21.28
United Kingdom Atomic Energy Authority,United Kingdom Atomic Energy Authority,12/11/2015,OTHER EMPLOYEE EXPENSES,FUSION,EMPLOYEE EXPENSES,100786204,21.34
United Kingdom Atomic Energy Authority,United Kingdom Atomic Energy Authority,21/11/2015,EFDA TRAVEL EXPENSES,FUSION,EMPLOYEE EXPENSES,100789005,21.55
United Kingdom Atomic Energy Authority,United Kingdom Atomic Energy Authority,21/11/2015,ROAD TRAVEL,FUSION,EMPLOYEE EXPENSES,100789050,22.45
United Kingdom Atomic Energy Authority,United Kingdom Atomic Energy Authority,30/10/2015,MILEAGE ALLOWANCE,FUSION,EMPLOYEE EXPENSES,100785974,22.50
United Kingdom Atomic Energy Authority,United Kingdom Atomic Energy Authority,12/11/2015,SUBSISTENCE,FUSION,EMPLOYEE EXPENSES,100786219,22.79
United Kingdom Atomic Energy Authority,United Kingdom Atomic Energy Authority,07/11/2015,ROAD TRAVEL,FUSION,EMPLOYEE EXPENSES,100786057,23.00
United Kingdom Atomic Energy Authority,United Kingdom Atomic Energy Authority,21/11/2015,TAXIS,FUSION,EMPLOYEE EXPENSES,100788997,23.17
United Kingdom Atomic Energy Authority,United Kingdom Atomic Energy Authority,21/11/2015,ROAD TRAVEL,FUSION,EMPLOYEE EXPENSES,100788991,24.00
United Kingdom Atomic Energy Authority,United Kingdom Atomic Energy Authority,07/11/2015,RAIL TRAVEL,FUSION,EMPLOYEE EXPENSES,100786049,24.14
United Kingdom Atomic Energy Authority,United Kingdom Atomic Energy Authority,12/11/2015,RAIL TRAVEL,FUSION,EMPLOYEE EXPENSES,100786200,24.80
United Kingdom Atomic Energy Authority,United Kingdom Atomic Energy Authority,30/10/2015,ROAD TRAVEL,FUSION,EMPLOYEE EXPENSES,100785976,25.00
United Kingdom Atomic Energy Authority,United Kingdom Atomic Energy Authority,21/11/2015,RAIL TRAVEL,FUSION,EMPLOYEE EXPENSES,100788996,25.09
United Kingdom Atomic Energy Authority,United Kingdom Atomic Energy Authority,07/11/2015,ROAD TRAVEL,FUSION,EMPLOYEE EXPENSES,100786068,25.17
United Kingdom Atomic Energy Authority,United Kingdom Atomic Energy Authority,07/11/2015,SUBSISTENCE,SUPPORT SERVICES,EMPLOYEE EXPENSES,100786079,25.40
United Kingdom Atomic Energy Authority,United Kingdom Atomic Energy Authority,21/11/2015,ROAD TRAVEL,FUSION,EMPLOYEE EXPENSES,100788988,25.62
United Kingdom Atomic Energy Authority,United Kingdom Atomic Energy Authority,07/11/2015,SUBSISTENCE,FUSION,EMPLOYEE EXPENSES,100786059,27.30
United Kingdom Atomic Energy Authority,United Kingdom Atomic Energy Authority,12/11/2015,ROAD TRAVEL,FUSION,EMPLOYEE EXPENSES,100786206,27.89
United Kingdom Atomic Energy Authority,United Kingdom Atomic Energy Authority,07/11/2015,ROAD TRAVEL,FUSION,EMPLOYEE EXPENSES,100786056,28.33
United Kingdom Atomic Energy Authority,United Kingdom Atomic Energy Authority,21/11/2015,RAIL TRAVEL,FUSION,EMPLOYEE EXPENSES,100789035,28.95
United Kingdom Atomic Energy Authority,United Kingdom Atomic Energy Authority,07/11/2015,ROAD TRAVEL,FUSION,EMPLOYEE EXPENSES,100786053,29.00
United Kingdom Atomic Energy Authority,United Kingdom Atomic Energy Authority,07/11/2015,ROAD TRAVEL,FUSION,EMPLOYEE EXPENSES,100786054,29.00
United Kingdom Atomic Energy Authority,United Kingdom Atomic Energy Authority,07/11/2015,ROAD TRAVEL,FUSION,EMPLOYEE EXPENSES,100786055,29.00
United Kingdom Atomic Energy Authority,United Kingdom Atomic Energy Authority,21/11/2015,ROAD TRAVEL,FUSION,EMPLOYEE EXPENSES,100788997,29.00
United Kingdom Atomic Energy Authority,United Kingdom Atomic Energy Authority,30/10/2015,ROAD TRAVEL,FUSION,EMPLOYEE EXPENSES,100785981,29.00
United Kingdom Atomic Energy Authority,United Kingdom Atomic Energy Authority,07/11/2015,ROAD TRAVEL,FUSION,EMPLOYEE EXPENSES,100786049,29.00
United Kingdom Atomic Energy Authority,United Kingdom Atomic Energy Authority,12/11/2015,ROAD TRAVEL,FUSION,EMPLOYEE EXPENSES,100786206,29.00
United Kingdom Atomic Energy Authority,United Kingdom Atomic Energy Authority,21/11/2015,ROAD TRAVEL,FUSION,EMPLOYEE EXPENSES,100789007,29.00
United Kingdom Atomic Energy Authority,United Kingdom Atomic Energy Authority,07/11/2015,ROAD TRAVEL,FUSION,EMPLOYEE EXPENSES,100786070,29.00
United Kingdom Atomic Energy Authority,United Kingdom Atomic Energy Authority,21/11/2015,RAIL TRAVEL,FUSION,EMPLOYEE EXPENSES,100789032,29.20
United Kingdom Atomic Energy Authority,United Kingdom Atomic Energy Authority,21/11/2015,TAXIS,FUSION,EMPLOYEE EXPENSES,100788992,29.34
United Kingdom Atomic Energy Authority,United Kingdom Atomic Energy Authority,07/11/2015,ROAD TRAVEL,FUSION,EMPLOYEE EXPENSES,100786042,29.98
United Kingdom Atomic Energy Authority,United Kingdom Atomic Energy Authority,21/11/2015,ROAD TRAVEL,FUSION,EMPLOYEE EXPENSES,100789042,30.00
United Kingdom Atomic Energy Authority,United Kingdom Atomic Energy Authority,21/11/2015,ROAD TRAVEL,FUSION,EMPLOYEE EXPENSES,100789045,30.08
United Kingdom Atomic Energy Authority,United Kingdom Atomic Energy Authority,21/11/2015,RAIL TRAVEL,FUSION,EMPLOYEE EXPENSES,100789048,30.30
United Kingdom Atomic Energy Authority,United Kingdom Atomic Energy Authority,07/11/2015,RAIL TRAVEL,FUSION,EMPLOYEE EXPENSES,100786069,30.70
United Kingdom Atomic Energy Authority,United Kingdom Atomic Energy Authority,30/10/2015,ROAD TRAVEL,FUSION,EMPLOYEE EXPENSES,100785979,30.83
United Kingdom Atomic Energy Authority,United Kingdom Atomic Energy Authority,30/10/2015,RAIL TRAVEL,FUSION,EMPLOYEE EXPENSES,100785964,31.65
United Kingdom Atomic Energy Authority,United Kingdom Atomic Energy Authority,21/11/2015,RAIL TRAVEL,FUSION,EMPLOYEE EXPENSES,100789043,32.03
United Kingdom Atomic Energy Authority,United Kingdom Atomic Energy Authority,07/11/2015,TAXIS,FUSION,EMPLOYEE EXPENSES,100786057,32.57
United Kingdom Atomic Energy Authority,United Kingdom Atomic Energy Authority,21/11/2015,TAXIS,FUSION,EMPLOYEE EXPENSES,100788985,33.13
United Kingdom Atomic Energy Authority,United Kingdom Atomic Energy Authority,21/11/2015,ROAD TRAVEL,FUSION,EMPLOYEE EXPENSES,100789038,33.75
United Kingdom Atomic Energy Authority,United Kingdom Atomic Energy Authority,12/11/2015,TAXIS,FUSION,EMPLOYEE EXPENSES,100786206,34.35
United Kingdom Atomic Energy Authority,United Kingdom Atomic Energy Authority,30/10/2015,ROAD TRAVEL,FUSION,EMPLOYEE EXPENSES,100785964,35.20
United Kingdom Atomic Energy Authority,United Kingdom Atomic Energy Authority,21/11/2015,ROAD TRAVEL,FUSION,EMPLOYEE EXPENSES,100788996,35.20
United Kingdom Atomic Energy Authority,United Kingdom Atomic Energy Authority,07/11/2015,RAIL TRAVEL,FUSION,EMPLOYEE EXPENSES,100786069,35.23
United Kingdom Atomic Energy Authority,United Kingdom Atomic Energy Authority,30/10/2015,SUBSISTENCE,FUSION,EMPLOYEE EXPENSES,100785962,35.60
United Kingdom Atomic Energy Authority,United Kingdom Atomic Energy Authority,12/11/2015,RAIL TRAVEL,FUSION,EMPLOYEE EXPENSES,100786210,35.64
United Kingdom Atomic Energy Authority,United Kingdom Atomic Energy Authority,21/11/2015,MILEAGE ALLOWANCE,FUSION,EMPLOYEE EXPENSES,100789003,36.00
United Kingdom Atomic Energy Authority,United Kingdom Atomic Energy Authority,07/11/2015,TAXIS,FUSION,EMPLOYEE EXPENSES,100786047,36.32
United Kingdom Atomic Energy Authority,United Kingdom Atomic Energy Authority,21/11/2015,MILEAGE ALLOWANCE,FUSION,EMPLOYEE EXPENSES,100789045,37.80
United Kingdom Atomic Energy Authority,United Kingdom Atomic Energy Authority,30/10/2015,RAIL TRAVEL,FUSION,EMPLOYEE EXPENSES,100785976,38.31
United Kingdom Atomic Energy Authority,United Kingdom Atomic Energy Authority,21/11/2015,RAIL TRAVEL,FUSION,EMPLOYEE EXPENSES,100789041,39.70
United Kingdom Atomic Energy Authority,United Kingdom Atomic Energy Authority,21/11/2015,ROAD TRAVEL,FUSION,EMPLOYEE EXPENSES,100789021,39.88
United Kingdom Atomic Energy Authority,United Kingdom Atomic Energy Authority,12/11/2015,TAXIS,SUPPORT SERVICES,EMPLOYEE EXPENSES,100786199,39.98
United Kingdom Atomic Energy Authority,United Kingdom Atomic Energy Authority,30/10/2015,ROAD TRAVEL,FUSION,EMPLOYEE EXPENSES,100785975,41.19
United Kingdom Atomic Energy Authority,United Kingdom Atomic Energy Authority,07/11/2015,SUBSISTENCE,FUSION,EMPLOYEE EXPENSES,100786076,42.00
United Kingdom Atomic Energy Authority,United Kingdom Atomic Energy Authority,07/11/2015,SUBSISTENCE,FUSION,EMPLOYEE EXPENSES,100786083,42.00
United Kingdom Atomic Energy Authority,United Kingdom Atomic Energy Authority,30/10/2015,OTHER EMPLOYEE EXPENSES,FUSION,EMPLOYEE EXPENSES,100785976,44.00
United Kingdom Atomic Energy Authority,United Kingdom Atomic Energy Authority,30/10/2015,SUBSISTENCE,SUPPORT SERVICES,EMPLOYEE EXPENSES,100785957,44.12
United Kingdom Atomic Energy Authority,United Kingdom Atomic Energy Authority,07/11/2015,ROAD TRAVEL,FUSION,EMPLOYEE EXPENSES,100786043,44.30
United Kingdom Atomic Energy Authority,United Kingdom Atomic Energy Authority,07/11/2015,BUSINESS ENTERTAINMENT,FUSION,EMPLOYEE EXPENSES,100786052,45.00
United Kingdom Atomic Energy Authority,United Kingdom Atomic Energy Authority,07/11/2015,MILEAGE ALLOWANCE,FUSION,EMPLOYEE EXPENSES,100786053,45.45
United Kingdom Atomic Energy Authority,United Kingdom Atomic Energy Authority,21/11/2015,MILEAGE ALLOWANCE,FUSION,EMPLOYEE EXPENSES,100788991,45.45
United Kingdom Atomic Energy Authority,United Kingdom Atomic Energy Authority,07/11/2015,TAXIS,FUSION,EMPLOYEE EXPENSES,100786054,45.70
United Kingdom Atomic Energy Authority,United Kingdom Atomic Energy Authority,21/11/2015,ROAD TRAVEL,FUSION,EMPLOYEE EXPENSES,100789043,46.00
United Kingdom Atomic Energy Authority,United Kingdom Atomic Energy Authority,12/11/2015,MILEAGE ALLOWANCE,FUSION,EMPLOYEE EXPENSES,100786206,47.70
United Kingdom Atomic Energy Authority,United Kingdom Atomic Energy Authority,07/11/2015,RAIL TRAVEL,FUSION,EMPLOYEE EXPENSES,100786054,49.25
United Kingdom Atomic Energy Authority,United Kingdom Atomic Energy Authority,21/11/2015,MILEAGE ALLOWANCE,SUPPORT SERVICES,EMPLOYEE EXPENSES,100789033,49.50
United Kingdom Atomic Energy Authority,United Kingdom Atomic Energy Authority,21/11/2015,RAIL TRAVEL,SUPPORT SERVICES,EMPLOYEE EXPENSES,100789030,51.60
United Kingdom Atomic Energy Authority,United Kingdom Atomic Energy Authority,21/11/2015,ROAD TRAVEL,SUPPORT SERVICES,EMPLOYEE EXPENSES,100789033,51.90
United Kingdom Atomic Energy Authority,United Kingdom Atomic Energy Authority,30/10/2015,MILEAGE ALLOWANCE,FUSION,EMPLOYEE EXPENSES,100785959,54.00
United Kingdom Atomic Energy Authority,United Kingdom Atomic Energy Authority,07/11/2015,MILEAGE ALLOWANCE,FUSION,EMPLOYEE EXPENSES,100786044,54.00
United Kingdom Atomic Energy Authority,United Kingdom Atomic Energy Authority,21/11/2015,MILEAGE ALLOWANCE,FUSION,EMPLOYEE EXPENSES,100788986,54.00
United Kingdom Atomic Energy Authority,United Kingdom Atomic Energy Authority,21/11/2015,MILEAGE ALLOWANCE,FUSION,EMPLOYEE EXPENSES,100788987,54.00
United Kingdom Atomic Energy Authority,United Kingdom Atomic Energy Authority,07/11/2015,ROAD TRAVEL,FUSION,EMPLOYEE EXPENSES,100786047,54.05
United Kingdom Atomic Energy Authority,United Kingdom Atomic Energy Authority,21/11/2015,OTHER EMPLOYEE EXPENSES,FUSION,EMPLOYEE EXPENSES,100789043,54.29
United Kingdom Atomic Energy Authority,United Kingdom Atomic Energy Authority,07/11/2015,SUBSISTENCE,FUSION,EMPLOYEE EXPENSES,100786080,54.85
United Kingdom Atomic Energy Authority,United Kingdom Atomic Energy Authority,07/11/2015,SUBSISTENCE,FUSION,EMPLOYEE EXPENSES,100786043,56.20
United Kingdom Atomic Energy Authority,United Kingdom Atomic Energy Authority,30/10/2015,RAIL TRAVEL,FUSION,EMPLOYEE EXPENSES,100785968,56.80
United Kingdom Atomic Energy Authority,United Kingdom Atomic Energy Authority,30/10/2015,RAIL TRAVEL,FUSION,EMPLOYEE EXPENSES,100785969,56.80
United Kingdom Atomic Energy Authority,United Kingdom Atomic Energy Authority,30/10/2015,RAIL TRAVEL,FUSION,EMPLOYEE EXPENSES,100785970,56.80
United Kingdom Atomic Energy Authority,United Kingdom Atomic Energy Authority,30/10/2015,RAIL TRAVEL,FUSION,EMPLOYEE EXPENSES,100785971,56.80
United Kingdom Atomic Energy Authority,United Kingdom Atomic Energy Authority,30/10/2015,MILEAGE ALLOWANCE,SUPPORT SERVICES,EMPLOYEE EXPENSES,100785960,57.60
United Kingdom Atomic Energy Authority,United Kingdom Atomic Energy Authority,30/10/2015,SUBSISTENCE,FUSION,EMPLOYEE EXPENSES,100785975,57.80
United Kingdom Atomic Energy Authority,United Kingdom Atomic Energy Authority,07/11/2015,ROAD TRAVEL,FUSION,EMPLOYEE EXPENSES,100786067,57.92
United Kingdom Atomic Energy Authority,United Kingdom Atomic Energy Authority,12/11/2015,SUBSISTENCE,SUPPORT SERVICES,EMPLOYEE EXPENSES,100786199,57.97
United Kingdom Atomic Energy Authority,United Kingdom Atomic Energy Authority,21/11/2015,RAIL TRAVEL,FUSION,EMPLOYEE EXPENSES,100789015,58.25
United Kingdom Atomic Energy Authority,United Kingdom Atomic Energy Authority,07/11/2015,MILEAGE ALLOWANCE,FUSION,EMPLOYEE EXPENSES,100786062,58.50
United Kingdom Atomic Energy Authority,United Kingdom Atomic Energy Authority,07/11/2015,MILEAGE ALLOWANCE,FUSION,EMPLOYEE EXPENSES,100786063,58.50
United Kingdom Atomic Energy Authority,United Kingdom Atomic Energy Authority,21/11/2015,SUBSISTENCE,SUPPORT SERVICES,EMPLOYEE EXPENSES,100789033,61.66
United Kingdom Atomic Energy Authority,United Kingdom Atomic Energy Authority,12/11/2015,OTHER EMPLOYEE EXPENSES,SUPPORT SERVICES,EMPLOYEE EXPENSES,100786220,62.03
United Kingdom Atomic Energy Authority,United Kingdom Atomic Energy Authority,12/11/2015,RAIL TRAVEL,FUSION,EMPLOYEE EXPENSES,100786219,62.30
United Kingdom Atomic Energy Authority,United Kingdom Atomic Energy Authority,07/11/2015,RAIL TRAVEL,SUPPORT SERVICES,EMPLOYEE EXPENSES,100786051,62.40
United Kingdom Atomic Energy Authority,United Kingdom Atomic Energy Authority,12/11/2015,ROAD TRAVEL,FUSION,EMPLOYEE EXPENSES,100786204,63.37
United Kingdom Atomic Energy Authority,United Kingdom Atomic Energy Authority,21/11/2015,SUBSISTENCE,FUSION,EMPLOYEE EXPENSES,100788986,64.00
United Kingdom Atomic Energy Authority,United Kingdom Atomic Energy Authority,07/11/2015,RAIL TRAVEL,FUSION,EMPLOYEE EXPENSES,100786071,64.40
United Kingdom Atomic Energy Authority,United Kingdom Atomic Energy Authority,21/11/2015,RAIL TRAVEL,FUSION,EMPLOYEE EXPENSES,100789022,64.98
United Kingdom Atomic Energy Authority,United Kingdom Atomic Energy Authority,21/11/2015,PROFESSIONAL SUBSCRIPTION,FUSION,EMPLOYEE EXPENSES,100789036,65.00
United Kingdom Atomic Energy Authority,United Kingdom Atomic Energy Authority,07/11/2015,SUBSISTENCE,FUSION,EMPLOYEE EXPENSES,100786056,65.00
United Kingdom Atomic Energy Authority,United Kingdom Atomic Energy Authority,21/11/2015,RAIL TRAVEL,SUPPORT SERVICES,EMPLOYEE EXPENSES,100789017,66.60
United Kingdom Atomic Energy Authority,United Kingdom Atomic Energy Authority,21/11/2015,SUBSISTENCE,FUSION,EMPLOYEE EXPENSES,100789047,67.60
United Kingdom Atomic Energy Authority,United Kingdom Atomic Energy Authority,07/11/2015,MILEAGE ALLOWANCE,SUPPORT SERVICES,EMPLOYEE EXPENSES,100786079,69.75
United Kingdom Atomic Energy Authority,United Kingdom Atomic Energy Authority,30/10/2015,MILEAGE ALLOWANCE,FUSION,EMPLOYEE EXPENSES,100785972,69.75
United Kingdom Atomic Energy Authority,United Kingdom Atomic Energy Authority,07/11/2015,MILEAGE ALLOWANCE,FUSION,EMPLOYEE EXPENSES,100786064,69.75
United Kingdom Atomic Energy Authority,United Kingdom Atomic Energy Authority,21/11/2015,MILEAGE ALLOWANCE,FUSION,EMPLOYEE EXPENSES,100789019,69.75
United Kingdom Atomic Energy Authority,United Kingdom Atomic Energy Authority,21/11/2015,RAIL TRAVEL,FUSION,EMPLOYEE EXPENSES,100789040,70.00
United Kingdom Atomic Energy Authority,United Kingdom Atomic Energy Authority,30/10/2015,SUBSISTENCE,FUSION,EMPLOYEE EXPENSES,100785959,70.83
United Kingdom Atomic Energy Authority,United Kingdom Atomic Energy Authority,30/10/2015,MILEAGE ALLOWANCE,FUSION,EMPLOYEE EXPENSES,100785973,71.44
United Kingdom Atomic Energy Authority,United Kingdom Atomic Energy Authority,12/11/2015,TAXIS,FUSION,EMPLOYEE EXPENSES,100786205,72.58
United Kingdom Atomic Energy Authority,United Kingdom Atomic Energy Authority,30/10/2015,MILEAGE ALLOWANCE,FUSION,EMPLOYEE EXPENSES,100785963,73.86
United Kingdom Atomic Energy Authority,United Kingdom Atomic Energy Authority,21/11/2015,RAIL TRAVEL,FUSION,EMPLOYEE EXPENSES,100789048,76.90
United Kingdom Atomic Energy Authority,United Kingdom Atomic Energy Authority,12/11/2015,TAXIS,SUPPORT SERVICES,EMPLOYEE EXPENSES,100786220,77.11
United Kingdom Atomic Energy Authority,United Kingdom Atomic Energy Authority,07/11/2015,TAXIS,FUSION,EMPLOYEE EXPENSES,100786069,78.00
United Kingdom Atomic Energy Authority,United Kingdom Atomic Energy Authority,07/11/2015,TAXIS,FUSION,EMPLOYEE EXPENSES,100786049,78.85
United Kingdom Atomic Energy Authority,United Kingdom Atomic Energy Authority,30/10/2015,MILEAGE ALLOWANCE,FUSION,EMPLOYEE EXPENSES,100785979,79.65
United Kingdom Atomic Energy Authority,United Kingdom Atomic Energy Authority,21/11/2015,RAIL TRAVEL,FUSION,EMPLOYEE EXPENSES,100789039,80.17
United Kingdom Atomic Energy Authority,United Kingdom Atomic Energy Authority,07/11/2015,SUBSISTENCE,SUPPORT SERVICES,EMPLOYEE EXPENSES,100786079,83.33
United Kingdom Atomic Energy Authority,United Kingdom Atomic Energy Authority,21/11/2015,TAXIS,FUSION,EMPLOYEE EXPENSES,100789007,83.52
United Kingdom Atomic Energy Authority,United Kingdom Atomic Energy Authority,07/11/2015,ENTERTAINMENT - STAFF,FUSION,EMPLOYEE EXPENSES,100786060,84.45
United Kingdom Atomic Energy Authority,United Kingdom Atomic Energy Authority,21/11/2015,MILEAGE ALLOWANCE,FUSION,EMPLOYEE EXPENSES,100789024,86.40
United Kingdom Atomic Energy Authority,United Kingdom Atomic Energy Authority,30/10/2015,SUBSISTENCE,FUSION,EMPLOYEE EXPENSES,100785961,88.27
United Kingdom Atomic Energy Authority,United Kingdom Atomic Energy Authority,07/11/2015,MILEAGE ALLOWANCE,FUSION,EMPLOYEE EXPENSES,100786047,90.00
United Kingdom Atomic Energy Authority,United Kingdom Atomic Energy Authority,21/11/2015,SUBSISTENCE,FUSION,EMPLOYEE EXPENSES,100789038,90.24
United Kingdom Atomic Energy Authority,United Kingdom Atomic Energy Authority,21/11/2015,PROFESSIONAL SUBSCRIPTION,FUSION,EMPLOYEE EXPENSES,100789020,91.40
United Kingdom Atomic Energy Authority,United Kingdom Atomic Energy Authority,12/11/2015,SUBSISTENCE,FUSION,EMPLOYEE EXPENSES,100786218,93.79
United Kingdom Atomic Energy Authority,United Kingdom Atomic Energy Authority,21/11/2015,SUBSISTENCE,FUSION,EMPLOYEE EXPENSES,100789022,95.80
United Kingdom Atomic Energy Authority,United Kingdom Atomic Energy Authority,30/10/2015,RAIL TRAVEL,FUSION,EMPLOYEE EXPENSES,100785961,97.70
United Kingdom Atomic Energy Authority,United Kingdom Atomic Energy Authority,21/11/2015,MILEAGE ALLOWANCE,FUSION,EMPLOYEE EXPENSES,100789028,99.96
United Kingdom Atomic Energy Authority,United Kingdom Atomic Energy Authority,07/11/2015,SUBSISTENCE,FUSION,EMPLOYEE EXPENSES,100786056,101.96
United Kingdom Atomic Energy Authority,United Kingdom Atomic Energy Authority,30/10/2015,MILEAGE ALLOWANCE,FUSION,EMPLOYEE EXPENSES,100785977,103.50
United Kingdom Atomic Energy Authority,United Kingdom Atomic Energy Authority,21/11/2015,SUBSISTENCE,FUSION,EMPLOYEE EXPENSES,100789045,104.36
United Kingdom Atomic Energy Authority,United Kingdom Atomic Energy Authority,07/11/2015,PROFESSIONAL SUBSCRIPTION,FUSION,EMPLOYEE EXPENSES,100786073,107.50
United Kingdom Atomic Energy Authority,United Kingdom Atomic Energy Authority,30/10/2015,EFDA TRAVEL EXPENSES,FUSION,EMPLOYEE EXPENSES,100785982,113.26
United Kingdom Atomic Energy Authority,United Kingdom Atomic Energy Authority,07/11/2015,TAXIS,FUSION,EMPLOYEE EXPENSES,100786055,114.56
United Kingdom Atomic Energy Authority,United Kingdom Atomic Energy Authority,21/11/2015,CAR HIRE,FUSION,EMPLOYEE EXPENSES,100789034,115.42
United Kingdom Atomic Energy Authority,United Kingdom Atomic Energy Authority,21/11/2015,SUBSISTENCE,FUSION,EMPLOYEE EXPENSES,100789041,115.43
United Kingdom Atomic Energy Authority,United Kingdom Atomic Energy Authority,21/11/2015,RAIL TRAVEL,FUSION,EMPLOYEE EXPENSES,100789035,115.80
United Kingdom Atomic Energy Authority,United Kingdom Atomic Energy Authority,21/11/2015,CAR HIRE,FUSION,EMPLOYEE EXPENSES,100789021,118.07
United Kingdom Atomic Energy Authority,United Kingdom Atomic Energy Authority,21/11/2015,SUBSISTENCE,FUSION,EMPLOYEE EXPENSES,100788993,118.15
United Kingdom Atomic Energy Authority,United Kingdom Atomic Energy Authority,21/11/2015,SUBSISTENCE,SUPPORT SERVICES,EMPLOYEE EXPENSES,100789029,121.52
United Kingdom Atomic Energy Authority,United Kingdom Atomic Energy Authority,21/11/2015,CAR HIRE,FUSION,EMPLOYEE EXPENSES,100789050,124.59
United Kingdom Atomic Energy Authority,United Kingdom Atomic Energy Authority,21/11/2015,SUBSISTENCE,FUSION,EMPLOYEE EXPENSES,100789034,125.47
United Kingdom Atomic Energy Authority,United Kingdom Atomic Energy Authority,21/11/2015,SUBSISTENCE,FUSION,EMPLOYEE EXPENSES,100789011,130.48
United Kingdom Atomic Energy Authority,United Kingdom Atomic Energy Authority,21/11/2015,SUBSISTENCE,FUSION,EMPLOYEE EXPENSES,100789021,130.50
United Kingdom Atomic Energy Authority,United Kingdom Atomic Energy Authority,12/11/2015,SUBSISTENCE,SUPPORT SERVICES,EMPLOYEE EXPENSES,100786213,132.37
United Kingdom Atomic Energy Authority,United Kingdom Atomic Energy Authority,21/11/2015,SUBSISTENCE,FUSION,EMPLOYEE EXPENSES,100788998,134.28
United Kingdom Atomic Energy Authority,United Kingdom Atomic Energy Authority,21/11/2015,TAXIS,SUPPORT SERVICES,EMPLOYEE EXPENSES,100789029,136.61
United Kingdom Atomic Energy Authority,United Kingdom Atomic Energy Authority,30/10/2015,PROFESSIONAL SUBSCRIPTION,FUSION,EMPLOYEE EXPENSES,100785978,137.00
United Kingdom Atomic Energy Authority,United Kingdom Atomic Energy Authority,07/11/2015,SUBSISTENCE,FUSION,EMPLOYEE EXPENSES,100786082,140.33
United Kingdom Atomic Energy Authority,United Kingdom Atomic Energy Authority,21/11/2015,PROFESSIONAL SUBSCRIPTION,FUSION,EMPLOYEE EXPENSES,100788990,141.00
United Kingdom Atomic Energy Authority,United Kingdom Atomic Energy Authority,12/11/2015,SUBSISTENCE,SUPPORT SERVICES,EMPLOYEE EXPENSES,100786203,143.33
United Kingdom Atomic Energy Authority,United Kingdom Atomic Energy Authority,21/11/2015,PROFESSIONAL SUBSCRIPTION,FUSION,EMPLOYEE EXPENSES,100789037,144.00
United Kingdom Atomic Energy Authority,United Kingdom Atomic Energy Authority,07/11/2015,SUBSISTENCE,FUSION,EMPLOYEE EXPENSES,100786066,144.02
United Kingdom Atomic Energy Authority,United Kingdom Atomic Energy Authority,21/11/2015,EFDA TRAVEL EXPENSES,FUSION,EMPLOYEE EXPENSES,100789014,144.85
United Kingdom Atomic Energy Authority,United Kingdom Atomic Energy Authority,12/11/2015,PROFESSIONAL SUBSCRIPTION,FUSION,EMPLOYEE EXPENSES,100786222,145.00
United Kingdom Atomic Energy Authority,United Kingdom Atomic Energy Authority,30/10/2015,SUBSISTENCE,FUSION,EMPLOYEE EXPENSES,100785979,145.93
United Kingdom Atomic Energy Authority,United Kingdom Atomic Energy Authority,21/11/2015,RAIL TRAVEL,FUSION,EMPLOYEE EXPENSES,100789031,146.00
United Kingdom Atomic Energy Authority,United Kingdom Atomic Energy Authority,12/11/2015,SUBSISTENCE,FUSION,EMPLOYEE EXPENSES,100786208,147.20
United Kingdom Atomic Energy Authority,United Kingdom Atomic Energy Authority,21/11/2015,SUBSISTENCE,FUSION,EMPLOYEE EXPENSES,100788993,147.60
United Kingdom Atomic Energy Authority,United Kingdom Atomic Energy Authority,21/11/2015,SUBSISTENCE,FUSION,EMPLOYEE EXPENSES,100789046,148.36
United Kingdom Atomic Energy Authority,United Kingdom Atomic Energy Authority,21/11/2015,SUBSISTENCE,FUSION,EMPLOYEE EXPENSES,100789015,150.20
United Kingdom Atomic Energy Authority,United Kingdom Atomic Energy Authority,21/11/2015,RAIL TRAVEL,FUSION,EMPLOYEE EXPENSES,100789048,154.65
United Kingdom Atomic Energy Authority,United Kingdom Atomic Energy Authority,07/11/2015,SUBSISTENCE,FUSION,EMPLOYEE EXPENSES,100786083,156.67
United Kingdom Atomic Energy Authority,United Kingdom Atomic Energy Authority,21/11/2015,EFDA TRAVEL EXPENSES,FUSION,EMPLOYEE EXPENSES,100789006,158.27
United Kingdom Atomic Energy Authority,United Kingdom Atomic Energy Authority,07/11/2015,SUBSISTENCE,FUSION,EMPLOYEE EXPENSES,100786059,161.79
United Kingdom Atomic Energy Authority,United Kingdom Atomic Energy Authority,07/11/2015,SUBSISTENCE,FUSION,EMPLOYEE EXPENSES,100786076,163.62
United Kingdom Atomic Energy Authority,United Kingdom Atomic Energy Authority,12/11/2015,AIR TRAVEL,FUSION,EMPLOYEE EXPENSES,100786210,164.91
United Kingdom Atomic Energy Authority,United Kingdom Atomic Energy Authority,07/11/2015,AIR TRAVEL,FUSION,EMPLOYEE EXPENSES,100786047,166.98
United Kingdom Atomic Energy Authority,United Kingdom Atomic Energy Authority,07/11/2015,MILEAGE ALLOWANCE,FUSION,EMPLOYEE EXPENSES,100786072,169.20
United Kingdom Atomic Energy Authority,United Kingdom Atomic Energy Authority,21/11/2015,CAR HIRE,SUPPORT SERVICES,EMPLOYEE EXPENSES,100789033,173.79
United Kingdom Atomic Energy Authority,United Kingdom Atomic Energy Authority,30/10/2015,PROFESSIONAL SUBSCRIPTION,SUPPORT SERVICES,EMPLOYEE EXPENSES,100785965,178.50
United Kingdom Atomic Energy Authority,United Kingdom Atomic Energy Authority,07/11/2015,OTHER EMPLOYEE EXPENSES,FUSION,EMPLOYEE EXPENSES,100786046,178.65
United Kingdom Atomic Energy Authority,United Kingdom Atomic Energy Authority,12/11/2015,CAR HIRE,FUSION,EMPLOYEE EXPENSES,100786204,180.23
United Kingdom Atomic Energy Authority,United Kingdom Atomic Energy Authority,12/11/2015,CAR HIRE,SUPPORT SERVICES,EMPLOYEE EXPENSES,100786203,186.36
United Kingdom Atomic Energy Authority,United Kingdom Atomic Energy Authority,21/11/2015,SUBSISTENCE,FUSION,EMPLOYEE EXPENSES,100789050,194.31
United Kingdom Atomic Energy Authority,United Kingdom Atomic Energy Authority,12/11/2015,RAIL TRAVEL,SUPPORT SERVICES,EMPLOYEE EXPENSES,100786220,199.88
United Kingdom Atomic Energy Authority,United Kingdom Atomic Energy Authority,21/11/2015,EFDA TRAVEL EXPENSES,FUSION,EMPLOYEE EXPENSES,100789004,209.82
United Kingdom Atomic Energy Authority,United Kingdom Atomic Energy Authority,07/11/2015,PROFESSIONAL SUBSCRIPTION,SUPPORT SERVICES,EMPLOYEE EXPENSES,100786061,213.70
United Kingdom Atomic Energy Authority,United Kingdom Atomic Energy Authority,30/10/2015,PROFESSIONAL SUBSCRIPTION,FUSION,EMPLOYEE EXPENSES,100785958,213.70
United Kingdom Atomic Energy Authority,United Kingdom Atomic Energy Authority,21/11/2015,PROFESSIONAL SUBSCRIPTION,FUSION,EMPLOYEE EXPENSES,100789000,213.70
United Kingdom Atomic Energy Authority,United Kingdom Atomic Energy Authority,21/11/2015,PROFESSIONAL SUBSCRIPTION,FUSION,EMPLOYEE EXPENSES,100789023,213.70
United Kingdom Atomic Energy Authority,United Kingdom Atomic Energy Authority,12/11/2015,SUBSISTENCE,FUSION,EMPLOYEE EXPENSES,100786218,216.12
United Kingdom Atomic Energy Authority,United Kingdom Atomic Energy Authority,21/11/2015,SUBSISTENCE,FUSION,EMPLOYEE EXPENSES,100789007,231.71
United Kingdom Atomic Energy Authority,United Kingdom Atomic Energy Authority,12/11/2015,SUBSISTENCE,SUPPORT SERVICES,EMPLOYEE EXPENSES,100786199,231.87
United Kingdom Atomic Energy Authority,United Kingdom Atomic Energy Authority,21/11/2015,SUBSISTENCE,FUSION,EMPLOYEE EXPENSES,100789012,237.21
United Kingdom Atomic Energy Authority,United Kingdom Atomic Energy Authority,21/11/2015,SUBSISTENCE,FUSION,EMPLOYEE EXPENSES,100788997,238.80
United Kingdom Atomic Energy Authority,United Kingdom Atomic Energy Authority,21/11/2015,SUBSISTENCE,FUSION,EMPLOYEE EXPENSES,100788992,240.27
United Kingdom Atomic Energy Authority,United Kingdom Atomic Energy Authority,07/11/2015,SUBSISTENCE,FUSION,EMPLOYEE EXPENSES,100786057,243.26
United Kingdom Atomic Energy Authority,United Kingdom Atomic Energy Authority,07/11/2015,SUBSISTENCE,FUSION,EMPLOYEE EXPENSES,100786070,245.02
United Kingdom Atomic Energy Authority,United Kingdom Atomic Energy Authority,21/11/2015,SUBSISTENCE,FUSION,EMPLOYEE EXPENSES,100789013,245.72
United Kingdom Atomic Energy Authority,United Kingdom Atomic Energy Authority,30/10/2015,SUBSISTENCE,FUSION,EMPLOYEE EXPENSES,100785962,246.54
United Kingdom Atomic Energy Authority,United Kingdom Atomic Energy Authority,07/11/2015,PROFESSIONAL SUBSCRIPTION,FUSION,EMPLOYEE EXPENSES,100786078,253.30
United Kingdom Atomic Energy Authority,United Kingdom Atomic Energy Authority,21/11/2015,SUBSISTENCE,FUSION,EMPLOYEE EXPENSES,100788991,264.84
United Kingdom Atomic Energy Authority,United Kingdom Atomic Energy Authority,21/11/2015,EFDA TRAVEL EXPENSES,FUSION,EMPLOYEE EXPENSES,100789010,270.13
United Kingdom Atomic Energy Authority,United Kingdom Atomic Energy Authority,21/11/2015,EFDA TRAVEL EXPENSES,FUSION,EMPLOYEE EXPENSES,100789002,270.83
United Kingdom Atomic Energy Authority,United Kingdom Atomic Energy Authority,07/11/2015,AIR TRAVEL,FUSION,EMPLOYEE EXPENSES,100786049,271.64
United Kingdom Atomic Energy Authority,United Kingdom Atomic Energy Authority,12/11/2015,PROFESSIONAL SUBSCRIPTION,FUSION,EMPLOYEE EXPENSES,100786207,272.00
United Kingdom Atomic Energy Authority,United Kingdom Atomic Energy Authority,07/11/2015,CAR HIRE,FUSION,EMPLOYEE EXPENSES,100786066,277.01
United Kingdom Atomic Energy Authority,United Kingdom Atomic Energy Authority,12/11/2015,SUBSISTENCE,FUSION,EMPLOYEE EXPENSES,100786205,277.97
United Kingdom Atomic Energy Authority,United Kingdom Atomic Energy Authority,07/11/2015,SUBSISTENCE,FUSION,EMPLOYEE EXPENSES,100786055,279.90
United Kingdom Atomic Energy Authority,United Kingdom Atomic Energy Authority,12/11/2015,SUBSISTENCE,FUSION,EMPLOYEE EXPENSES,100786209,285.36
United Kingdom Atomic Energy Authority,United Kingdom Atomic Energy Authority,30/10/2015,OTHER EMPLOYEE EXPENSES,FUSION,EMPLOYEE EXPENSES,100785980,300.00
United Kingdom Atomic Energy Authority,United Kingdom Atomic Energy Authority,21/11/2015,EFDA TRAVEL EXPENSES,FUSION,EMPLOYEE EXPENSES,100789001,302.37
United Kingdom Atomic Energy Authority,United Kingdom Atomic Energy Authority,21/11/2015,SUBSISTENCE,FUSION,EMPLOYEE EXPENSES,100789003,330.17
United Kingdom Atomic Energy Authority,United Kingdom Atomic Energy Authority,12/11/2015,SUBSISTENCE,FUSION,EMPLOYEE EXPENSES,100786206,346.45
United Kingdom Atomic Energy Authority,United Kingdom Atomic Energy Authority,21/11/2015,SUBSISTENCE,FUSION,EMPLOYEE EXPENSES,100788985,356.43
United Kingdom Atomic Energy Authority,United Kingdom Atomic Energy Authority,21/11/2015,SUBSISTENCE,FUSION,EMPLOYEE EXPENSES,100789016,361.20
United Kingdom Atomic Energy Authority,United Kingdom Atomic Energy Authority,21/11/2015,SUBSISTENCE,FUSION,EMPLOYEE EXPENSES,100788996,372.65
United Kingdom Atomic Energy Authority,United Kingdom Atomic Energy Authority,07/11/2015,SUBSISTENCE,FUSION,EMPLOYEE EXPENSES,100786058,377.63
United Kingdom Atomic Energy Authority,United Kingdom Atomic Energy Authority,21/11/2015,SUBSISTENCE,FUSION,EMPLOYEE EXPENSES,100789042,386.14
United Kingdom Atomic Energy Authority,United Kingdom Atomic Energy Authority,07/11/2015,SUBSISTENCE,FUSION,EMPLOYEE EXPENSES,100786043,412.33
United Kingdom Atomic Energy Authority,United Kingdom Atomic Energy Authority,12/11/2015,SUBSISTENCE,FUSION,EMPLOYEE EXPENSES,100786204,412.93
United Kingdom Atomic Energy Authority,United Kingdom Atomic Energy Authority,21/11/2015,EFDA TRAVEL EXPENSES,FUSION,EMPLOYEE EXPENSES,100789009,454.58
United Kingdom Atomic Energy Authority,United Kingdom Atomic Energy Authority,21/11/2015,SUBSISTENCE,FUSION,EMPLOYEE EXPENSES,100789018,485.58
United Kingdom Atomic Energy Authority,United Kingdom Atomic Energy Authority,21/11/2015,SUBSISTENCE,FUSION,EMPLOYEE EXPENSES,100788995,487.96
United Kingdom Atomic Energy Authority,United Kingdom Atomic Energy Authority,07/11/2015,SUBSISTENCE,FUSION,EMPLOYEE EXPENSES,100786053,489.52
United Kingdom Atomic Energy Authority,United Kingdom Atomic Energy Authority,07/11/2015,SUBSISTENCE,FUSION,EMPLOYEE EXPENSES,100786049,497.83
United Kingdom Atomic Energy Authority,United Kingdom Atomic Energy Authority,30/10/2015,SUBSISTENCE,FUSION,EMPLOYEE EXPENSES,100785981,510.46
United Kingdom Atomic Energy Authority,United Kingdom Atomic Energy Authority,30/10/2015,SUBSISTENCE,FUSION,EMPLOYEE EXPENSES,100785976,514.26
United Kingdom Atomic Energy Authority,United Kingdom Atomic Energy Authority,21/11/2015,SUBSISTENCE,FUSION,EMPLOYEE EXPENSES,100789039,515.92
United Kingdom Atomic Energy Authority,United Kingdom Atomic Energy Authority,07/11/2015,SUBSISTENCE,FUSION,EMPLOYEE EXPENSES,100786069,552.07
United Kingdom Atomic Energy Authority,United Kingdom Atomic Energy Authority,30/10/2015,EFDA TRAVEL EXPENSES,FUSION,EMPLOYEE EXPENSES,100785966,558.43
United Kingdom Atomic Energy Authority,United Kingdom Atomic Energy Authority,07/11/2015,SUBSISTENCE,FUSION,EMPLOYEE EXPENSES,100786054,562.05
United Kingdom Atomic Energy Authority,United Kingdom Atomic Energy Authority,30/10/2015,SUBSISTENCE,FUSION,EMPLOYEE EXPENSES,100785964,573.62
United Kingdom Atomic Energy Authority,United Kingdom Atomic Energy Authority,21/11/2015,SUBSISTENCE,FUSION,EMPLOYEE EXPENSES,100788989,582.78
United Kingdom Atomic Energy Authority,United Kingdom Atomic Energy Authority,07/11/2015,SUBSISTENCE,FUSION,EMPLOYEE EXPENSES,100786047,590.27
United Kingdom Atomic Energy Authority,United Kingdom Atomic Energy Authority,30/10/2015,EFDA TRAVEL EXPENSES,FUSION,EMPLOYEE EXPENSES,100785967,598.98
United Kingdom Atomic Energy Authority,United Kingdom Atomic Energy Authority,21/11/2015,SUBSISTENCE,FUSION,EMPLOYEE EXPENSES,100789048,631.10
United Kingdom Atomic Energy Authority,United Kingdom Atomic Energy Authority,21/11/2015,EFDA TRAVEL EXPENSES,FUSION,EMPLOYEE EXPENSES,100789008,639.06
United Kingdom Atomic Energy Authority,United Kingdom Atomic Energy Authority,21/11/2015,SUBSISTENCE,FUSION,EMPLOYEE EXPENSES,100789043,722.79
United Kingdom Atomic Energy Authority,United Kingdom Atomic Energy Authority,12/11/2015,SUBSISTENCE,FUSION,EMPLOYEE EXPENSES,100786210,799.16
United Kingdom Atomic Energy Authority,United Kingdom Atomic Energy Authority,21/11/2015,SUBSISTENCE,FUSION,EMPLOYEE EXPENSES,100789003,954.80
United Kingdom Atomic Energy Authority,United Kingdom Atomic Energy Authority,07/11/2015,OTHER STAFF COSTS,FUSION,EMPLOYEE EXPENSES,100786081,"1,150.00"
United Kingdom Atomic Energy Authority,United Kingdom Atomic Energy Authority,12/11/2015,SUBSISTENCE,SUPPORT SERVICES,EMPLOYEE EXPENSES,100786220,"1,747.00"
United Kingdom Atomic Energy Authority,United Kingdom Atomic Energy Authority,02/11/2015,PROFESSIONAL SERVICES,FUSION,ENGINEERING SAFETY INSPECTION SERVICE,5100328458,700.00
United Kingdom Atomic Energy Authority,United Kingdom Atomic Energy Authority,26/10/2015,REGULATORY COSTS,FUSION,ENVIRONMENT AGENCY,5100327706,"1,290.00"
United Kingdom Atomic Energy Authority,United Kingdom Atomic Energy Authority,02/11/2015,MATERIALS & SPARES,FUSION,ERIKS UK,5100328568,"1,328.60"
United Kingdom Atomic Energy Authority,United Kingdom Atomic Energy Authority,09/11/2015,MATERIALS & SPARES,FUSION,ETS CABLE COMPONENTS,5100328789,177.16
United Kingdom Atomic Energy Authority,United Kingdom Atomic Energy Authority,06/11/2015,TRAINING COURSE FEES,FUSION,Exclusive Networks Ltd,1900061188," 1,389.60"
United Kingdom Atomic Energy Authority,United Kingdom Atomic Energy Authority,16/11/2015,PROFESSIONAL SERVICES,FUSION,FAITHFUL & GOULD,5100329302,"2,274.45"
United Kingdom Atomic Energy Authority,United Kingdom Atomic Energy Authority,16/11/2015,PROFESSIONAL SERVICES,FUSION,FAITHFUL & GOULD,5100329306,"4,878.46"
United Kingdom Atomic Energy Authority,United Kingdom Atomic Energy Authority,11/11/2015,PROFESSIONAL SERVICES,SUPPORT SERVICES,FAITHFUL & GOULD,5100328859,"6,143.57"
United Kingdom Atomic Energy Authority,United Kingdom Atomic Energy Authority,28/10/2015,PROFESSIONAL SERVICES,FUSION,FAITHFUL & GOULD,5100327193,"6,480.00"
United Kingdom Atomic Energy Authority,United Kingdom Atomic Energy Authority,04/11/2015,MATERIALS & SPARES,FUSION,FARNELL ELECTRONIC,5100328823,-193.94
United Kingdom Atomic Energy Authority,United Kingdom Atomic Energy Authority,04/11/2015,MATERIALS & SPARES,FUSION,FARNELL ELECTRONIC,5100328830,-134.30
United Kingdom Atomic Energy Authority,United Kingdom Atomic Energy Authority,04/11/2015,MATERIALS & SPARES,FUSION,FARNELL ELECTRONIC,5100328826,-24.92
United Kingdom Atomic Energy Authority,United Kingdom Atomic Energy Authority,04/11/2015,MATERIALS & SPARES,FUSION,FARNELL ELECTRONIC,5100328500,-15.82
United Kingdom Atomic Energy Authority,United Kingdom Atomic Energy Authority,09/11/2015,MATERIALS & SPARES,FUSION,FARNELL ELECTRONIC,5100328816,1.70
United Kingdom Atomic Energy Authority,United Kingdom Atomic Energy Authority,16/11/2015,MATERIALS & SPARES,FUSION,FARNELL ELECTRONIC,5100329080,2.30
United Kingdom Atomic Energy Authority,United Kingdom Atomic Energy Authority,11/11/2015,MATERIALS & SPARES,FUSION,FARNELL ELECTRONIC,5100328808,2.73
United Kingdom Atomic Energy Authority,United Kingdom Atomic Energy Authority,02/11/2015,MATERIALS & SPARES,FUSION,FARNELL ELECTRONIC,5100328487,4.32
United Kingdom Atomic Energy Authority,United Kingdom Atomic Energy Authority,09/11/2015,MATERIALS & SPARES,FUSION,FARNELL ELECTRONIC,5100328776,4.55
United Kingdom Atomic Energy Authority,United Kingdom Atomic Energy Authority,26/10/2015,MATERIALS & SPARES,FUSION,FARNELL ELECTRONIC,5100328352,5.00
United Kingdom Atomic Energy Authority,United Kingdom Atomic Energy Authority,02/11/2015,MATERIALS & SPARES,FUSION,FARNELL ELECTRONIC,5100328511,5.46
United Kingdom Atomic Energy Authority,United Kingdom Atomic Energy Authority,16/11/2015,MATERIALS & SPARES,FUSION,FARNELL ELECTRONIC,5100329111,5.80
United Kingdom Atomic Energy Authority,United Kingdom Atomic Energy Authority,02/11/2015,MATERIALS & SPARES,FUSION,FARNELL ELECTRONIC,5100328542,5.95
United Kingdom Atomic Energy Authority,United Kingdom Atomic Energy Authority,26/10/2015,MATERIALS & SPARES,FUSION,FARNELL ELECTRONIC,5100328200,6.27
United Kingdom Atomic Energy Authority,United Kingdom Atomic Energy Authority,26/10/2015,MATERIALS & SPARES,FUSION,FARNELL ELECTRONIC,5100328217,8.34
United Kingdom Atomic Energy Authority,United Kingdom Atomic Energy Authority,26/10/2015,MATERIALS & SPARES,FUSION,FARNELL ELECTRONIC,5100328210,9.52
United Kingdom Atomic Energy Authority,United Kingdom Atomic Energy Authority,09/11/2015,MATERIALS & SPARES,FUSION,FARNELL ELECTRONIC,5100328784,11.33
United Kingdom Atomic Energy Authority,United Kingdom Atomic Energy Authority,02/11/2015,MATERIALS & SPARES,FUSION,FARNELL ELECTRONIC,5100328494,14.69
United Kingdom Atomic Energy Authority,United Kingdom Atomic Energy Authority,18/11/2015,MATERIALS & SPARES,FUSION,FARNELL ELECTRONIC,5100329120,15.43
United Kingdom Atomic Energy Authority,United Kingdom Atomic Energy Authority,26/10/2015,MATERIALS & SPARES,FUSION,FARNELL ELECTRONIC,5100328345,16.53
United Kingdom Atomic Energy Authority,United Kingdom Atomic Energy Authority,02/11/2015,MATERIALS & SPARES,FUSION,FARNELL ELECTRONIC,5100328508,17.38
United Kingdom Atomic Energy Authority,United Kingdom Atomic Energy Authority,04/11/2015,MATERIALS & SPARES,FUSION,FARNELL ELECTRONIC,5100328534,21.05
United Kingdom Atomic Energy Authority,United Kingdom Atomic Energy Authority,28/10/2015,MATERIALS & SPARES,FUSION,FARNELL ELECTRONIC,5100327043,21.40
United Kingdom Atomic Energy Authority,United Kingdom Atomic Energy Authority,26/10/2015,MATERIALS & SPARES,FUSION,FARNELL ELECTRONIC,5100328205,25.17
United Kingdom Atomic Energy Authority,United Kingdom Atomic Energy Authority,02/11/2015,MATERIALS & SPARES,FUSION,FARNELL ELECTRONIC,5100328486,26.69
United Kingdom Atomic Energy Authority,United Kingdom Atomic Energy Authority,26/10/2015,MATERIALS & SPARES,FUSION,FARNELL ELECTRONIC,5100328215,28.70
United Kingdom Atomic Energy Authority,United Kingdom Atomic Energy Authority,02/11/2015,MATERIALS & SPARES,FUSION,FARNELL ELECTRONIC,5100328510,28.71
United Kingdom Atomic Energy Authority,United Kingdom Atomic Energy Authority,26/10/2015,MATERIALS & SPARES,FUSION,FARNELL ELECTRONIC,5100328216,28.96
United Kingdom Atomic Energy Authority,United Kingdom Atomic Energy Authority,26/10/2015,MATERIALS & SPARES,FUSION,FARNELL ELECTRONIC,5100328343,31.64
United Kingdom Atomic Energy Authority,United Kingdom Atomic Energy Authority,02/11/2015,MATERIALS & SPARES,FUSION,FARNELL ELECTRONIC,5100328496,32.79
United Kingdom Atomic Energy Authority,United Kingdom Atomic Energy Authority,09/11/2015,MATERIALS & SPARES,FUSION,FARNELL ELECTRONIC,5100328778,36.59
United Kingdom Atomic Energy Authority,United Kingdom Atomic Energy Authority,26/10/2015,MATERIALS & SPARES,FUSION,FARNELL ELECTRONIC,5100328350,38.69
United Kingdom Atomic Energy Authority,United Kingdom Atomic Energy Authority,02/11/2015,MATERIALS & SPARES,FUSION,FARNELL ELECTRONIC,5100328539,39.81
United Kingdom Atomic Energy Authority,United Kingdom Atomic Energy Authority,26/10/2015,MATERIALS & SPARES,FUSION,FARNELL ELECTRONIC,5100328351,41.37
United Kingdom Atomic Energy Authority,United Kingdom Atomic Energy Authority,16/11/2015,MATERIALS & SPARES,FUSION,FARNELL ELECTRONIC,5100329082,42.27
United Kingdom Atomic Energy Authority,United Kingdom Atomic Energy Authority,16/11/2015,MATERIALS & SPARES,FUSION,FARNELL ELECTRONIC,5100329264,42.37
United Kingdom Atomic Energy Authority,United Kingdom Atomic Energy Authority,02/11/2015,MATERIALS & SPARES,FUSION,FARNELL ELECTRONIC,5100328536,45.43
United Kingdom Atomic Energy Authority,United Kingdom Atomic Energy Authority,09/11/2015,MATERIALS & SPARES,FUSION,FARNELL ELECTRONIC,5100328777,45.60
United Kingdom Atomic Energy Authority,United Kingdom Atomic Energy Authority,16/11/2015,MATERIALS & SPARES,FUSION,FARNELL ELECTRONIC,5100329117,51.90
United Kingdom Atomic Energy Authority,United Kingdom Atomic Energy Authority,02/11/2015,MATERIALS & SPARES,FUSION,FARNELL ELECTRONIC,5100328492,52.30
United Kingdom Atomic Energy Authority,United Kingdom Atomic Energy Authority,16/11/2015,MATERIALS & SPARES,FUSION,FARNELL ELECTRONIC,5100328537,54.37
United Kingdom Atomic Energy Authority,United Kingdom Atomic Energy Authority,16/11/2015,MATERIALS & SPARES,FUSION,FARNELL ELECTRONIC,5100329112,54.37
United Kingdom Atomic Energy Authority,United Kingdom Atomic Energy Authority,02/11/2015,MATERIALS & SPARES,FUSION,FARNELL ELECTRONIC,5100328499,58.89
United Kingdom Atomic Energy Authority,United Kingdom Atomic Energy Authority,26/10/2015,MATERIALS & SPARES,FUSION,FARNELL ELECTRONIC,5100328202,59.07
United Kingdom Atomic Energy Authority,United Kingdom Atomic Energy Authority,26/10/2015,MATERIALS & SPARES,FUSION,FARNELL ELECTRONIC,5100328203,68.00
United Kingdom Atomic Energy Authority,United Kingdom Atomic Energy Authority,04/11/2015,MATERIALS & SPARES,FUSION,FARNELL ELECTRONIC,5100328538,74.25
United Kingdom Atomic Energy Authority,United Kingdom Atomic Energy Authority,02/11/2015,MATERIALS & SPARES,FUSION,FARNELL ELECTRONIC,5100328541,79.75
United Kingdom Atomic Energy Authority,United Kingdom Atomic Energy Authority,26/10/2015,MATERIALS & SPARES,FUSION,FARNELL ELECTRONIC,5100328213,83.32
United Kingdom Atomic Energy Authority,United Kingdom Atomic Energy Authority,09/11/2015,MATERIALS & SPARES,FUSION,FARNELL ELECTRONIC,5100328771,83.63
United Kingdom Atomic Energy Authority,United Kingdom Atomic Energy Authority,02/11/2015,MATERIALS & SPARES,FUSION,FARNELL ELECTRONIC,5100328530,88.84
United Kingdom Atomic Energy Authority,United Kingdom Atomic Energy Authority,04/11/2015,MATERIALS & SPARES,FUSION,FARNELL ELECTRONIC,5100328535,94.84
United Kingdom Atomic Energy Authority,United Kingdom Atomic Energy Authority,26/10/2015,MATERIALS & SPARES,FUSION,FARNELL ELECTRONIC,5100328348,105.95
United Kingdom Atomic Energy Authority,United Kingdom Atomic Energy Authority,09/11/2015,MATERIALS & SPARES,FUSION,FARNELL ELECTRONIC,5100328842,119.64
United Kingdom Atomic Energy Authority,United Kingdom Atomic Energy Authority,02/11/2015,MATERIALS & SPARES,FUSION,FARNELL ELECTRONIC,5100328507,124.75
United Kingdom Atomic Energy Authority,United Kingdom Atomic Energy Authority,26/10/2015,MATERIALS & SPARES,FUSION,FARNELL ELECTRONIC,5100328206,125.54
United Kingdom Atomic Energy Authority,United Kingdom Atomic Energy Authority,26/10/2015,MATERIALS & SPARES,FUSION,FARNELL ELECTRONIC,5100328214,126.69
United Kingdom Atomic Energy Authority,United Kingdom Atomic Energy Authority,26/10/2015,MATERIALS & SPARES,FUSION,FARNELL ELECTRONIC,5100328211,135.10
United Kingdom Atomic Energy Authority,United Kingdom Atomic Energy Authority,16/11/2015,MATERIALS & SPARES,FUSION,FARNELL ELECTRONIC,5100329081,146.88
United Kingdom Atomic Energy Authority,United Kingdom Atomic Energy Authority,16/11/2015,MATERIALS & SPARES,FUSION,FARNELL ELECTRONIC,5100329113,154.08
United Kingdom Atomic Energy Authority,United Kingdom Atomic Energy Authority,09/11/2015,MATERIALS & SPARES,FUSION,FARNELL ELECTRONIC,5100328833,159.92
United Kingdom Atomic Energy Authority,United Kingdom Atomic Energy Authority,11/11/2015,MATERIALS & SPARES,FUSION,FARNELL ELECTRONIC,5100328812,170.62
United Kingdom Atomic Energy Authority,United Kingdom Atomic Energy Authority,09/11/2015,MATERIALS & SPARES,FUSION,FARNELL ELECTRONIC,5100328852,181.86
United Kingdom Atomic Energy Authority,United Kingdom Atomic Energy Authority,09/11/2015,MATERIALS & SPARES,FUSION,FARNELL ELECTRONIC,5100328780,182.85
United Kingdom Atomic Energy Authority,United Kingdom Atomic Energy Authority,02/11/2015,MATERIALS & SPARES,FUSION,FARNELL ELECTRONIC,5100328485,218.86
United Kingdom Atomic Energy Authority,United Kingdom Atomic Energy Authority,04/11/2015,MATERIALS & SPARES,FUSION,FARNELL ELECTRONIC,5100328490,218.86
United Kingdom Atomic Energy Authority,United Kingdom Atomic Energy Authority,02/11/2015,MATERIALS & SPARES,FUSION,FARNELL ELECTRONIC,5100328529,220.48
United Kingdom Atomic Energy Authority,United Kingdom Atomic Energy Authority,09/11/2015,MATERIALS & SPARES,FUSION,FARNELL ELECTRONIC,5100327408,283.60
United Kingdom Atomic Energy Authority,United Kingdom Atomic Energy Authority,02/11/2015,MATERIALS & SPARES,FUSION,FARNELL ELECTRONIC,5100328533,302.56
United Kingdom Atomic Energy Authority,United Kingdom Atomic Energy Authority,11/11/2015,MATERIALS & SPARES,FUSION,FARNELL ELECTRONIC,5100328532,338.50
United Kingdom Atomic Energy Authority,United Kingdom Atomic Energy Authority,26/10/2015,MATERIALS & SPARES,FUSION,FARNELL ELECTRONIC,5100328339,353.54
United Kingdom Atomic Energy Authority,United Kingdom Atomic Energy Authority,16/11/2015,MATERIALS & SPARES,FUSION,FARNELL ELECTRONIC,5100329115,392.94
United Kingdom Atomic Energy Authority,United Kingdom Atomic Energy Authority,18/11/2015,MATERIALS & SPARES,FUSION,FARNELL ELECTRONIC,5100329122,423.13
United Kingdom Atomic Energy Authority,United Kingdom Atomic Energy Authority,11/11/2015,MATERIALS & SPARES,FUSION,FARNELL ELECTRONIC,5100328810,506.82
United Kingdom Atomic Energy Authority,United Kingdom Atomic Energy Authority,26/10/2015,MATERIALS & SPARES,FUSION,FARNELL ELECTRONIC,5100327913,598.76
United Kingdom Atomic Energy Authority,United Kingdom Atomic Energy Authority,11/11/2015,MATERIALS & SPARES,FUSION,FARNELL ELECTRONIC,5100328540,611.16
United Kingdom Atomic Energy Authority,United Kingdom Atomic Energy Authority,26/10/2015,MATERIALS & SPARES,FUSION,FARNELL ELECTRONIC,5100328354,628.14
United Kingdom Atomic Energy Authority,United Kingdom Atomic Energy Authority,26/10/2015,MATERIALS & SPARES,FUSION,FARNELL ELECTRONIC,5100328333,715.43
United Kingdom Atomic Energy Authority,United Kingdom Atomic Energy Authority,26/10/2015,MATERIALS & SPARES,FUSION,FARNELL ELECTRONIC,5100328204,798.51
United Kingdom Atomic Energy Authority,United Kingdom Atomic Energy Authority,18/11/2015,SOFTWARE,FUSION,FARO UK LTD,5100329344,"9,480.00"
United Kingdom Atomic Energy Authority,United Kingdom Atomic Energy Authority,09/11/2015,MATERIALS & SPARES,FUSION,FASTFIX,5100328955,127.50
United Kingdom Atomic Energy Authority,United Kingdom Atomic Energy Authority,09/11/2015,MATERIALS & SPARES,FUSION,FASTFIX,5100328979,241.50
United Kingdom Atomic Energy Authority,United Kingdom Atomic Energy Authority,16/11/2015,PLANT & EQUIPMENT,FUSION,Feedwater LTD,5100329053,719.80
United Kingdom Atomic Energy Authority,United Kingdom Atomic Energy Authority,02/11/2015,PLANT & EQUIPMENT,FUSION,FISHER SCIENTIFIC UK LTD,5100328639,11.61
United Kingdom Atomic Energy Authority,United Kingdom Atomic Energy Authority,09/11/2015,PLANT & EQUIPMENT,FUSION,FISHER SCIENTIFIC UK LTD,5100328233,11.87
United Kingdom Atomic Energy Authority,United Kingdom Atomic Energy Authority,26/10/2015,PLANT & EQUIPMENT,FUSION,FISHER SCIENTIFIC UK LTD,5100328248,36.08
United Kingdom Atomic Energy Authority,United Kingdom Atomic Energy Authority,04/11/2015,PLANT & EQUIPMENT,FUSION,FISHER SCIENTIFIC UK LTD,5100328638,39.88
United Kingdom Atomic Energy Authority,United Kingdom Atomic Energy Authority,02/11/2015,PLANT & EQUIPMENT,FUSION,FISHER SCIENTIFIC UK LTD,5100328502,40.20
United Kingdom Atomic Energy Authority,United Kingdom Atomic Energy Authority,26/10/2015,PLANT & EQUIPMENT,FUSION,FISHER SCIENTIFIC UK LTD,5100328306,43.46
United Kingdom Atomic Energy Authority,United Kingdom Atomic Energy Authority,18/11/2015,PLANT & EQUIPMENT,FUSION,FISHER SCIENTIFIC UK LTD,5100329287,155.09
United Kingdom Atomic Energy Authority,United Kingdom Atomic Energy Authority,02/11/2015,PLANT & EQUIPMENT,FUSION,FISHER SCIENTIFIC UK LTD,5100328668,197.60
United Kingdom Atomic Energy Authority,United Kingdom Atomic Energy Authority,09/11/2015,PLANT & EQUIPMENT,SUPPORT SERVICES,FISHER SCIENTIFIC UK LTD,5100328818,202.96
United Kingdom Atomic Energy Authority,United Kingdom Atomic Energy Authority,18/11/2015,PLANT & EQUIPMENT,FUSION,FISHER SCIENTIFIC UK LTD,5100329334,222.80
United Kingdom Atomic Energy Authority,United Kingdom Atomic Energy Authority,09/11/2015,PLANT & EQUIPMENT,FUSION,FISHER SCIENTIFIC UK LTD,5100328855,250.30
United Kingdom Atomic Energy Authority,United Kingdom Atomic Energy Authority,26/10/2015,PLANT & EQUIPMENT,FUSION,FISHER SCIENTIFIC UK LTD,5100328120,350.54
United Kingdom Atomic Energy Authority,United Kingdom Atomic Energy Authority,02/11/2015,PLANT & EQUIPMENT,FUSION,FISHER SCIENTIFIC UK LTD,5100328667,367.82
United Kingdom Atomic Energy Authority,United Kingdom Atomic Energy Authority,09/11/2015,PLANT & EQUIPMENT,FUSION,FISHER SCIENTIFIC UK LTD,5100328827,375.45
United Kingdom Atomic Energy Authority,United Kingdom Atomic Energy Authority,18/11/2015,PLANT & EQUIPMENT,FUSION,FISHER SCIENTIFIC UK LTD,5100329289,759.52
United Kingdom Atomic Energy Authority,United Kingdom Atomic Energy Authority,26/10/2015,PLANT & EQUIPMENT,FUSION,FISHER SCIENTIFIC UK LTD,5100328079,"1,362.75"
United Kingdom Atomic Energy Authority,United Kingdom Atomic Energy Authority,09/11/2015,PLANT & EQUIPMENT,FUSION,FISHER SCIENTIFIC UK LTD,5100328817,"1,780.00"
United Kingdom Atomic Energy Authority,United Kingdom Atomic Energy Authority,02/11/2015,STATIONERY,FUSION,FLAPS ENVELOPES LTD,5100328409,102.52
United Kingdom Atomic Energy Authority,United Kingdom Atomic Energy Authority,28/10/2015,MATERIALS & SPARES,FUSION,FORGEWELD LTD,5100327542,51.00
United Kingdom Atomic Energy Authority,United Kingdom Atomic Energy Authority,26/10/2015,MATERIALS & SPARES,FUSION,FORGEWELD LTD,5100328107,96.90
United Kingdom Atomic Energy Authority,United Kingdom Atomic Energy Authority,04/11/2015,MATERIALS & SPARES,FUSION,FORGEWELD LTD,5100328720,461.86
United Kingdom Atomic Energy Authority,United Kingdom Atomic Energy Authority,11/11/2015,PROFESSIONAL SERVICES,FUSION,FORTRESS INTERLOCKS LTD,5100329008,"3,012.00"
United Kingdom Atomic Energy Authority,United Kingdom Atomic Energy Authority,09/11/2015,PROFESSIONAL SERVICES,FUSION,FORTRESS INTERLOCKS LTD,5100328951,"5,374.55"
United Kingdom Atomic Energy Authority,United Kingdom Atomic Energy Authority,11/11/2015,MATERIALS & SPARES,FUSION,FORWARD 2000 LTD,5100328836,27.94
United Kingdom Atomic Energy Authority,United Kingdom Atomic Energy Authority,28/10/2015,MATERIALS & SPARES,FUSION,FORWARD 2000 LTD,5100328383,205.00
United Kingdom Atomic Energy Authority,United Kingdom Atomic Energy Authority,02/11/2015,MATERIALS & SPARES,FUSION,FORWARD 2000 LTD,5100328675,582.29
United Kingdom Atomic Energy Authority,United Kingdom Atomic Energy Authority,28/10/2015,MATERIALS & SPARES,FUSION,FORWARD 2000 LTD,5100328102,"2,161.40"
United Kingdom Atomic Energy Authority,United Kingdom Atomic Energy Authority,16/11/2015,MATERIALS & SPARES,FUSION,FTI LTD,5100329192,242.78
United Kingdom Atomic Energy Authority,United Kingdom Atomic Energy Authority,02/11/2015,MATERIALS & SPARES,FUSION,FTI LTD,5100328628,281.15
United Kingdom Atomic Energy Authority,United Kingdom Atomic Energy Authority,09/11/2015,MATERIALS & SPARES,FUSION,FTI LTD,5100328838,320.79
United Kingdom Atomic Energy Authority,United Kingdom Atomic Energy Authority,18/11/2015,MATERIALS & SPARES,FUSION,FuG ELECTRONIK ,5100328320,"2,771.25"
United Kingdom Atomic Energy Authority,United Kingdom Atomic Energy Authority,04/11/2015,MATERIALS & SPARES,FUSION,FuG ELECTRONIK ,5100328742,"4,154.42"
United Kingdom Atomic Energy Authority,United Kingdom Atomic Energy Authority,02/11/2015,CONSUMABLES,FUSION,GM BAILEY AIR CONDITIONING,5100328517,674.44
United Kingdom Atomic Energy Authority,United Kingdom Atomic Energy Authority,11/11/2015,SITE SUPPORT SERVICES,PROPERTY,GO PLANT LTD,5100328655,"1,495.50"
United Kingdom Atomic Energy Authority,United Kingdom Atomic Energy Authority,26/10/2015,PLANT & EQUIPMENT,FUSION,GOODFELLOW CAMBRIDGE LTD,5100328398,100.00
United Kingdom Atomic Energy Authority,United Kingdom Atomic Energy Authority,02/11/2015,PLANT & EQUIPMENT,FUSION,GOODFELLOW CAMBRIDGE LTD,5100328488,228.00
United Kingdom Atomic Energy Authority,United Kingdom Atomic Energy Authority,16/11/2015,PLANT & EQUIPMENT,FUSION,GOODFELLOW CAMBRIDGE LTD,5100329291,669.00
United Kingdom Atomic Energy Authority,United Kingdom Atomic Energy Authority,26/10/2015,MATERIALS & SPARES,FUSION,GREYHOUND CHROMATOGRAPHY,5100328164,922.80
United Kingdom Atomic Energy Authority,United Kingdom Atomic Energy Authority,26/10/2015,PROFESSIONAL SERVICES,PROPERTY,GRUNDON WASTE MANAGEMENT LTD,5100328228,75.22
United Kingdom Atomic Energy Authority,United Kingdom Atomic Energy Authority,16/11/2015,PROFESSIONAL SERVICES,PROPERTY,GRUNDON WASTE MANAGEMENT LTD,5100329321,79.40
United Kingdom Atomic Energy Authority,United Kingdom Atomic Energy Authority,26/10/2015,PROFESSIONAL SERVICES,PROPERTY,GRUNDON WASTE MANAGEMENT LTD,5100328227,96.12
United Kingdom Atomic Energy Authority,United Kingdom Atomic Energy Authority,16/11/2015,PROFESSIONAL SERVICES,PROPERTY,GRUNDON WASTE MANAGEMENT LTD,5100329320,96.12
United Kingdom Atomic Energy Authority,United Kingdom Atomic Energy Authority,16/11/2015,PROFESSIONAL SERVICES,PROPERTY,GRUNDON WASTE MANAGEMENT LTD,5100329314,110.00
United Kingdom Atomic Energy Authority,United Kingdom Atomic Energy Authority,16/11/2015,PROFESSIONAL SERVICES,PROPERTY,GRUNDON WASTE MANAGEMENT LTD,5100329315,110.00
United Kingdom Atomic Energy Authority,United Kingdom Atomic Energy Authority,16/11/2015,PROFESSIONAL SERVICES,PROPERTY,GRUNDON WASTE MANAGEMENT LTD,5100329316,122.12
United Kingdom Atomic Energy Authority,United Kingdom Atomic Energy Authority,16/11/2015,PROFESSIONAL SERVICES,PROPERTY,GRUNDON WASTE MANAGEMENT LTD,5100329322,122.12
United Kingdom Atomic Energy Authority,United Kingdom Atomic Energy Authority,26/10/2015,PROFESSIONAL SERVICES,PROPERTY,GRUNDON WASTE MANAGEMENT LTD,5100328230,128.62
United Kingdom Atomic Energy Authority,United Kingdom Atomic Energy Authority,26/10/2015,PROFESSIONAL SERVICES,PROPERTY,GRUNDON WASTE MANAGEMENT LTD,5100328220,128.62
United Kingdom Atomic Energy Authority,United Kingdom Atomic Energy Authority,26/10/2015,PROFESSIONAL SERVICES,PROPERTY,GRUNDON WASTE MANAGEMENT LTD,5100328223,137.50
United Kingdom Atomic Energy Authority,United Kingdom Atomic Energy Authority,26/10/2015,PROFESSIONAL SERVICES,PROPERTY,GRUNDON WASTE MANAGEMENT LTD,5100328224,137.50
United Kingdom Atomic Energy Authority,United Kingdom Atomic Energy Authority,16/11/2015,PROFESSIONAL SERVICES,PROPERTY,GRUNDON WASTE MANAGEMENT LTD,5100329317,259.56
United Kingdom Atomic Energy Authority,United Kingdom Atomic Energy Authority,16/11/2015,PROFESSIONAL SERVICES,PROPERTY,GRUNDON WASTE MANAGEMENT LTD,5100329318,270.24
United Kingdom Atomic Energy Authority,United Kingdom Atomic Energy Authority,26/10/2015,PROFESSIONAL SERVICES,PROPERTY,GRUNDON WASTE MANAGEMENT LTD,5100328221,289.74
United Kingdom Atomic Energy Authority,United Kingdom Atomic Energy Authority,26/10/2015,PROFESSIONAL SERVICES,PROPERTY,GRUNDON WASTE MANAGEMENT LTD,5100328222,289.74
United Kingdom Atomic Energy Authority,United Kingdom Atomic Energy Authority,16/11/2015,PROFESSIONAL SERVICES,PROPERTY,GRUNDON WASTE MANAGEMENT LTD,5100329319,636.60
United Kingdom Atomic Energy Authority,United Kingdom Atomic Energy Authority,26/10/2015,PROFESSIONAL SERVICES,PROPERTY,GRUNDON WASTE MANAGEMENT LTD,5100328226,675.60
United Kingdom Atomic Energy Authority,United Kingdom Atomic Energy Authority,16/11/2015,PROFESSIONAL SERVICES,PROPERTY,GRUNDON WASTE MANAGEMENT LTD,5100329313,904.41
United Kingdom Atomic Energy Authority,United Kingdom Atomic Energy Authority,26/10/2015,PROFESSIONAL SERVICES,PROPERTY,GRUNDON WASTE MANAGEMENT LTD,5100328219,929.10
United Kingdom Atomic Energy Authority,United Kingdom Atomic Energy Authority,16/11/2015,MATERIALS & SPARES,FUSION,GUNNEBO UK LTD,5100329257,-85.00
United Kingdom Atomic Energy Authority,United Kingdom Atomic Energy Authority,16/11/2015,MATERIALS & SPARES,FUSION,GUNNEBO UK LTD,5100328403,85.00
United Kingdom Atomic Energy Authority,United Kingdom Atomic Energy Authority,04/11/2015,BUILDING REPAIRS,FUSION,H & H Scaffolding Ltd,5100328637,"4,439.00"
United Kingdom Atomic Energy Authority,United Kingdom Atomic Energy Authority,26/10/2015,MATERIALS & SPARES,FUSION,HAMAMATSU PHOTONICS LTD,5100328085,992.00
United Kingdom Atomic Energy Authority,United Kingdom Atomic Energy Authority,09/11/2015,TAXIS,FUSION,HAROLDS CARS,5100328879,"6,535.55"
United Kingdom Atomic Energy Authority,United Kingdom Atomic Energy Authority,09/11/2015,MATERIALS & SPARES,FUSION,Harting Ltd,5100328813,468.42
United Kingdom Atomic Energy Authority,United Kingdom Atomic Energy Authority,09/11/2015,PLANT & EQUIPMENT,FUSION,HEWDEN,5100328501,"1,226.50"
United Kingdom Atomic Energy Authority,United Kingdom Atomic Energy Authority,18/11/2015,PLANT & EQUIPMENT,FUSION,HEWDEN,5100329170,"1,226.50"
United Kingdom Atomic Energy Authority,United Kingdom Atomic Energy Authority,18/11/2015,PLANT & EQUIPMENT,FUSION,HEWDEN,5100329342,"1,244.50"
United Kingdom Atomic Energy Authority,United Kingdom Atomic Energy Authority,02/11/2015,MATERIALS & SPARES,FUSION,HIDEN ANALYTICAL LTD,5100328472,"2,795.00"
United Kingdom Atomic Energy Authority,United Kingdom Atomic Energy Authority,16/11/2015,PROFESSIONAL SERVICES,FUSION,HILLS WASTE SOLUTIONS LTD,5100329367,-25.00
United Kingdom Atomic Energy Authority,United Kingdom Atomic Energy Authority,16/11/2015,PROFESSIONAL SERVICES,FUSION,HILLS WASTE SOLUTIONS LTD,5100328895,9.03
United Kingdom Atomic Energy Authority,United Kingdom Atomic Energy Authority,28/10/2015,PROFESSIONAL SERVICES,FUSION,HILLS WASTE SOLUTIONS LTD,5100327461,15.00
United Kingdom Atomic Energy Authority,United Kingdom Atomic Energy Authority,16/11/2015,PROFESSIONAL SERVICES,FUSION,HILLS WASTE SOLUTIONS LTD,5100328882,15.00
United Kingdom Atomic Energy Authority,United Kingdom Atomic Energy Authority,16/11/2015,PROFESSIONAL SERVICES,FUSION,HILLS WASTE SOLUTIONS LTD,5100328892,25.00
United Kingdom Atomic Energy Authority,United Kingdom Atomic Energy Authority,28/10/2015,PROFESSIONAL SERVICES,FUSION,HILLS WASTE SOLUTIONS LTD,5100327460,30.00
United Kingdom Atomic Energy Authority,United Kingdom Atomic Energy Authority,16/11/2015,PROFESSIONAL SERVICES,FUSION,HILLS WASTE SOLUTIONS LTD,5100328894,30.00
United Kingdom Atomic Energy Authority,United Kingdom Atomic Energy Authority,28/10/2015,PROFESSIONAL SERVICES,FUSION,HILLS WASTE SOLUTIONS LTD,5100327462,240.00
United Kingdom Atomic Energy Authority,United Kingdom Atomic Energy Authority,28/10/2015,PROFESSIONAL SERVICES,FUSION,HILLS WASTE SOLUTIONS LTD,5100327454,244.00
United Kingdom Atomic Energy Authority,United Kingdom Atomic Energy Authority,28/10/2015,PROFESSIONAL SERVICES,FUSION,HILLS WASTE SOLUTIONS LTD,5100327464,694.00
United Kingdom Atomic Energy Authority,United Kingdom Atomic Energy Authority,28/10/2015,PROFESSIONAL SERVICES,FUSION,HILLS WASTE SOLUTIONS LTD,5100327453,"1,783.72"
United Kingdom Atomic Energy Authority,United Kingdom Atomic Energy Authority,16/11/2015,PROFESSIONAL SERVICES,FUSION,HILLS WASTE SOLUTIONS LTD,5100328888,"2,578.79"
United Kingdom Atomic Energy Authority,United Kingdom Atomic Energy Authority,16/11/2015,PROFESSIONAL SERVICES,FUSION,HILLS WASTE SOLUTIONS LTD,5100328954,"9,592.78"
United Kingdom Atomic Energy Authority,United Kingdom Atomic Energy Authority,11/11/2015,REPAIRS & MAINTENANCE,FUSION,HITEK LTD,5100328811,25.00
United Kingdom Atomic Energy Authority,United Kingdom Atomic Energy Authority,16/11/2015,REPAIRS & MAINTENANCE,FUSION,HITEK LTD,5100329223,81.25
United Kingdom Atomic Energy Authority,United Kingdom Atomic Energy Authority,16/11/2015,REPAIRS & MAINTENANCE,FUSION,HITEK LTD,5100329153,85.00
United Kingdom Atomic Energy Authority,United Kingdom Atomic Energy Authority,16/11/2015,REPAIRS & MAINTENANCE,FUSION,HITEK LTD,5100329207,130.00
United Kingdom Atomic Energy Authority,United Kingdom Atomic Energy Authority,09/11/2015,REPAIRS & MAINTENANCE,FUSION,HITEK LTD,5100328856,"2,290.00"
United Kingdom Atomic Energy Authority,United Kingdom Atomic Energy Authority,11/11/2015,TRAVEL,SUPPORT SERVICES,Hogg Robinson(Travel)Ltd T/A HRG UK,5100329016,"27,834.73"
United Kingdom Atomic Energy Authority,United Kingdom Atomic Energy Authority,19/11/2015,PROFESSIONAL SERVICES,FUSION,HONEYWELL ANALYTICS (SALES &SERVICE,5100327659,225.00
United Kingdom Atomic Energy Authority,United Kingdom Atomic Energy Authority,19/11/2015,PROFESSIONAL SERVICES,FUSION,HONEYWELL ANALYTICS (SALES &SERVICE,5100328633,225.00
United Kingdom Atomic Energy Authority,United Kingdom Atomic Energy Authority,19/11/2015,PROFESSIONAL SERVICES,FUSION,HONEYWELL ANALYTICS (SALES &SERVICE,5100327663,"1,819.00"
United Kingdom Atomic Energy Authority,United Kingdom Atomic Energy Authority,19/11/2015,PROFESSIONAL SERVICES,FUSION,HONEYWELL ANALYTICS (SALES &SERVICE,5100328186,"4,565.00"
United Kingdom Atomic Energy Authority,United Kingdom Atomic Energy Authority,09/11/2015,MATERIALS & SPARES,FUSION,HOTCHKISS AIR SUPPLY,5100328986,80.78
United Kingdom Atomic Energy Authority,United Kingdom Atomic Energy Authority,02/11/2015,PROFESSIONAL SERVICES,FUSION,HSE - FINANCIAL OPERATIONS,5100328636,175.00
United Kingdom Atomic Energy Authority,United Kingdom Atomic Energy Authority,16/11/2015,CONSUMABLES,FUSION,HURCO,5100329206,361.45
United Kingdom Atomic Energy Authority,United Kingdom Atomic Energy Authority,09/11/2015,PROFESSIONAL SERVICES,FUSION,HUTTON ENGINEERING (PRECISION) LTD,5100328968,314.00
United Kingdom Atomic Energy Authority,United Kingdom Atomic Energy Authority,26/10/2015,PROFESSIONAL SERVICES,FUSION,HUTTON ENGINEERING (PRECISION) LTD,5100326310,432.00
United Kingdom Atomic Energy Authority,United Kingdom Atomic Energy Authority,09/11/2015,PROFESSIONAL SERVICES,FUSION,HUTTON ENGINEERING (PRECISION) LTD,5100328630,452.20
United Kingdom Atomic Energy Authority,United Kingdom Atomic Energy Authority,16/11/2015,CLEANING,FUSION,HYDROBLAST,5100329009,505.00
United Kingdom Atomic Energy Authority,United Kingdom Atomic Energy Authority,04/11/2015,CLEANING,FUSION,HYDROBLAST,5100328353,510.00
United Kingdom Atomic Energy Authority,United Kingdom Atomic Energy Authority,16/11/2015,CLEANING,FUSION,HYDROBLAST,5100328993,860.00
United Kingdom Atomic Energy Authority,United Kingdom Atomic Energy Authority,09/11/2015,CLEANING,FUSION,HYDROBLAST,5100325911,"1,430.00"
United Kingdom Atomic Energy Authority,United Kingdom Atomic Energy Authority,11/11/2015,PLANT SPARES,FUSION,Hydromarque Ltd,1900061203, 264.90
United Kingdom Atomic Energy Authority,United Kingdom Atomic Energy Authority,09/11/2015,PROFESSIONAL SERVICES,FUSION,HYTEC ELECTRONICS LTD,5100328841,"5,626.60"
United Kingdom Atomic Energy Authority,United Kingdom Atomic Energy Authority,11/11/2015,MATERIALS & SPARES,FUSION,ICS Cool Energy Ltd,5100329172,-601.00
United Kingdom Atomic Energy Authority,United Kingdom Atomic Energy Authority,11/11/2015,MATERIALS & SPARES,FUSION,ICS Cool Energy Ltd,5100329173,601.00
United Kingdom Atomic Energy Authority,United Kingdom Atomic Energy Authority,11/11/2015,MATERIALS & SPARES,FUSION,ICS Cool Energy Ltd,5100328657,"13,281.00"
United Kingdom Atomic Energy Authority,United Kingdom Atomic Energy Authority,16/11/2015,STATIONERY,PROPERTY,IDENTILAM PLC,5100329214,"1,037.00"
United Kingdom Atomic Energy Authority,United Kingdom Atomic Energy Authority,16/11/2015,PROFESSIONAL SERVICES,FUSION,IET SERVICES LIMITED,5100329145,-50.00
United Kingdom Atomic Energy Authority,United Kingdom Atomic Energy Authority,16/11/2015,PROFESSIONAL SERVICES,FUSION,IET SERVICES LIMITED,5100329148,30.00
United Kingdom Atomic Energy Authority,United Kingdom Atomic Energy Authority,16/11/2015,PROFESSIONAL SERVICES,FUSION,IET SERVICES LIMITED,5100329141,290.00
United Kingdom Atomic Energy Authority,United Kingdom Atomic Energy Authority,28/10/2015,MATERIALS: NON-HAZARDOUS,FUSION,ILF Ltd,5100328555,-241.00
United Kingdom Atomic Energy Authority,United Kingdom Atomic Energy Authority,28/10/2015,MATERIALS: NON-HAZARDOUS,FUSION,ILF Ltd,5100328340,241.00
United Kingdom Atomic Energy Authority,United Kingdom Atomic Energy Authority,28/10/2015,MATERIALS: NON-HAZARDOUS,FUSION,ILF Ltd,5100328556,241.00
United Kingdom Atomic Energy Authority,United Kingdom Atomic Energy Authority,16/11/2015,MATERIALS: NON-HAZARDOUS,FUSION,ILF Ltd,5100329198,294.00
United Kingdom Atomic Energy Authority,United Kingdom Atomic Energy Authority,02/11/2015,MEDICAL EXPENSES,FUSION,IMASS LTD,5100327081,"4,985.41"
United Kingdom Atomic Energy Authority,United Kingdom Atomic Energy Authority,09/11/2015,MEDICAL EXPENSES,FUSION,IMASS LTD,5100328737,"4,985.41"
United Kingdom Atomic Energy Authority,United Kingdom Atomic Energy Authority,16/11/2015,UNIVERSITY PLACEMENT,FUSION,IMPERIAL COLLEGE,5100327658,"9,556.53"
United Kingdom Atomic Energy Authority,United Kingdom Atomic Energy Authority,16/11/2015,MATERIALS & SPARES,PROPERTY,Industrial Technical Ltd,5100329234,38.70
United Kingdom Atomic Energy Authority,United Kingdom Atomic Energy Authority,26/10/2015,MATERIALS & SPARES,FUSION,Industrial Technical Ltd,5100328104,141.60
United Kingdom Atomic Energy Authority,United Kingdom Atomic Energy Authority,28/10/2015,MATERIALS & SPARES,FUSION,Industrial Technical Ltd,5100328332,146.10
United Kingdom Atomic Energy Authority,United Kingdom Atomic Energy Authority,26/10/2015,MATERIALS & SPARES,FUSION,Industrial Technical Ltd,5100328103,198.40
United Kingdom Atomic Energy Authority,United Kingdom Atomic Energy Authority,09/11/2015,MATERIALS & SPARES,FUSION,Industrial Technical Ltd,5100328673,377.80
United Kingdom Atomic Energy Authority,United Kingdom Atomic Energy Authority,04/11/2015,PLANT & EQUIPMENT,FUSION,INNOLAS UK LTD,5100328512,720.00
United Kingdom Atomic Energy Authority,United Kingdom Atomic Energy Authority,09/11/2015,PLANT & EQUIPMENT,FUSION,INNOLAS UK LTD,5100328904,780.00
United Kingdom Atomic Energy Authority,United Kingdom Atomic Energy Authority,11/11/2015,MATERIALS & SPARES,PROPERTY,INSULATION CONTRACTING SERVICES,5100328950,314.26
United Kingdom Atomic Energy Authority,United Kingdom Atomic Energy Authority,02/11/2015,MATERIALS & SPARES,FUSION,INSULATION CONTRACTING SERVICES,5100328442,"1,380.63"
United Kingdom Atomic Energy Authority,United Kingdom Atomic Energy Authority,28/10/2015,PROFESSIONAL SERVICES,FUSION,INTEGRATE SYSTEMS ENGINEERING LTD,5100326731,"4,156.00"
United Kingdom Atomic Energy Authority,United Kingdom Atomic Energy Authority,09/11/2015,PUBLICATIONS,FUSION,IOP PUBLISHING LTD,5100328981,656.25
United Kingdom Atomic Energy Authority,United Kingdom Atomic Energy Authority,26/10/2015,PUBLICATIONS,FUSION,IOP PUBLISHING LTD,5100328231,"1,875.00"
United Kingdom Atomic Energy Authority,United Kingdom Atomic Energy Authority,11/11/2015,BOOKS & PUBLICATIONS,FUSION,IOP Publishing Ltd - EUR,5100329002,375.00
United Kingdom Atomic Energy Authority,United Kingdom Atomic Energy Authority,11/11/2015,BOOKS & PUBLICATIONS,FUSION,IOP Publishing Ltd - EUR,5100328997,468.75
United Kingdom Atomic Energy Authority,United Kingdom Atomic Energy Authority,28/10/2015,BOOKS & PUBLICATIONS,FUSION,IOP Publishing Ltd - EUR,5100328330,843.75
United Kingdom Atomic Energy Authority,United Kingdom Atomic Energy Authority,28/10/2015,BOOKS & PUBLICATIONS,FUSION,IOP Publishing Ltd - EUR,5100328229,"1,333.33"
United Kingdom Atomic Energy Authority,United Kingdom Atomic Energy Authority,11/11/2015,BOOKS & PUBLICATIONS,FUSION,IOP Publishing Ltd - EUR,5100328999,"1,406.24"
United Kingdom Atomic Energy Authority,United Kingdom Atomic Energy Authority,11/11/2015,BOOKS & PUBLICATIONS,FUSION,IOP Publishing Ltd - EUR,5100329000,"1,406.24"
United Kingdom Atomic Energy Authority,United Kingdom Atomic Energy Authority,11/11/2015,BOOKS & PUBLICATIONS,FUSION,IOP Publishing Ltd - EUR,5100329005,"1,687.49"
United Kingdom Atomic Energy Authority,United Kingdom Atomic Energy Authority,11/11/2015,BOOKS & PUBLICATIONS,FUSION,IOP Publishing Ltd - EUR,5100329007,"1,687.49"
United Kingdom Atomic Energy Authority,United Kingdom Atomic Energy Authority,11/11/2015,BOOKS & PUBLICATIONS,FUSION,IOP Publishing Ltd - EUR,5100328996,"1,699.99"
United Kingdom Atomic Energy Authority,United Kingdom Atomic Energy Authority,11/11/2015,MATERIALS & SPARES,FUSION,IS RAYFAST LTD,5100328835,576.04
United Kingdom Atomic Energy Authority,United Kingdom Atomic Energy Authority,02/11/2015,TRAINING COSTS,FUSION,ISIS TRAINING SERVICES LTD,5100328429,228.00
United Kingdom Atomic Energy Authority,United Kingdom Atomic Energy Authority,02/11/2015,PLANT & EQUIPMENT,FUSION,J & J PNEUMATICS LTD,5100328642,101.72
United Kingdom Atomic Energy Authority,United Kingdom Atomic Energy Authority,18/11/2015,PLANT & EQUIPMENT,FUSION,JOHNSON MATTHEY PLC,5100329279,506.44
United Kingdom Atomic Energy Authority,United Kingdom Atomic Energy Authority,04/11/2015,PLANT & EQUIPMENT,FUSION,JUMO Instrument Co Ltd,1900061186, 579.92
United Kingdom Atomic Energy Authority,United Kingdom Atomic Energy Authority,11/11/2015,PLANT & EQUIPMENT,FUSION,JUMO Instrument Co Ltd,1900061200," 1,304.40"
United Kingdom Atomic Energy Authority,United Kingdom Atomic Energy Authority,16/11/2015,PLANT & EQUIPMENT,FUSION,KAISER & KRAFT LTD,5100329285,"1,755.00"
United Kingdom Atomic Energy Authority,United Kingdom Atomic Energy Authority,30/10/2015,DELIVERY & CARRIAGE,FUSION,Kee Klamp Ltd,1900061181," 4,452.00"
United Kingdom Atomic Energy Authority,United Kingdom Atomic Energy Authority,02/11/2015,PROFESSIONAL SERVICES,PROPERTY,KEMP & KEMP,5100327561,"1,050.00"
United Kingdom Atomic Energy Authority,United Kingdom Atomic Energy Authority,16/11/2015,COMPUTER REPAIRS,FUSION,KEMPSTON CONTROLS,5100328407,970.78
United Kingdom Atomic Energy Authority,United Kingdom Atomic Energy Authority,26/10/2015,LEGAL FEES,SUPPORT SERVICES,KEOGHS,5100328418,325.50
United Kingdom Atomic Energy Authority,United Kingdom Atomic Energy Authority,26/10/2015,LEGAL FEES,SUPPORT SERVICES,KEOGHS,5100328419,346.50
United Kingdom Atomic Energy Authority,United Kingdom Atomic Energy Authority,02/11/2015,LEGAL FEES,SUPPORT SERVICES,KEOGHS,5100328693,399.00
United Kingdom Atomic Energy Authority,United Kingdom Atomic Energy Authority,02/11/2015,LEGAL FEES,SUPPORT SERVICES,KEOGHS,5100328691,468.75
United Kingdom Atomic Energy Authority,United Kingdom Atomic Energy Authority,09/11/2015,LEGAL FEES,SUPPORT SERVICES,KEOGHS,5100328916,619.50
United Kingdom Atomic Energy Authority,United Kingdom Atomic Energy Authority,04/11/2015,LEGAL FEES,SUPPORT SERVICES,KEOGHS,5100328772,"2,125.00"
United Kingdom Atomic Energy Authority,United Kingdom Atomic Energy Authority,02/11/2015,MATERIALS & SPARES,FUSION,KEY INDUSTRIAL EQUIPMENT LTD,5100328495,703.40
United Kingdom Atomic Energy Authority,United Kingdom Atomic Energy Authority,02/11/2015,MATERIALS & SPARES,FUSION,KEY INDUSTRIAL EQUIPMENT LTD,5100328503,726.75
United Kingdom Atomic Energy Authority,United Kingdom Atomic Energy Authority,02/11/2015,MATERIALS & SPARES,FUSION,KeyMed Ltd,5100328663,"22,610.00"
United Kingdom Atomic Energy Authority,United Kingdom Atomic Energy Authority,02/11/2015,PLANT SPARES,FUSION,KNIGHT OPTICAL UK LTD,5100326710,"-1,417.50"
United Kingdom Atomic Energy Authority,United Kingdom Atomic Energy Authority,16/11/2015,PLANT SPARES,FUSION,KNIGHT OPTICAL UK LTD,5100329360,640.00
United Kingdom Atomic Energy Authority,United Kingdom Atomic Energy Authority,16/11/2015,PLANT SPARES,FUSION,KNIGHT OPTICAL UK LTD,5100329362,"1,122.43"
United Kingdom Atomic Energy Authority,United Kingdom Atomic Energy Authority,02/11/2015,PLANT SPARES,FUSION,KNIGHT OPTICAL UK LTD,5100328450,"7,833.61"
United Kingdom Atomic Energy Authority,United Kingdom Atomic Energy Authority,02/11/2015,BUILDING REPAIRS,PROPERTY,KNOWLES & SONS (OXFORD) LTD,5100328745,"-15,357.11"
United Kingdom Atomic Energy Authority,United Kingdom Atomic Energy Authority,18/11/2015,BUILDING REPAIRS,PROPERTY,KNOWLES & SONS (OXFORD) LTD,5100329439,-415.86
United Kingdom Atomic Energy Authority,United Kingdom Atomic Energy Authority,02/11/2015,BUILDING REPAIRS,SUPPORT SERVICES,KNOWLES & SONS (OXFORD) LTD,5100328460,25.00
United Kingdom Atomic Energy Authority,United Kingdom Atomic Energy Authority,02/11/2015,BUILDING REPAIRS,FUSION,KNOWLES & SONS (OXFORD) LTD,5100328455,25.00
United Kingdom Atomic Energy Authority,United Kingdom Atomic Energy Authority,02/11/2015,BUILDING REPAIRS,PROPERTY,KNOWLES & SONS (OXFORD) LTD,5100328436,25.00
United Kingdom Atomic Energy Authority,United Kingdom Atomic Energy Authority,02/11/2015,BUILDING REPAIRS,PROPERTY,KNOWLES & SONS (OXFORD) LTD,5100328457,25.00
United Kingdom Atomic Energy Authority,United Kingdom Atomic Energy Authority,02/11/2015,BUILDING REPAIRS,FUSION,KNOWLES & SONS (OXFORD) LTD,5100328469,27.02
United Kingdom Atomic Energy Authority,United Kingdom Atomic Energy Authority,02/11/2015,BUILDING REPAIRS,FUSION,KNOWLES & SONS (OXFORD) LTD,5100328471,29.51
United Kingdom Atomic Energy Authority,United Kingdom Atomic Energy Authority,02/11/2015,BUILDING REPAIRS,PROPERTY,KNOWLES & SONS (OXFORD) LTD,5100328473,54.57
United Kingdom Atomic Energy Authority,United Kingdom Atomic Energy Authority,02/11/2015,BUILDING REPAIRS,FUSION,KNOWLES & SONS (OXFORD) LTD,5100328466,57.71
United Kingdom Atomic Energy Authority,United Kingdom Atomic Energy Authority,02/11/2015,BUILDING REPAIRS,FUSION,KNOWLES & SONS (OXFORD) LTD,5100328464,74.70
United Kingdom Atomic Energy Authority,United Kingdom Atomic Energy Authority,02/11/2015,BUILDING REPAIRS,PROPERTY,KNOWLES & SONS (OXFORD) LTD,5100328478,99.72
United Kingdom Atomic Energy Authority,United Kingdom Atomic Energy Authority,02/11/2015,BUILDING REPAIRS,SUPPORT SERVICES,KNOWLES & SONS (OXFORD) LTD,5100328482,183.36
United Kingdom Atomic Energy Authority,United Kingdom Atomic Energy Authority,02/11/2015,BUILDING REPAIRS,FUSION,KNOWLES & SONS (OXFORD) LTD,5100328483,225.50
United Kingdom Atomic Energy Authority,United Kingdom Atomic Energy Authority,02/11/2015,BUILDING REPAIRS,PROPERTY,KNOWLES & SONS (OXFORD) LTD,5100328480,288.19
United Kingdom Atomic Energy Authority,United Kingdom Atomic Energy Authority,02/11/2015,BUILDING REPAIRS,PROPERTY,KNOWLES & SONS (OXFORD) LTD,5100328481,297.72
United Kingdom Atomic Energy Authority,United Kingdom Atomic Energy Authority,02/11/2015,BUILDING REPAIRS,PROPERTY,KNOWLES & SONS (OXFORD) LTD,5100328439,385.50
United Kingdom Atomic Energy Authority,United Kingdom Atomic Energy Authority,02/11/2015,BUILDING REPAIRS,FUSION,KNOWLES & SONS (OXFORD) LTD,5100328444,451.00
United Kingdom Atomic Energy Authority,United Kingdom Atomic Energy Authority,02/11/2015,BUILDING REPAIRS,PROPERTY,KNOWLES & SONS (OXFORD) LTD,5100328445,673.69
United Kingdom Atomic Energy Authority,United Kingdom Atomic Energy Authority,02/11/2015,BUILDING REPAIRS,PROPERTY,KNOWLES & SONS (OXFORD) LTD,5100328448,"1,072.40"
United Kingdom Atomic Energy Authority,United Kingdom Atomic Energy Authority,02/11/2015,BUILDING REPAIRS,PROPERTY,KNOWLES & SONS (OXFORD) LTD,5100328446,"1,218.18"
United Kingdom Atomic Energy Authority,United Kingdom Atomic Energy Authority,02/11/2015,BUILDING REPAIRS,PROPERTY,KNOWLES & SONS (OXFORD) LTD,5100328449,"2,048.36"
United Kingdom Atomic Energy Authority,United Kingdom Atomic Energy Authority,26/10/2015,BUILDING REPAIRS,PROPERTY,KNOWLES & SONS (OXFORD) LTD,5100328192,"4,032.31"
United Kingdom Atomic Energy Authority,United Kingdom Atomic Energy Authority,02/11/2015,BUILDING REPAIRS,FUSION,KNOWLES & SONS (OXFORD) LTD,5100328452,"4,954.88"
United Kingdom Atomic Energy Authority,United Kingdom Atomic Energy Authority,02/11/2015,BUILDING REPAIRS,PROPERTY,KNOWLES & SONS (OXFORD) LTD,5100328437,"5,104.35"
United Kingdom Atomic Energy Authority,United Kingdom Atomic Energy Authority,02/11/2015,BUILDING REPAIRS,FUSION,KNOWLES & SONS (OXFORD) LTD,5100328438,"6,736.49"
United Kingdom Atomic Energy Authority,United Kingdom Atomic Energy Authority,18/11/2015,BUILDING REPAIRS,PROPERTY,KNOWLES & SONS (OXFORD) LTD,5100329079,"11,299.16"
United Kingdom Atomic Energy Authority,United Kingdom Atomic Energy Authority,16/11/2015,BUILDING REPAIRS,FUSION,KNOWLES & SONS (OXFORD) LTD,5100329091,"13,544.32"
United Kingdom Atomic Energy Authority,United Kingdom Atomic Energy Authority,02/11/2015,BUILDING REPAIRS,PROPERTY,KNOWLES & SONS (OXFORD) LTD,5100328191,"44,724.83"
United Kingdom Atomic Energy Authority,United Kingdom Atomic Energy Authority,09/11/2015,RENT OF VEHICLE & EQUIPMENT,FUSION,KONSTRUCTA SITE ACCOMMODATION HIRE,5100328122,402.00
United Kingdom Atomic Energy Authority,United Kingdom Atomic Energy Authority,11/11/2015,MATERIALS & SPARES,FUSION,KURT J LESKER,5100328977,97.80
United Kingdom Atomic Energy Authority,United Kingdom Atomic Energy Authority,09/11/2015,MATERIALS & SPARES,FUSION,KURT J LESKER,5100328406,112.92
United Kingdom Atomic Energy Authority,United Kingdom Atomic Energy Authority,09/11/2015,MATERIALS & SPARES,FUSION,KURT J LESKER,5100328967,312.50
United Kingdom Atomic Energy Authority,United Kingdom Atomic Energy Authority,18/11/2015,MATERIALS & SPARES,FUSION,KURT J LESKER,5100329332,638.99
United Kingdom Atomic Energy Authority,United Kingdom Atomic Energy Authority,16/11/2015,CAR HIRE,FUSION,LEASEDRIVE VELO,5100329350,5.46
United Kingdom Atomic Energy Authority,United Kingdom Atomic Energy Authority,02/11/2015,CAR HIRE,FUSION,LEASEDRIVE VELO,5100328615,31.62
United Kingdom Atomic Energy Authority,United Kingdom Atomic Energy Authority,16/11/2015,CAR HIRE,FUSION,LEASEDRIVE VELO,5100329347,31.94
United Kingdom Atomic Energy Authority,United Kingdom Atomic Energy Authority,28/10/2015,CAR HIRE,FUSION,LEASEDRIVE VELO,5100328346,34.39
United Kingdom Atomic Energy Authority,United Kingdom Atomic Energy Authority,18/11/2015,CAR HIRE,FUSION,LEASEDRIVE VELO,5100329351,34.39
United Kingdom Atomic Energy Authority,United Kingdom Atomic Energy Authority,02/11/2015,CAR HIRE,FUSION,LEASEDRIVE VELO,5100328623,36.44
United Kingdom Atomic Energy Authority,United Kingdom Atomic Energy Authority,02/11/2015,CAR HIRE,FUSION,LEASEDRIVE VELO,5100328625,36.44
United Kingdom Atomic Energy Authority,United Kingdom Atomic Energy Authority,26/10/2015,CAR HIRE,FUSION,LEASEDRIVE VELO,5100328347,36.44
United Kingdom Atomic Energy Authority,United Kingdom Atomic Energy Authority,28/10/2015,CAR HIRE,FUSION,LEASEDRIVE VELO,5100328349,36.44
United Kingdom Atomic Energy Authority,United Kingdom Atomic Energy Authority,04/11/2015,CAR HIRE,FUSION,LEASEDRIVE VELO,5100328624,44.18
United Kingdom Atomic Energy Authority,United Kingdom Atomic Energy Authority,26/10/2015,CAR HIRE,FUSION,LEASEDRIVE VELO,5100328344,60.10
United Kingdom Atomic Energy Authority,United Kingdom Atomic Energy Authority,09/11/2015,CAR HIRE,FUSION,LEASEDRIVE VELO,5100328626,61.36
United Kingdom Atomic Energy Authority,United Kingdom Atomic Energy Authority,18/11/2015,CAR HIRE,FUSION,LEASEDRIVE VELO,5100329355,69.56
United Kingdom Atomic Energy Authority,United Kingdom Atomic Energy Authority,26/10/2015,CAR HIRE,FUSION,LEASEDRIVE VELO,5100328116,70.78
United Kingdom Atomic Energy Authority,United Kingdom Atomic Energy Authority,02/11/2015,CAR HIRE,FUSION,LEASEDRIVE VELO,5100328613,76.90
United Kingdom Atomic Energy Authority,United Kingdom Atomic Energy Authority,26/10/2015,CAR HIRE,FUSION,LEASEDRIVE VELO,5100328119,78.21
United Kingdom Atomic Energy Authority,United Kingdom Atomic Energy Authority,11/11/2015,CAR HIRE,FUSION,LEASEDRIVE VELO,5100328614,82.14
United Kingdom Atomic Energy Authority,United Kingdom Atomic Energy Authority,02/11/2015,CAR HIRE,FUSION,LEASEDRIVE VELO,5100328627,82.14
United Kingdom Atomic Energy Authority,United Kingdom Atomic Energy Authority,16/11/2015,CAR HIRE,FUSION,LEASEDRIVE VELO,5100329346,115.16
United Kingdom Atomic Energy Authority,United Kingdom Atomic Energy Authority,16/11/2015,CAR HIRE,FUSION,LEASEDRIVE VELO,5100329348,121.45
United Kingdom Atomic Energy Authority,United Kingdom Atomic Energy Authority,11/11/2015,CAR HIRE,FUSION,LEASEDRIVE VELO,5100328622,171.33
United Kingdom Atomic Energy Authority,United Kingdom Atomic Energy Authority,11/11/2015,PLANT & EQUIPMENT,FUSION,LEE SPRING LTD,5100328982,50.90
United Kingdom Atomic Energy Authority,United Kingdom Atomic Energy Authority,26/10/2015,PLANT & EQUIPMENT,FUSION,LEMO UK LTD,5100328404,240.21
United Kingdom Atomic Energy Authority,United Kingdom Atomic Energy Authority,04/11/2015,SOFTWARE,PROPERTY,LIFTSHARE.COM,5100328312,250.00
United Kingdom Atomic Energy Authority,United Kingdom Atomic Energy Authority,26/10/2015,PROFESSIONAL SERVICES,SUPPORT SERVICES,LOGICA CMG UK LTD,5100327373,"2,345.59"
United Kingdom Atomic Energy Authority,United Kingdom Atomic Energy Authority,09/11/2015,PROFESSIONAL SERVICES,SUPPORT SERVICES,LOGICA CMG UK LTD,5100328787,"2,998.56"
United Kingdom Atomic Energy Authority,United Kingdom Atomic Energy Authority,19/11/2015,BUILDING REPAIRS,PROPERTY,LORNE STEWART PLC,5100329466,-78.87
United Kingdom Atomic Energy Authority,United Kingdom Atomic Energy Authority,16/11/2015,BUILDING REPAIRS,PROPERTY,LORNE STEWART PLC,5100329160,52.58
United Kingdom Atomic Energy Authority,United Kingdom Atomic Energy Authority,19/11/2015,BUILDING REPAIRS,FUSION,LORNE STEWART PLC,5100329467,78.87
United Kingdom Atomic Energy Authority,United Kingdom Atomic Energy Authority,16/11/2015,BUILDING REPAIRS,PROPERTY,LORNE STEWART PLC,5100329161,78.87
United Kingdom Atomic Energy Authority,United Kingdom Atomic Energy Authority,18/11/2015,BUILDING REPAIRS,PROPERTY,LORNE STEWART PLC,5100329165,157.74
United Kingdom Atomic Energy Authority,United Kingdom Atomic Energy Authority,16/11/2015,BUILDING REPAIRS,PROPERTY,LORNE STEWART PLC,5100329155,197.18
United Kingdom Atomic Energy Authority,United Kingdom Atomic Energy Authority,18/11/2015,BUILDING REPAIRS,FUSION,LORNE STEWART PLC,5100329169,289.19
United Kingdom Atomic Energy Authority,United Kingdom Atomic Energy Authority,16/11/2015,BUILDING REPAIRS,PROPERTY,LORNE STEWART PLC,5100329143,350.43
United Kingdom Atomic Energy Authority,United Kingdom Atomic Energy Authority,16/11/2015,BUILDING REPAIRS,PROPERTY,LORNE STEWART PLC,5100329154,449.79
United Kingdom Atomic Energy Authority,United Kingdom Atomic Energy Authority,26/10/2015,BUILDING REPAIRS,PROPERTY,LORNE STEWART PLC,5100328044,656.95
United Kingdom Atomic Energy Authority,United Kingdom Atomic Energy Authority,16/11/2015,BUILDING REPAIRS,PROPERTY,LORNE STEWART PLC,5100329140,700.85
United Kingdom Atomic Energy Authority,United Kingdom Atomic Energy Authority,26/10/2015,BUILDING REPAIRS,PROPERTY,LORNE STEWART PLC,5100328043,936.67
United Kingdom Atomic Energy Authority,United Kingdom Atomic Energy Authority,18/11/2015,BUILDING REPAIRS,PROPERTY,LORNE STEWART PLC,5100329167,985.54
United Kingdom Atomic Energy Authority,United Kingdom Atomic Energy Authority,16/11/2015,BUILDING REPAIRS,PROPERTY,LORNE STEWART PLC,5100329146,"1,436.99"
United Kingdom Atomic Energy Authority,United Kingdom Atomic Energy Authority,16/11/2015,BUILDING REPAIRS,PROPERTY,LORNE STEWART PLC,5100329159,"1,590.75"
United Kingdom Atomic Energy Authority,United Kingdom Atomic Energy Authority,18/11/2015,BUILDING REPAIRS,PROPERTY,LORNE STEWART PLC,5100329166,"1,851.82"
United Kingdom Atomic Energy Authority,United Kingdom Atomic Energy Authority,16/11/2015,BUILDING REPAIRS,PROPERTY,LORNE STEWART PLC,5100329149,"2,288.26"
United Kingdom Atomic Energy Authority,United Kingdom Atomic Energy Authority,16/11/2015,BUILDING REPAIRS,PROPERTY,LORNE STEWART PLC,5100329135,"3,474.78"
United Kingdom Atomic Energy Authority,United Kingdom Atomic Energy Authority,16/11/2015,BUILDING REPAIRS,FUSION,LORNE STEWART PLC,5100329151,"3,513.75"
United Kingdom Atomic Energy Authority,United Kingdom Atomic Energy Authority,18/11/2015,BUILDING REPAIRS,PROPERTY,LORNE STEWART PLC,5100329168,"4,475.78"
United Kingdom Atomic Energy Authority,United Kingdom Atomic Energy Authority,16/11/2015,BUILDING REPAIRS,FUSION,LORNE STEWART PLC,5100329137,"6,196.57"
United Kingdom Atomic Energy Authority,United Kingdom Atomic Energy Authority,18/11/2015,BUILDING REPAIRS,PROPERTY,LORNE STEWART PLC,5100329174,"8,877.72"
United Kingdom Atomic Energy Authority,United Kingdom Atomic Energy Authority,16/11/2015,BUILDING REPAIRS,FUSION,LORNE STEWART PLC,5100329152,"11,846.82"
United Kingdom Atomic Energy Authority,United Kingdom Atomic Energy Authority,16/11/2015,BUILDING REPAIRS,PROPERTY,LORNE STEWART PLC,5100329134,"12,217.38"
United Kingdom Atomic Energy Authority,United Kingdom Atomic Energy Authority,16/11/2015,BUILDING REPAIRS,PROPERTY,LORNE STEWART PLC,5100329158,"14,427.33"
United Kingdom Atomic Energy Authority,United Kingdom Atomic Energy Authority,16/11/2015,BUILDING REPAIRS,FUSION,LORNE STEWART PLC,5100329136,"19,702.84"
United Kingdom Atomic Energy Authority,United Kingdom Atomic Energy Authority,16/11/2015,BUILDING REPAIRS,PROPERTY,LORNE STEWART PLC,5100329157,"29,795.41"
United Kingdom Atomic Energy Authority,United Kingdom Atomic Energy Authority,16/11/2015,MATERIALS & SPARES,FUSION,LOUTH TRANSFORMERS,5100329212,68.00
United Kingdom Atomic Energy Authority,United Kingdom Atomic Energy Authority,04/11/2015,MEDICAL EXPENSES,SUPPORT SERVICES,Lowther Medical Centre,1900061184, 85.00
United Kingdom Atomic Energy Authority,United Kingdom Atomic Energy Authority,02/11/2015,STATIONERY,FUSION,LYRECO UK LIMITED,5100328648,12.38
United Kingdom Atomic Energy Authority,United Kingdom Atomic Energy Authority,26/10/2015,STATIONERY,FUSION,LYRECO UK LIMITED,5100328296,20.62
United Kingdom Atomic Energy Authority,United Kingdom Atomic Energy Authority,09/11/2015,STATIONERY,SUPPORT SERVICES,LYRECO UK LIMITED,5100328971,24.96
United Kingdom Atomic Energy Authority,United Kingdom Atomic Energy Authority,09/11/2015,STATIONERY,FUSION,LYRECO UK LIMITED,5100328644,85.46
United Kingdom Atomic Energy Authority,United Kingdom Atomic Energy Authority,02/11/2015,STATIONERY,FUSION,LYRECO UK LIMITED,5100328646,107.18
United Kingdom Atomic Energy Authority,United Kingdom Atomic Energy Authority,26/10/2015,STATIONERY,FUSION,LYRECO UK LIMITED,5100328299,149.80
United Kingdom Atomic Energy Authority,United Kingdom Atomic Energy Authority,09/11/2015,STATIONERY,FUSION,LYRECO UK LIMITED,5100328973,159.42
United Kingdom Atomic Energy Authority,United Kingdom Atomic Energy Authority,02/11/2015,STATIONERY,FUSION,LYRECO UK LIMITED,5100328647,218.51
United Kingdom Atomic Energy Authority,United Kingdom Atomic Energy Authority,16/11/2015,STATIONERY,FUSION,LYRECO UK LIMITED,5100329255,265.71
United Kingdom Atomic Energy Authority,United Kingdom Atomic Energy Authority,16/11/2015,STATIONERY,FUSION,LYRECO UK LIMITED,5100329256,278.01
United Kingdom Atomic Energy Authority,United Kingdom Atomic Energy Authority,02/11/2015,STATIONERY,FUSION,LYRECO UK LIMITED,5100328645,323.79
United Kingdom Atomic Energy Authority,United Kingdom Atomic Energy Authority,02/11/2015,STATIONERY,SUPPORT SERVICES,LYRECO UK LIMITED,5100328649,326.40
United Kingdom Atomic Energy Authority,United Kingdom Atomic Energy Authority,09/11/2015,STATIONERY,FUSION,LYRECO UK LIMITED,5100328972,338.14
United Kingdom Atomic Energy Authority,United Kingdom Atomic Energy Authority,26/10/2015,STATIONERY,FUSION,LYRECO UK LIMITED,5100328301,398.08
United Kingdom Atomic Energy Authority,United Kingdom Atomic Energy Authority,26/10/2015,STATIONERY,FUSION,LYRECO UK LIMITED,5100328297,450.73
United Kingdom Atomic Energy Authority,United Kingdom Atomic Energy Authority,02/11/2015,STATIONERY,FUSION,LYRECO UK LIMITED,5100328643,659.06
United Kingdom Atomic Energy Authority,United Kingdom Atomic Energy Authority,06/11/2015,DESIGN & CONSTRUCTION,FUSION,M Holborn Electrical Contractor Ltd,1900061187, 850.00
United Kingdom Atomic Energy Authority,United Kingdom Atomic Energy Authority,28/10/2015,PLANT & EQUIPMENT,PROPERTY,M K SCALES LTD,5100328518,150.00
United Kingdom Atomic Energy Authority,United Kingdom Atomic Energy Authority,26/10/2015,PROFESSIONAL SERVICES,FUSION,MACHINING TECHNOLOGY (MACH-TECH),5100328190,"1,282.56"
United Kingdom Atomic Energy Authority,United Kingdom Atomic Energy Authority,16/11/2015,PROFESSIONAL SERVICES,FUSION,MACHINING TECHNOLOGY (MACH-TECH),5100328804,"6,467.98"
United Kingdom Atomic Energy Authority,United Kingdom Atomic Energy Authority,09/11/2015,CONSUMABLES,FUSION,MacHowie Transport ltd,5100328926,650.00
United Kingdom Atomic Energy Authority,United Kingdom Atomic Energy Authority,02/11/2015,CONSUMABLES,FUSION,MacHowie Transport ltd,5100328696,700.00
United Kingdom Atomic Energy Authority,United Kingdom Atomic Energy Authority,02/11/2015,CONSUMABLES,FUSION,MacHowie Transport ltd,5100328697,875.00
United Kingdom Atomic Energy Authority,United Kingdom Atomic Energy Authority,09/11/2015,MATERIALS & SPARES,FUSION,Marker Tech ltd,5100328949,-125.00
United Kingdom Atomic Energy Authority,United Kingdom Atomic Energy Authority,09/11/2015,MATERIALS & SPARES,FUSION,Marker Tech ltd,5100328923,125.00
United Kingdom Atomic Energy Authority,United Kingdom Atomic Energy Authority,02/11/2015,MATERIALS & SPARES,FUSION,Marker Tech ltd,5100328423,246.21
United Kingdom Atomic Energy Authority,United Kingdom Atomic Energy Authority,11/11/2015,SUBSISTENCE,FUSION,Visitor Expenses,1900061199, 354.78
United Kingdom Atomic Energy Authority,United Kingdom Atomic Energy Authority,30/10/2015,PROFESSIONAL SERVICES,FUSION,Matchtech Group UK Ltd,1900061178," 6,958.05"
United Kingdom Atomic Energy Authority,United Kingdom Atomic Energy Authority,26/10/2015,PROFESSIONAL SERVICES,FUSION,MATERIAL MEASUREMENTS LTD.,5100328189,111.15
United Kingdom Atomic Energy Authority,United Kingdom Atomic Energy Authority,16/11/2015,PROFESSIONAL SERVICES,FUSION,MATERIAL MEASUREMENTS LTD.,5100329295,159.70
United Kingdom Atomic Energy Authority,United Kingdom Atomic Energy Authority,11/11/2015,PROFESSIONAL SERVICES,FUSION,MATERIAL MEASUREMENTS LTD.,5100329056,408.63
United Kingdom Atomic Energy Authority,United Kingdom Atomic Energy Authority,09/11/2015,DESIGN & CONSTRUCTION,FUSION,MAYFLEX UK LTD,5100328790,64.00
United Kingdom Atomic Energy Authority,United Kingdom Atomic Energy Authority,26/10/2015,PLANT & EQUIPMENT,FUSION,MCDC VACCUUM LTD,5100328405,-71.28
United Kingdom Atomic Energy Authority,United Kingdom Atomic Energy Authority,26/10/2015,PLANT & EQUIPMENT,FUSION,MCDC VACCUUM LTD,5100327830,224.48
United Kingdom Atomic Energy Authority,United Kingdom Atomic Energy Authority,28/10/2015,PLANT & EQUIPMENT,FUSION,MCDC VACCUUM LTD,5100328288,313.96
United Kingdom Atomic Energy Authority,United Kingdom Atomic Energy Authority,02/11/2015,BUILDING REPAIRS,FUSION,MCNAUGHTON BAILEY LTD,5100328683,675.00
United Kingdom Atomic Energy Authority,United Kingdom Atomic Energy Authority,02/11/2015,MATERIALS & SPARES,FUSION,METALFAST (A DIVISION OF,5100328694,37.20
United Kingdom Atomic Energy Authority,United Kingdom Atomic Energy Authority,02/11/2015,MATERIALS & SPARES,FUSION,METALFAST (A DIVISION OF,5100328689,66.30
United Kingdom Atomic Energy Authority,United Kingdom Atomic Energy Authority,26/10/2015,MATERIALS & SPARES,FUSION,METALFAST (A DIVISION OF,5100328194,76.55
United Kingdom Atomic Energy Authority,United Kingdom Atomic Energy Authority,02/11/2015,MATERIALS & SPARES,FUSION,METALFAST (A DIVISION OF,5100328520,183.18
United Kingdom Atomic Energy Authority,United Kingdom Atomic Energy Authority,09/11/2015,MATERIALS & SPARES,FUSION,METALFAST (A DIVISION OF,5100328800,183.18
United Kingdom Atomic Energy Authority,United Kingdom Atomic Energy Authority,02/11/2015,MATERIALS & SPARES,FUSION,METALFAST (A DIVISION OF,5100328690,188.04
United Kingdom Atomic Energy Authority,United Kingdom Atomic Energy Authority,02/11/2015,MATERIALS & SPARES,FUSION,METALFAST (A DIVISION OF,5100328692,221.90
United Kingdom Atomic Energy Authority,United Kingdom Atomic Energy Authority,28/10/2015,MATERIALS & SPARES,FUSION,METALFAST (A DIVISION OF,5100328363,288.70
United Kingdom Atomic Energy Authority,United Kingdom Atomic Energy Authority,02/11/2015,MATERIALS & SPARES,FUSION,METALFAST (A DIVISION OF,5100328717,341.20
United Kingdom Atomic Energy Authority,United Kingdom Atomic Energy Authority,26/10/2015,MATERIALS & SPARES,FUSION,METSPIN LTD,5100328195,"2,783.30"
United Kingdom Atomic Energy Authority,United Kingdom Atomic Energy Authority,16/11/2015,PLANT & EQUIPMENT,FUSION,MILLHILL TOOLS LTD,5100329102,3.72
United Kingdom Atomic Energy Authority,United Kingdom Atomic Energy Authority,16/11/2015,PLANT & EQUIPMENT,FUSION,MILLHILL TOOLS LTD,5100329103,20.00
United Kingdom Atomic Energy Authority,United Kingdom Atomic Energy Authority,16/11/2015,PLANT & EQUIPMENT,FUSION,MILLHILL TOOLS LTD,5100329098,30.00
United Kingdom Atomic Energy Authority,United Kingdom Atomic Energy Authority,16/11/2015,PLANT & EQUIPMENT,FUSION,MILLHILL TOOLS LTD,5100329099,95.60
United Kingdom Atomic Energy Authority,United Kingdom Atomic Energy Authority,16/11/2015,PLANT & EQUIPMENT,FUSION,MILLHILL TOOLS LTD,5100329100,111.98
United Kingdom Atomic Energy Authority,United Kingdom Atomic Energy Authority,16/11/2015,PLANT & EQUIPMENT,FUSION,MILLHILL TOOLS LTD,5100329097,119.02
United Kingdom Atomic Energy Authority,United Kingdom Atomic Energy Authority,16/11/2015,PLANT & EQUIPMENT,FUSION,MILLHILL TOOLS LTD,5100329101,340.00
United Kingdom Atomic Energy Authority,United Kingdom Atomic Energy Authority,28/10/2015,DESIGN & CONSTRUCTION,PROPERTY,Mitchell Taylor Workshop Ltd,1900061173," 3,100.00"
United Kingdom Atomic Energy Authority,United Kingdom Atomic Energy Authority,26/10/2015,PROFESSIONAL SERVICES,FUSION,MKS INSTRUMENT UK LIMITED,5100327835,648.05
United Kingdom Atomic Energy Authority,United Kingdom Atomic Energy Authority,02/11/2015,MATERIALS & SPARES,FUSION,MONMOUTH SCIENTIFIC LTD,5100328527,"6,124.00"
United Kingdom Atomic Energy Authority,United Kingdom Atomic Energy Authority,26/10/2015,LEGAL FEES,PROPERTY,MORGAN COLE,5100328385,667.00
United Kingdom Atomic Energy Authority,United Kingdom Atomic Energy Authority,18/11/2015,LEGAL FEES,PROPERTY,MORGAN COLE,5100329448,"2,621.50"
United Kingdom Atomic Energy Authority,United Kingdom Atomic Energy Authority,04/11/2015,HIRED STAFF,FUSION,MORSON INTERNATIONAL,5100328807,"289,174.97"
United Kingdom Atomic Energy Authority,United Kingdom Atomic Energy Authority,02/11/2015,MATERIALS & SPARES,FUSION,MOUSER ELECTRONICS,5100328682,57.28
United Kingdom Atomic Energy Authority,United Kingdom Atomic Energy Authority,26/10/2015,MATERIALS & SPARES,FUSION,MOUSER ELECTRONICS,5100328117,186.30
United Kingdom Atomic Energy Authority,United Kingdom Atomic Energy Authority,16/11/2015,STATIONERY,FUSION,MPS SERVICES LTD,5100328791,166.00
United Kingdom Atomic Energy Authority,United Kingdom Atomic Energy Authority,11/11/2015,STATIONERY,FUSION,MPS SERVICES LTD,5100328127,341.00
United Kingdom Atomic Energy Authority,United Kingdom Atomic Energy Authority,30/10/2015,CONFERENCES/MEETINGS,FUSION,Visitor Expenses,1900061180, 409.70
United Kingdom Atomic Energy Authority,United Kingdom Atomic Energy Authority,19/11/2015,SUBSISTENCE,FUSION,Visitor Expenses,1900061211, 255.17
United Kingdom Atomic Energy Authority,United Kingdom Atomic Energy Authority,26/10/2015,PLANT & EQUIPMENT,FUSION,MSC/J & L INDUSTRIAL SUPPLY,5100328369,134.79
United Kingdom Atomic Energy Authority,United Kingdom Atomic Energy Authority,09/11/2015,ELECTRICITY,FUSION,NATIONAL GRID TRANSCO,5100328743,"3,821.45"
United Kingdom Atomic Energy Authority,United Kingdom Atomic Energy Authority,04/11/2015,PLANT & EQUIPMENT,FUSION,NATIONAL INSTRUMENTS LTD,5100328218,445.37
United Kingdom Atomic Energy Authority,United Kingdom Atomic Energy Authority,26/10/2015,PLANT & EQUIPMENT,FUSION,NEW PIG LTD,5100328280,86.68
United Kingdom Atomic Energy Authority,United Kingdom Atomic Energy Authority,02/11/2015,PLANT & EQUIPMENT,FUSION,NEW PIG LTD,5100328674,98.18
United Kingdom Atomic Energy Authority,United Kingdom Atomic Energy Authority,09/11/2015,PLANT & EQUIPMENT,FUSION,NEW PIG LTD,5100328750,212.03
United Kingdom Atomic Energy Authority,United Kingdom Atomic Energy Authority,26/10/2015,PLANT & EQUIPMENT,FUSION,NEW PIG LTD,5100328090,361.31
United Kingdom Atomic Energy Authority,United Kingdom Atomic Energy Authority,04/11/2015,MATERIALS & SPARES,FUSION,NEWBURY ELECTRONICS,5100328738,879.18
United Kingdom Atomic Energy Authority,United Kingdom Atomic Energy Authority,09/11/2015,MATERIALS & SPARES,FUSION,NEWCASTLE OPTICAL ENGINEERING LTD,5100328824,133.00
United Kingdom Atomic Energy Authority,United Kingdom Atomic Energy Authority,16/11/2015,MATERIALS & SPARES,FUSION,NEWCASTLE OPTICAL ENGINEERING LTD,5100329202,133.00
United Kingdom Atomic Energy Authority,United Kingdom Atomic Energy Authority,09/11/2015,PLANT & EQUIPMENT,FUSION,NOR-CAL UK LTD,5100328854,360.00
United Kingdom Atomic Energy Authority,United Kingdom Atomic Energy Authority,16/11/2015,PROFESSIONAL SERVICES,PROPERTY,NOVUS ENVIRONMENTAL,5100329197,7.98
United Kingdom Atomic Energy Authority,United Kingdom Atomic Energy Authority,09/11/2015,PLANT & EQUIPMENT,FUSION,NU START ELECTONICS,5100328990,337.97
United Kingdom Atomic Energy Authority,United Kingdom Atomic Energy Authority,11/11/2015,HEALTH PHYSICS,FUSION,NUVIA LIMITED,5100328408,"25,796.47"
United Kingdom Atomic Energy Authority,United Kingdom Atomic Energy Authority,02/11/2015,CLEANING,FUSION,OCS CLEANING & SUPPORT SERVICES,5100328433,672.97
United Kingdom Atomic Energy Authority,United Kingdom Atomic Energy Authority,02/11/2015,CLEANING,PROPERTY,OCS CLEANING & SUPPORT SERVICES,5100328432,"1,535.38"
United Kingdom Atomic Energy Authority,United Kingdom Atomic Energy Authority,16/11/2015,CLEANING,PROPERTY,OCS CLEANING & SUPPORT SERVICES,5100329303,"1,535.38"
United Kingdom Atomic Energy Authority,United Kingdom Atomic Energy Authority,16/11/2015,CLEANING,PROPERTY,OCS CLEANING & SUPPORT SERVICES,5100329271,"1,966.77"
United Kingdom Atomic Energy Authority,United Kingdom Atomic Energy Authority,16/11/2015,CLEANING,FUSION,OCS CLEANING & SUPPORT SERVICES,5100329304,"2,392.80"
United Kingdom Atomic Energy Authority,United Kingdom Atomic Energy Authority,02/11/2015,CLEANING,FUSION,OCS CLEANING & SUPPORT SERVICES,5100328434,"2,761.69"
United Kingdom Atomic Energy Authority,United Kingdom Atomic Energy Authority,16/11/2015,CLEANING,PROPERTY,OCS CLEANING & SUPPORT SERVICES,5100329305,"3,964.57"
United Kingdom Atomic Energy Authority,United Kingdom Atomic Energy Authority,02/11/2015,CLEANING,PROPERTY,OCS CLEANING & SUPPORT SERVICES,5100328435,"4,036.26"
United Kingdom Atomic Energy Authority,United Kingdom Atomic Energy Authority,02/11/2015,CLEANING,PROPERTY,OCS CLEANING & SUPPORT SERVICES,5100328468,"5,324.39"
United Kingdom Atomic Energy Authority,United Kingdom Atomic Energy Authority,02/11/2015,CONSUMABLES,FUSION,OEM Automatic Ltd,5100328684,"3,440.10"
United Kingdom Atomic Energy Authority,United Kingdom Atomic Energy Authority,26/10/2015,MATERIALS & SPARES,FUSION,OERLIKON LEYBOLD VACUUM UK LTD,5100328322,365.94
United Kingdom Atomic Energy Authority,United Kingdom Atomic Energy Authority,09/11/2015,MATERIALS & SPARES,FUSION,OERLIKON LEYBOLD VACUUM UK LTD,5100328900,805.10
United Kingdom Atomic Energy Authority,United Kingdom Atomic Energy Authority,02/11/2015,MATERIALS & SPARES,FUSION,OERLIKON LEYBOLD VACUUM UK LTD,5100328321,"1,501.34"
United Kingdom Atomic Energy Authority,United Kingdom Atomic Energy Authority,09/11/2015,PROFESSIONAL SERVICES,FUSION,OHES ENNVIRONMENTAL LTD,5100328970,"3,092.59"
United Kingdom Atomic Energy Authority,United Kingdom Atomic Energy Authority,02/11/2015,IT EQUIPMENT NON CAPITAL,FUSION,Omniflex (UK) Ltd,5100328477,"4,726.00"
United Kingdom Atomic Energy Authority,United Kingdom Atomic Energy Authority,02/11/2015,IT EQUIPMENT NON CAPITAL,FUSION,Omniflex (UK) Ltd,5100328475,"13,052.00"
United Kingdom Atomic Energy Authority,United Kingdom Atomic Energy Authority,26/10/2015,PROFESSIONAL SERVICES,FUSION,ONE FIX RECRUITMENT,5100328094,425.00
United Kingdom Atomic Energy Authority,United Kingdom Atomic Energy Authority,28/10/2015,PROFESSIONAL SERVICES,FUSION,ONE FIX RECRUITMENT,5100328108,425.00
United Kingdom Atomic Energy Authority,United Kingdom Atomic Energy Authority,16/11/2015,PROFESSIONAL SERVICES,FUSION,ONE FIX RECRUITMENT,5100329308,425.00
United Kingdom Atomic Energy Authority,United Kingdom Atomic Energy Authority,02/11/2015,PROFESSIONAL SERVICES,FUSION,ONE FIX RECRUITMENT,5100328243,"1,590.00"
United Kingdom Atomic Energy Authority,United Kingdom Atomic Energy Authority,04/11/2015,MATERIALS & SPARES,FUSION,OPENXTRA LIMITED,5100328640,203.50
United Kingdom Atomic Energy Authority,United Kingdom Atomic Energy Authority,16/11/2015,SOFTWARE,FUSION,OPTIMA RESEARCH LTD,5100329333,"1,217.31"
United Kingdom Atomic Energy Authority,United Kingdom Atomic Energy Authority,16/11/2015,MATERIALS & SPARES,FUSION,OXFORD BOLTS & BEARINGS,5100329293,4.08
United Kingdom Atomic Energy Authority,United Kingdom Atomic Energy Authority,02/11/2015,MATERIALS & SPARES,FUSION,OXFORD BOLTS & BEARINGS,5100328491,17.22
United Kingdom Atomic Energy Authority,United Kingdom Atomic Energy Authority,28/10/2015,MATERIALS & SPARES,FUSION,OXFORD BOLTS & BEARINGS,5100328337,25.00
United Kingdom Atomic Energy Authority,United Kingdom Atomic Energy Authority,16/11/2015,MATERIALS & SPARES,FUSION,OXFORD BOLTS & BEARINGS,5100329258,31.93
United Kingdom Atomic Energy Authority,United Kingdom Atomic Energy Authority,16/11/2015,MATERIALS & SPARES,FUSION,OXFORD BOLTS & BEARINGS,5100329335,40.34
United Kingdom Atomic Energy Authority,United Kingdom Atomic Energy Authority,11/11/2015,MATERIALS & SPARES,FUSION,OXFORD BOLTS & BEARINGS,5100329012,47.00
United Kingdom Atomic Energy Authority,United Kingdom Atomic Energy Authority,18/11/2015,MATERIALS & SPARES,FUSION,OXFORD BOLTS & BEARINGS,5100328338,54.48
United Kingdom Atomic Energy Authority,United Kingdom Atomic Energy Authority,28/10/2015,MATERIALS & SPARES,FUSION,OXFORD BOLTS & BEARINGS,5100328334,71.20
United Kingdom Atomic Energy Authority,United Kingdom Atomic Energy Authority,18/11/2015,MATERIALS & SPARES,FUSION,OXFORD BOLTS & BEARINGS,5100329298,76.50
United Kingdom Atomic Energy Authority,United Kingdom Atomic Energy Authority,02/11/2015,MATERIALS & SPARES,FUSION,OXFORD BOLTS & BEARINGS,5100328489,86.65
United Kingdom Atomic Energy Authority,United Kingdom Atomic Energy Authority,16/11/2015,MATERIALS & SPARES,FUSION,OXFORD BOLTS & BEARINGS,5100329297,92.50
United Kingdom Atomic Energy Authority,United Kingdom Atomic Energy Authority,09/11/2015,MATERIALS & SPARES,FUSION,OXFORD BOLTS & BEARINGS,5100328665,95.00
United Kingdom Atomic Energy Authority,United Kingdom Atomic Energy Authority,11/11/2015,MATERIALS & SPARES,FUSION,OXFORD BOLTS & BEARINGS,5100329013,113.22
United Kingdom Atomic Energy Authority,United Kingdom Atomic Energy Authority,28/10/2015,MATERIALS & SPARES,FUSION,OXFORD BOLTS & BEARINGS,5100328336,131.80
United Kingdom Atomic Energy Authority,United Kingdom Atomic Energy Authority,09/11/2015,MATERIALS & SPARES,FUSION,OXFORD BOLTS & BEARINGS,5100328848,205.29
United Kingdom Atomic Energy Authority,United Kingdom Atomic Energy Authority,26/10/2015,MATERIALS & SPARES,FUSION,OXFORD BOLTS & BEARINGS,5100328082,343.92
United Kingdom Atomic Energy Authority,United Kingdom Atomic Energy Authority,09/11/2015,MATERIALS & SPARES,FUSION,OXFORD BOLTS & BEARINGS,5100328846,451.20
United Kingdom Atomic Energy Authority,United Kingdom Atomic Energy Authority,26/10/2015,MATERIALS & SPARES,FUSION,OXFORD BOLTS & BEARINGS,5100328335,612.37
United Kingdom Atomic Energy Authority,United Kingdom Atomic Energy Authority,16/11/2015,MATERIALS & SPARES,FUSION,OXFORD BOLTS & BEARINGS,5100329294,706.74
United Kingdom Atomic Energy Authority,United Kingdom Atomic Energy Authority,11/11/2015,MATERIALS & SPARES,FUSION,OXFORD BOLTS & BEARINGS,5100329011,"1,070.71"
United Kingdom Atomic Energy Authority,United Kingdom Atomic Energy Authority,09/11/2015,TRAINING COURSE FEES,FUSION,OXFORD BROOKES UNIVERSITY,5100328758,820.00
United Kingdom Atomic Energy Authority,United Kingdom Atomic Energy Authority,16/11/2015,TRAINING COURSE FEES,FUSION,OXFORD BROOKES UNIVERSITY,5100329139,820.00
United Kingdom Atomic Energy Authority,United Kingdom Atomic Energy Authority,09/11/2015,TRAINING COURSE FEES,FUSION,OXFORD BROOKES UNIVERSITY,5100328759,"4,000.00"
United Kingdom Atomic Energy Authority,United Kingdom Atomic Energy Authority,09/11/2015,TRAINING COURSE FEES,FUSION,OXFORD BROOKES UNIVERSITY,5100328755,"4,000.00"
United Kingdom Atomic Energy Authority,United Kingdom Atomic Energy Authority,09/11/2015,TRAINING COURSE FEES,FUSION,OXFORD UNIVERSITY,5100327889,"16,185.84"
United Kingdom Atomic Energy Authority,United Kingdom Atomic Energy Authority,26/10/2015,PLANT & EQUIPMENT,FUSION,PATRICO LTD,5100327553,"3,840.00"
United Kingdom Atomic Energy Authority,United Kingdom Atomic Energy Authority,09/11/2015,PLANT & EQUIPMENT,FUSION,PATRICO LTD,5100327552,"4,224.00"
United Kingdom Atomic Energy Authority,United Kingdom Atomic Energy Authority,04/11/2015,TRAINING COURSE FEES,SUPPORT SERVICES,PEARCEMAYFIELD ASSOCIATED LTD,5100328235,"3,760.00"
United Kingdom Atomic Energy Authority,United Kingdom Atomic Energy Authority,26/10/2015,HIRED STAFF,FUSION,PELICAN SOFTWARE LTD,5100328128,"4,359.91"
United Kingdom Atomic Energy Authority,United Kingdom Atomic Energy Authority,16/11/2015,HIRED STAFF,FUSION,PELICAN SOFTWARE LTD,5100329272,"4,922.91"
United Kingdom Atomic Energy Authority,United Kingdom Atomic Energy Authority,18/11/2015,HIRED STAFF,FUSION,PELICAN SOFTWARE LTD,5100329328,"5,971.23"
United Kingdom Atomic Energy Authority,United Kingdom Atomic Energy Authority,18/11/2015,HIRED STAFF,FUSION,PELICAN SOFTWARE LTD,5100329330,"6,021.23"
United Kingdom Atomic Energy Authority,United Kingdom Atomic Energy Authority,26/10/2015,HIRED STAFF,FUSION,PELICAN SOFTWARE LTD,5100328130,"6,709.37"
United Kingdom Atomic Energy Authority,United Kingdom Atomic Energy Authority,26/10/2015,STORAGE,FUSION,PENTALVER TRANSPORT LTD,5100328111,"7,850.00"
United Kingdom Atomic Energy Authority,United Kingdom Atomic Energy Authority,26/10/2015,PROFESSIONAL SERVICES,FUSION,PERKIN ELMER LAS UK LTD,5100328331,962.00
United Kingdom Atomic Energy Authority,United Kingdom Atomic Energy Authority,16/11/2015,PROFESSIONAL SERVICES,FUSION,PERKIN ELMER LAS UK LTD,5100329055,962.00
United Kingdom Atomic Energy Authority,United Kingdom Atomic Energy Authority,02/11/2015,REPAIRS & MAINTENANCE,FUSION,Phoenix Calibration & Services Ltd,5100328744,"27,500.00"
United Kingdom Atomic Energy Authority,United Kingdom Atomic Energy Authority,02/11/2015,PLANT & EQUIPMENT,FUSION,Phoenix Dosimetry Ltd,5100328631,"60,480.00"
United Kingdom Atomic Energy Authority,United Kingdom Atomic Energy Authority,16/11/2015,MATERIALS & SPARES,FUSION,PI PHYSIKE INSTRUMENTE,5100328974,"7,464.00"
United Kingdom Atomic Energy Authority,United Kingdom Atomic Energy Authority,16/11/2015,MATERIALS & SPARES,FUSION,PI-KEM LTD,5100329283,"1,346.80"
United Kingdom Atomic Energy Authority,United Kingdom Atomic Energy Authority,16/11/2015,MATERIALS & SPARES,FUSION,Pilz Automation Technology Ltd,5100329196,43.18
United Kingdom Atomic Energy Authority,United Kingdom Atomic Energy Authority,16/11/2015,MATERIALS & SPARES,FUSION,Pilz Automation Technology Ltd,5100329282,56.25
United Kingdom Atomic Energy Authority,United Kingdom Atomic Energy Authority,09/11/2015,MATERIALS & SPARES,FUSION,Pilz Automation Technology Ltd,5100328822,172.70
United Kingdom Atomic Energy Authority,United Kingdom Atomic Energy Authority,04/11/2015,MATERIALS & SPARES,FUSION,PIPELINE PEOPLE.COM,5100328199,435.48
United Kingdom Atomic Energy Authority,United Kingdom Atomic Energy Authority,28/10/2015,PLANT SPARES,FUSION,PLANSEE METALS LTD,5100328319,"4,985.15"
United Kingdom Atomic Energy Authority,United Kingdom Atomic Energy Authority,02/11/2015,PLANT & EQUIPMENT,FUSION,POWELL & CO,5100328659,309.40
United Kingdom Atomic Energy Authority,United Kingdom Atomic Energy Authority,02/11/2015,PLANT & EQUIPMENT,FUSION,POWELL & CO,5100328641,364.65
United Kingdom Atomic Energy Authority,United Kingdom Atomic Energy Authority,16/11/2015,PLANT & EQUIPMENT,FUSION,POWELL & CO,5100329300,556.80
United Kingdom Atomic Energy Authority,United Kingdom Atomic Energy Authority,09/11/2015,STATIONERY,FUSION,PREMIER PAPER GROUP LTD,5100328922,-80.00
United Kingdom Atomic Energy Authority,United Kingdom Atomic Energy Authority,09/11/2015,STATIONERY,FUSION,PREMIER PAPER GROUP LTD,5100328730,"2,110.00"
United Kingdom Atomic Energy Authority,United Kingdom Atomic Energy Authority,26/10/2015,CONSUMABLES,FUSION,PRITCHARD SHEET METAL,5100328170,100.00
United Kingdom Atomic Energy Authority,United Kingdom Atomic Energy Authority,09/11/2015,CONSUMABLES,FUSION,PRITCHARD SHEET METAL,5100328980,155.00
United Kingdom Atomic Energy Authority,United Kingdom Atomic Energy Authority,09/11/2015,PLANT & EQUIPMENT,FUSION,PROFESSIONALFABRICATION SERVICES LTD,5100328850,500.00
United Kingdom Atomic Energy Authority,United Kingdom Atomic Energy Authority,09/11/2015,PLANT & EQUIPMENT,FUSION,PROFESSIONALFABRICATION SERVICES LTD,5100328849,"3,500.00"
United Kingdom Atomic Energy Authority,United Kingdom Atomic Energy Authority,11/11/2015,MILEAGE ALLOWANCE,FUSION,Visitor Expenses,1900061201, 63.00
United Kingdom Atomic Energy Authority,United Kingdom Atomic Energy Authority,16/11/2015,HIRED STAFF,FUSION,Projectglobe Ltd,5100328058,300.00
United Kingdom Atomic Energy Authority,United Kingdom Atomic Energy Authority,16/11/2015,HIRED STAFF,FUSION,Projectglobe Ltd,5100328057,"44,800.00"
United Kingdom Atomic Energy Authority,United Kingdom Atomic Energy Authority,09/11/2015,MATERIALS & SPARES,FUSION,Promega UK,5100329014,634.00
United Kingdom Atomic Energy Authority,United Kingdom Atomic Energy Authority,20/11/2015,IT EQUIPMENT: NON CAPITAL,FUSION,PURCHASE CARDS,100786380,500.00
United Kingdom Atomic Energy Authority,United Kingdom Atomic Energy Authority,20/11/2015,F&F,PROPERTY,PURCHASE CARDS,100786375,515.00
United Kingdom Atomic Energy Authority,United Kingdom Atomic Energy Authority,20/11/2015,IT EQUIPMENT: NON CAPITAL,SUPPORT SERVICES,PURCHASE CARDS,100786353,531.00
United Kingdom Atomic Energy Authority,United Kingdom Atomic Energy Authority,20/11/2015,IT EQUIPMENT: NON CAPITAL,SUPPORT SERVICES,PURCHASE CARDS,100786380,531.20
United Kingdom Atomic Energy Authority,United Kingdom Atomic Energy Authority,20/11/2015,CONSUMABLES,PROPERTY,PURCHASE CARDS,100786347,552.00
United Kingdom Atomic Energy Authority,United Kingdom Atomic Energy Authority,20/11/2015,PLANT & EQUIPMENT,FUSION,PURCHASE CARDS,100786399,560.00
United Kingdom Atomic Energy Authority,United Kingdom Atomic Energy Authority,20/11/2015,IT SOFTWARE,SUPPORT SERVICES,PURCHASE CARDS,100786363,588.00
United Kingdom Atomic Energy Authority,United Kingdom Atomic Energy Authority,20/11/2015,CONSUMABLES,PROPERTY,PURCHASE CARDS,100786398,600.00
United Kingdom Atomic Energy Authority,United Kingdom Atomic Energy Authority,20/11/2015,PLANT & EQUIPMENT,FUSION,PURCHASE CARDS,100786385,626.90
United Kingdom Atomic Energy Authority,United Kingdom Atomic Energy Authority,20/11/2015,CONSUMABLES,FUSION,PURCHASE CARDS,100786360,630.00
United Kingdom Atomic Energy Authority,United Kingdom Atomic Energy Authority,20/11/2015,CONSUMABLES,FUSION,PURCHASE CARDS,100786360,630.00
United Kingdom Atomic Energy Authority,United Kingdom Atomic Energy Authority,20/11/2015,CONSUMABLES,FUSION,PURCHASE CARDS,100786360,670.00
United Kingdom Atomic Energy Authority,United Kingdom Atomic Energy Authority,20/11/2015,CONFERENCES/MEETINGS,FUSION,PURCHASE CARDS,100786346,677.82
United Kingdom Atomic Energy Authority,United Kingdom Atomic Energy Authority,20/11/2015,CONFERENCES/MEETINGS,FUSION,PURCHASE CARDS,100786346,677.82
United Kingdom Atomic Energy Authority,United Kingdom Atomic Energy Authority,20/11/2015,CONFERENCES/MEETINGS,FUSION,PURCHASE CARDS,100786346,678.89
United Kingdom Atomic Energy Authority,United Kingdom Atomic Energy Authority,20/11/2015,BOOKS & PUBLICATIONS,FUSION,PURCHASE CARDS,100786376,692.57
United Kingdom Atomic Energy Authority,United Kingdom Atomic Energy Authority,20/11/2015,MATERIALS & SPARES,FUSION,PURCHASE CARDS,100786369,702.35
United Kingdom Atomic Energy Authority,United Kingdom Atomic Energy Authority,20/11/2015,CONSUMABLES,FUSION,PURCHASE CARDS,100786361,731.60
United Kingdom Atomic Energy Authority,United Kingdom Atomic Energy Authority,20/11/2015,CONSUMABLES,FUSION,PURCHASE CARDS,100786362,740.00
United Kingdom Atomic Energy Authority,United Kingdom Atomic Energy Authority,20/11/2015,IT EQUIPMENT: NON CAPITAL,FUSION,PURCHASE CARDS,100786353,796.50
United Kingdom Atomic Energy Authority,United Kingdom Atomic Energy Authority,20/11/2015,IT EQUIPMENT: NON CAPITAL,FUSION,PURCHASE CARDS,100786380,796.50
United Kingdom Atomic Energy Authority,United Kingdom Atomic Energy Authority,20/11/2015,CONSUMABLES,FUSION,PURCHASE CARDS,100786357,826.68
United Kingdom Atomic Energy Authority,United Kingdom Atomic Energy Authority,20/11/2015,PLANT & EQUIPMENT,FUSION,PURCHASE CARDS,100786399,874.68
United Kingdom Atomic Energy Authority,United Kingdom Atomic Energy Authority,21/11/2015,TRAINING COSTS,SUPPORT SERVICES,PURCHASE CARDS,100788980,"1,014.00"
United Kingdom Atomic Energy Authority,United Kingdom Atomic Energy Authority,20/11/2015,BOOKS & PUBLICATIONS,SUPPORT SERVICES,PURCHASE CARDS,100786377,"1,027.24"
United Kingdom Atomic Energy Authority,United Kingdom Atomic Energy Authority,20/11/2015,IT EQUIPMENT: NON CAPITAL,FUSION,PURCHASE CARDS,100786380,"1,223.31"
United Kingdom Atomic Energy Authority,United Kingdom Atomic Energy Authority,20/11/2015,BOOKS & PUBLICATIONS,SUPPORT SERVICES,PURCHASE CARDS,100786377,"1,577.81"
United Kingdom Atomic Energy Authority,United Kingdom Atomic Energy Authority,20/11/2015,PLANT & EQUIPMENT,FUSION,PURCHASE CARDS,100786383,"2,160.40"
United Kingdom Atomic Energy Authority,United Kingdom Atomic Energy Authority,20/11/2015,TRAINING COURSE FEES,FUSION,PURCHASE CARDS,100786394,"2,200.00"
United Kingdom Atomic Energy Authority,United Kingdom Atomic Energy Authority,20/11/2015,IT EQUIPMENT: NON CAPITAL,SUPPORT SERVICES,PURCHASE CARDS,100786353,"2,479.64"
United Kingdom Atomic Energy Authority,United Kingdom Atomic Energy Authority,09/11/2015,MATERIALS & SPARES,FUSION,Pycko Scientific Limited,5100327472,"59,066.00"
United Kingdom Atomic Energy Authority,United Kingdom Atomic Energy Authority,09/11/2015,PLANT & EQUIPMENT,FUSION,QUARTZELEC LTD,5100328978,"-58,483.46"
United Kingdom Atomic Energy Authority,United Kingdom Atomic Energy Authority,09/11/2015,PLANT & EQUIPMENT,FUSION,QUARTZELEC LTD,5100328975,"58,483.46"
United Kingdom Atomic Energy Authority,United Kingdom Atomic Energy Authority,09/11/2015,PLANT & EQUIPMENT,FUSION,QUARTZELEC LTD,5100328976,"58,890.16"
United Kingdom Atomic Energy Authority,United Kingdom Atomic Energy Authority,26/10/2015,PROFESSIONAL SERVICES,FUSION,QUEENS UNIVERSITY BELFAST,5100327673,"22,405.56"
United Kingdom Atomic Energy Authority,United Kingdom Atomic Energy Authority,26/10/2015,MATERIALS & SPARES,FUSION,R&M Electrical Group Ltd,5100328238,17.52
United Kingdom Atomic Energy Authority,United Kingdom Atomic Energy Authority,02/11/2015,MATERIALS & SPARES,FUSION,R&M Electrical Group Ltd,5100326343,191.50
United Kingdom Atomic Energy Authority,United Kingdom Atomic Energy Authority,18/11/2015,PROFESSIONAL SERVICES,FUSION,RADIOCARBON DATING,5100329225,"2,038.60"
United Kingdom Atomic Energy Authority,United Kingdom Atomic Energy Authority,18/11/2015,PROFESSIONAL SERVICES,FUSION,RADIOCARBON DATING,5100329299,"9,226.65"
United Kingdom Atomic Energy Authority,United Kingdom Atomic Energy Authority,18/11/2015,PROFESSIONAL SERVICES,FUSION,RADIOCARBON DATING,5100329224,"20,167.00"
United Kingdom Atomic Energy Authority,United Kingdom Atomic Energy Authority,04/11/2015,MATERIALS & SPARES,FUSION,RADWELL INTERNATIONAL UK LTD,5100328651,772.92
United Kingdom Atomic Energy Authority,United Kingdom Atomic Energy Authority,16/11/2015,CONSUMABLES,FUSION,RAJAPACK LTD,5100329286,45.47
United Kingdom Atomic Energy Authority,United Kingdom Atomic Energy Authority,04/11/2015,MATERIALS & SPARES,FUSION,Rapied Electronics Ltd,5100328244,32.74
United Kingdom Atomic Energy Authority,United Kingdom Atomic Energy Authority,04/11/2015,MATERIALS & SPARES,FUSION,Rapied Electronics Ltd,5100328578,42.24
United Kingdom Atomic Energy Authority,United Kingdom Atomic Energy Authority,04/11/2015,MATERIALS & SPARES,FUSION,Ravenscourt Engineering Ltd,1900061182, 384.00
United Kingdom Atomic Energy Authority,United Kingdom Atomic Energy Authority,02/11/2015,SECURITY & EMERGENCY,PROPERTY,RELIANCE SECURITY GROUP PLC,5100325206,-163.43
United Kingdom Atomic Energy Authority,United Kingdom Atomic Energy Authority,02/11/2015,SECURITY & EMERGENCY,PROPERTY,RELIANCE SECURITY GROUP PLC,5100328654,47.24
United Kingdom Atomic Energy Authority,United Kingdom Atomic Energy Authority,02/11/2015,SECURITY & EMERGENCY,PROPERTY,RELIANCE SECURITY GROUP PLC,5100328656,49.53
United Kingdom Atomic Energy Authority,United Kingdom Atomic Energy Authority,02/11/2015,SECURITY & EMERGENCY,PROPERTY,RELIANCE SECURITY GROUP PLC,5100328658,61.23
United Kingdom Atomic Energy Authority,United Kingdom Atomic Energy Authority,02/11/2015,SECURITY & EMERGENCY,FUSION,RELIANCE SECURITY GROUP PLC,5100328650,490.68
United Kingdom Atomic Energy Authority,United Kingdom Atomic Energy Authority,02/11/2015,SECURITY & EMERGENCY,PROPERTY,RELIANCE SECURITY GROUP PLC,5100328505,534.96
United Kingdom Atomic Energy Authority,United Kingdom Atomic Energy Authority,02/11/2015,SECURITY & EMERGENCY,PROPERTY,RELIANCE SECURITY GROUP PLC,5100328653,926.96
United Kingdom Atomic Energy Authority,United Kingdom Atomic Energy Authority,16/11/2015,SECURITY & EMERGENCY,PROPERTY,RELIANCE SECURITY GROUP PLC,5100329090,"4,129.29"
United Kingdom Atomic Energy Authority,United Kingdom Atomic Energy Authority,02/11/2015,SECURITY & EMERGENCY,PROPERTY,RELIANCE SECURITY GROUP PLC,5100328671,"89,051.66"
United Kingdom Atomic Energy Authority,United Kingdom Atomic Energy Authority,02/11/2015,INSPECTION SERVICES,FUSION,ROYAL & SUN ALLIANCE ENGINEERING LT,5100328315,"1,270.29"
United Kingdom Atomic Energy Authority,United Kingdom Atomic Energy Authority,16/11/2015,MATERIALS & SPARES,FUSION,RS COMPONENTS LTD,5100329254,-330.15
United Kingdom Atomic Energy Authority,United Kingdom Atomic Energy Authority,16/11/2015,MATERIALS & SPARES,FUSION,RS COMPONENTS LTD,5100329252,-176.15
United Kingdom Atomic Energy Authority,United Kingdom Atomic Energy Authority,09/11/2015,MATERIALS & SPARES,FUSION,RS COMPONENTS LTD,5100329017,-103.35
United Kingdom Atomic Energy Authority,United Kingdom Atomic Energy Authority,16/11/2015,MATERIALS & SPARES,FUSION,RS COMPONENTS LTD,5100329205,-96.32
United Kingdom Atomic Energy Authority,United Kingdom Atomic Energy Authority,09/11/2015,MATERIALS & SPARES,FUSION,RS COMPONENTS LTD,5100328885,0.90
United Kingdom Atomic Energy Authority,United Kingdom Atomic Energy Authority,26/10/2015,MATERIALS & SPARES,FUSION,RS COMPONENTS LTD,5100328176,2.86
United Kingdom Atomic Energy Authority,United Kingdom Atomic Energy Authority,02/11/2015,MATERIALS & SPARES,FUSION,RS COMPONENTS LTD,5100328571,4.16
United Kingdom Atomic Energy Authority,United Kingdom Atomic Energy Authority,26/10/2015,MATERIALS & SPARES,FUSION,RS COMPONENTS LTD,5100328290,4.64
United Kingdom Atomic Energy Authority,United Kingdom Atomic Energy Authority,16/11/2015,MATERIALS & SPARES,FUSION,RS COMPONENTS LTD,5100329183,5.21
United Kingdom Atomic Energy Authority,United Kingdom Atomic Energy Authority,26/10/2015,MATERIALS & SPARES,FUSION,RS COMPONENTS LTD,5100328167,5.55
United Kingdom Atomic Energy Authority,United Kingdom Atomic Energy Authority,26/10/2015,MATERIALS & SPARES,FUSION,RS COMPONENTS LTD,5100328187,8.68
United Kingdom Atomic Energy Authority,United Kingdom Atomic Energy Authority,26/10/2015,MATERIALS & SPARES,FUSION,RS COMPONENTS LTD,5100328314,8.71
United Kingdom Atomic Energy Authority,United Kingdom Atomic Energy Authority,16/11/2015,MATERIALS & SPARES,FUSION,RS COMPONENTS LTD,5100329039,8.85
United Kingdom Atomic Energy Authority,United Kingdom Atomic Energy Authority,02/11/2015,MATERIALS & SPARES,FUSION,RS COMPONENTS LTD,5100328427,9.65
United Kingdom Atomic Energy Authority,United Kingdom Atomic Energy Authority,26/10/2015,MATERIALS & SPARES,FUSION,RS COMPONENTS LTD,5100328255,9.70
United Kingdom Atomic Energy Authority,United Kingdom Atomic Energy Authority,16/11/2015,MATERIALS & SPARES,FUSION,RS COMPONENTS LTD,5100329022,9.88
United Kingdom Atomic Energy Authority,United Kingdom Atomic Energy Authority,16/11/2015,MATERIALS & SPARES,FUSION,RS COMPONENTS LTD,5100329033,10.68
United Kingdom Atomic Energy Authority,United Kingdom Atomic Energy Authority,02/11/2015,MATERIALS & SPARES,FUSION,RS COMPONENTS LTD,5100328417,10.73
United Kingdom Atomic Energy Authority,United Kingdom Atomic Energy Authority,09/11/2015,MATERIALS & SPARES,FUSION,RS COMPONENTS LTD,5100328881,10.99
United Kingdom Atomic Energy Authority,United Kingdom Atomic Energy Authority,02/11/2015,MATERIALS & SPARES,FUSION,RS COMPONENTS LTD,5100328430,11.41
United Kingdom Atomic Energy Authority,United Kingdom Atomic Energy Authority,16/11/2015,MATERIALS & SPARES,FUSION,RS COMPONENTS LTD,5100329178,11.48
United Kingdom Atomic Energy Authority,United Kingdom Atomic Energy Authority,26/10/2015,MATERIALS & SPARES,FUSION,RS COMPONENTS LTD,5100328242,12.12
United Kingdom Atomic Energy Authority,United Kingdom Atomic Energy Authority,26/10/2015,MATERIALS & SPARES,FUSION,RS COMPONENTS LTD,5100328183,12.91
United Kingdom Atomic Energy Authority,United Kingdom Atomic Energy Authority,02/11/2015,MATERIALS & SPARES,FUSION,RS COMPONENTS LTD,5100328544,13.57
United Kingdom Atomic Energy Authority,United Kingdom Atomic Energy Authority,02/11/2015,MATERIALS & SPARES,FUSION,RS COMPONENTS LTD,5100328414,13.75
United Kingdom Atomic Energy Authority,United Kingdom Atomic Energy Authority,16/11/2015,MATERIALS & SPARES,FUSION,RS COMPONENTS LTD,5100329208,13.89
United Kingdom Atomic Energy Authority,United Kingdom Atomic Energy Authority,16/11/2015,MATERIALS & SPARES,FUSION,RS COMPONENTS LTD,5100329063,13.94
United Kingdom Atomic Energy Authority,United Kingdom Atomic Energy Authority,16/11/2015,MATERIALS & SPARES,FUSION,RS COMPONENTS LTD,5100329240,14.84
United Kingdom Atomic Energy Authority,United Kingdom Atomic Energy Authority,26/10/2015,MATERIALS & SPARES,FUSION,RS COMPONENTS LTD,5100328368,15.30
United Kingdom Atomic Energy Authority,United Kingdom Atomic Energy Authority,16/11/2015,MATERIALS & SPARES,FUSION,RS COMPONENTS LTD,5100329037,15.66
United Kingdom Atomic Energy Authority,United Kingdom Atomic Energy Authority,02/11/2015,MATERIALS & SPARES,FUSION,RS COMPONENTS LTD,5100328612,15.87
United Kingdom Atomic Energy Authority,United Kingdom Atomic Energy Authority,26/10/2015,MATERIALS & SPARES,FUSION,RS COMPONENTS LTD,5100328154,16.13
United Kingdom Atomic Energy Authority,United Kingdom Atomic Energy Authority,02/11/2015,MATERIALS & SPARES,FUSION,RS COMPONENTS LTD,5100328599,16.47
United Kingdom Atomic Energy Authority,United Kingdom Atomic Energy Authority,02/11/2015,MATERIALS & SPARES,FUSION,RS COMPONENTS LTD,5100328550,16.65
United Kingdom Atomic Energy Authority,United Kingdom Atomic Energy Authority,16/11/2015,MATERIALS & SPARES,FUSION,RS COMPONENTS LTD,5100329052,17.00
United Kingdom Atomic Energy Authority,United Kingdom Atomic Energy Authority,26/10/2015,MATERIALS & SPARES,FUSION,RS COMPONENTS LTD,5100328245,17.67
United Kingdom Atomic Energy Authority,United Kingdom Atomic Energy Authority,02/11/2015,MATERIALS & SPARES,FUSION,RS COMPONENTS LTD,5100328577,18.62
United Kingdom Atomic Energy Authority,United Kingdom Atomic Energy Authority,16/11/2015,MATERIALS & SPARES,FUSION,RS COMPONENTS LTD,5100329051,18.66
United Kingdom Atomic Energy Authority,United Kingdom Atomic Energy Authority,26/10/2015,MATERIALS & SPARES,FUSION,RS COMPONENTS LTD,5100328308,18.70
United Kingdom Atomic Energy Authority,United Kingdom Atomic Energy Authority,02/11/2015,MATERIALS & SPARES,FUSION,RS COMPONENTS LTD,5100328587,18.99
United Kingdom Atomic Energy Authority,United Kingdom Atomic Energy Authority,26/10/2015,MATERIALS & SPARES,FUSION,RS COMPONENTS LTD,5100328272,19.28
United Kingdom Atomic Energy Authority,United Kingdom Atomic Energy Authority,26/10/2015,MATERIALS & SPARES,FUSION,RS COMPONENTS LTD,5100328371,19.34
United Kingdom Atomic Energy Authority,United Kingdom Atomic Energy Authority,16/11/2015,MATERIALS & SPARES,FUSION,RS COMPONENTS LTD,5100329216,21.33
United Kingdom Atomic Energy Authority,United Kingdom Atomic Energy Authority,16/11/2015,MATERIALS & SPARES,FUSION,RS COMPONENTS LTD,5100329209,21.70
United Kingdom Atomic Energy Authority,United Kingdom Atomic Energy Authority,26/10/2015,MATERIALS & SPARES,FUSION,RS COMPONENTS LTD,5100328291,22.49
United Kingdom Atomic Energy Authority,United Kingdom Atomic Energy Authority,26/10/2015,MATERIALS & SPARES,FUSION,RS COMPONENTS LTD,5100328273,22.49
United Kingdom Atomic Energy Authority,United Kingdom Atomic Energy Authority,16/11/2015,MATERIALS & SPARES,FUSION,RS COMPONENTS LTD,5100329023,22.54
United Kingdom Atomic Energy Authority,United Kingdom Atomic Energy Authority,26/10/2015,MATERIALS & SPARES,FUSION,RS COMPONENTS LTD,5100328247,23.12
United Kingdom Atomic Energy Authority,United Kingdom Atomic Energy Authority,26/10/2015,MATERIALS & SPARES,FUSION,RS COMPONENTS LTD,5100328305,23.12
United Kingdom Atomic Energy Authority,United Kingdom Atomic Energy Authority,04/11/2015,MATERIALS & SPARES,FUSION,RS COMPONENTS LTD,5100328574,23.31
United Kingdom Atomic Energy Authority,United Kingdom Atomic Energy Authority,16/11/2015,MATERIALS & SPARES,FUSION,RS COMPONENTS LTD,5100329062,23.53
United Kingdom Atomic Energy Authority,United Kingdom Atomic Energy Authority,16/11/2015,MATERIALS & SPARES,FUSION,RS COMPONENTS LTD,5100329247,25.40
United Kingdom Atomic Energy Authority,United Kingdom Atomic Energy Authority,26/10/2015,MATERIALS & SPARES,FUSION,RS COMPONENTS LTD,5100328240,25.64
United Kingdom Atomic Energy Authority,United Kingdom Atomic Energy Authority,02/11/2015,MATERIALS & SPARES,FUSION,RS COMPONENTS LTD,5100328416,26.10
United Kingdom Atomic Energy Authority,United Kingdom Atomic Energy Authority,02/11/2015,MATERIALS & SPARES,FUSION,RS COMPONENTS LTD,5100328576,26.62
United Kingdom Atomic Energy Authority,United Kingdom Atomic Energy Authority,02/11/2015,MATERIALS & SPARES,FUSION,RS COMPONENTS LTD,5100328546,27.37
United Kingdom Atomic Energy Authority,United Kingdom Atomic Energy Authority,26/10/2015,MATERIALS & SPARES,FUSION,RS COMPONENTS LTD,5100328252,27.53
United Kingdom Atomic Energy Authority,United Kingdom Atomic Energy Authority,26/10/2015,MATERIALS & SPARES,FUSION,RS COMPONENTS LTD,5100328155,28.33
United Kingdom Atomic Energy Authority,United Kingdom Atomic Energy Authority,09/11/2015,MATERIALS & SPARES,FUSION,RS COMPONENTS LTD,5100328887,28.67
United Kingdom Atomic Energy Authority,United Kingdom Atomic Energy Authority,26/10/2015,MATERIALS & SPARES,FUSION,RS COMPONENTS LTD,5100328147,28.71
United Kingdom Atomic Energy Authority,United Kingdom Atomic Energy Authority,02/11/2015,MATERIALS & SPARES,FUSION,RS COMPONENTS LTD,5100328597,30.21
